Body Name,Body,Supplier,Transaction Number,Payment Date,Amount,Directorate,Organisational Unit,Cost Centre/Detail Code,Cost Centre Description,Detail Code Description
Ashfield District Council,37UB,HEB Surveyors,V1002420,04/08/2022,240,Housing & Assets 2,Supplies & Services,G00302/D201011,Capital Receipts HRA,General Fees and Charges
Ashfield District Council,37UB,HEB Surveyors,V1002524,04/08/2022,480,Housing & Assets 2,Supplies & Services,G00302/D201011,Capital Receipts HRA,General Fees and Charges
Ashfield District Council,37UB,Davinhulme Security Dogs,V1002757,11/08/2022,511.5,Housing & Assets 2,Supplies & Services,C00264/D200008,FHS Fund,Payments to Contractors External
Ashfield District Council,37UB,Gleeds Building Surveying Ltd,V1002428,04/08/2022,17458.88,Place & Communities 2,Supplies & Services,C00264/D200008,FHS Fund,Payments to Contractors External
Ashfield District Council,37UB,Kinver Business Solutions Ltd,V1002765,11/08/2022,1280,Place & Communities 2,Supplies & Services,C00265/D201019,FHS Fund,Project Management Fees
Ashfield District Council,37UB,Kinver Business Solutions Ltd,V1002765,11/08/2022,1280,Place & Communities 2,Supplies & Services,C00263/D201019,FHS Fund,Project Management Fees
Ashfield District Council,37UB,Kinver Business Solutions Ltd,V1002765,11/08/2022,1280,Place & Communities 2,Supplies & Services,C00264/D201019,FHS Fund,Project Management Fees
Ashfield District Council,37UB,Greenacre Recruitment Limited,V1002893,11/08/2022,2550,Chief Executive 2,Supplies & Services,C00235/D200008,General Fund,Payments to Contractors External
Ashfield District Council,37UB,Bronbury Services Ltd,V1003410,18/08/2022,6310,Housing & Assets 2,Supplies & Services,G00002001/D200008,General Fund,Payments to Contractors External
Ashfield District Council,37UB,Candor Care Ltd,V1002768,11/08/2022,1860,Housing & Assets 2,Supplies & Services,G00002001/D200008,General Fund,Payments to Contractors External
Ashfield District Council,37UB,Candor Care Ltd,V1000546,25/08/2022,15050,Housing & Assets 2,Supplies & Services,G00002001/D200008,General Fund,Payments to Contractors External
Ashfield District Council,37UB,D Cresswell & Son (Electricians) Ltd,V1002948,18/08/2022,6761,Housing & Assets 2,Supplies & Services,G00002001/D200008,General Fund,Payments to Contractors External
Ashfield District Council,37UB,E.on,V1002426,04/08/2022,26724.51,Housing & Assets 2,Supplies & Services,C00270/D200008,General Fund,Payments to Contractors External
Ashfield District Council,37UB,Ian Williams Ltd,V1002418,04/08/2022,18978.64,Housing & Assets 2,Supplies & Services,C00254/D200008,General Fund,Payments to Contractors External
Ashfield District Council,37UB,Ian Williams Ltd,V1004195,25/08/2022,18657.91,Housing & Assets 2,Supplies & Services,C00254/D200008,General Fund,Payments to Contractors External
Ashfield District Council,37UB,Lindum Group Limited,V1003391,18/08/2022,7643.66,Housing & Assets 2,Supplies & Services,C00269/D200008,General Fund,Payments to Contractors External
Ashfield District Council,37UB,Neil Shacklock Contractors Ltd,V1003319,18/08/2022,2250,Housing & Assets 2,Supplies & Services,G00002002/D200008,General Fund,Payments to Contractors External
Ashfield District Council,37UB,Obam Lift Services Ltd,V1003409,18/08/2022,1849,Housing & Assets 2,Supplies & Services,G00002001/D200008,General Fund,Payments to Contractors External
Ashfield District Council,37UB,Obam Lift Services Ltd,V1003411,18/08/2022,4580,Housing & Assets 2,Supplies & Services,G00002001/D200008,General Fund,Payments to Contractors External
Ashfield District Council,37UB,PB Property Developments,V1003318,18/08/2022,15226.2,Housing & Assets 2,Supplies & Services,G00002001/D200008,General Fund,Payments to Contractors External
Ashfield District Council,37UB,T Grant & Son Ltd,V1002380,04/08/2022,4150,Housing & Assets 2,Supplies & Services,G00002001/D200008,General Fund,Payments to Contractors External
Ashfield District Council,37UB,Alliance Leisure Services Limited,V1004099,25/08/2022,4361.88,Place & Communities 2,Supplies & Services,C00255009/D200008,General Fund,Payments to Contractors External
Ashfield District Council,37UB,Alliance Leisure Services Limited,V1004101,25/08/2022,8139.1,Place & Communities 2,Supplies & Services,C00255015/D200008,General Fund,Payments to Contractors External
Ashfield District Council,37UB,Andy Dean Business Solutions Ltd,V1003559,18/08/2022,1937.5,Place & Communities 2,Supplies & Services,c00255003/D200008,General Fund,Payments to Contractors External
Ashfield District Council,37UB,Browne Jacobson LLP,V1000513,25/08/2022,865,Place & Communities 2,Supplies & Services,C00255007/D200008,General Fund,Payments to Contractors External
Ashfield District Council,37UB,Browne Jacobson LLP,V1000513,25/08/2022,878.2,Place & Communities 2,Supplies & Services,C00255008/D200008,General Fund,Payments to Contractors External
Ashfield District Council,37UB,Browne Jacobson LLP,V1000513,25/08/2022,865,Place & Communities 2,Supplies & Services,C00255012/D200008,General Fund,Payments to Contractors External
Ashfield District Council,37UB,Browne Jacobson LLP,V1000513,25/08/2022,865,Place & Communities 2,Supplies & Services,C00255001/D200008,General Fund,Payments to Contractors External
Ashfield District Council,37UB,Browne Jacobson LLP,V1000513,25/08/2022,865,Place & Communities 2,Supplies & Services,C00255016/D200008,General Fund,Payments to Contractors External
Ashfield District Council,37UB,Browne Jacobson LLP,V1000513,25/08/2022,865,Place & Communities 2,Supplies & Services,C00255005/D200008,General Fund,Payments to Contractors External
Ashfield District Council,37UB,Callix Leisure Limited,V1002451,11/08/2022,30100,Place & Communities 2,Supplies & Services,C00262/D200008,General Fund,Payments to Contractors External
Ashfield District Council,37UB,FMG Consulting Ltd,V1004098,25/08/2022,2604.88,Place & Communities 2,Supplies & Services,C00255009/D200008,General Fund,Payments to Contractors External
Ashfield District Council,37UB,FMG Consulting Ltd,V1004098,25/08/2022,2604.87,Place & Communities 2,Supplies & Services,C00255015/D200008,General Fund,Payments to Contractors External
Ashfield District Council,37UB,Focus Consultants 2010 LLP,V1002163,04/08/2022,2344,Place & Communities 2,Supplies & Services,C00255018/D200008,General Fund,Payments to Contractors External
Ashfield District Council,37UB,Freeths LLP,V1002458,04/08/2022,6142.65,Place & Communities 2,Supplies & Services,C00260/D200008,General Fund,Payments to Contractors External
Ashfield District Council,37UB,Freeths LLP,V1002459,04/08/2022,3885.4,Place & Communities 2,Supplies & Services,C00235/D200008,General Fund,Payments to Contractors External
Ashfield District Council,37UB,Gleeds Advisory Ltd,V1002747,11/08/2022,33455,Place & Communities 2,Supplies & Services,C00255018/D200008,General Fund,Payments to Contractors External
Ashfield District Council,37UB,Kier Construction - North and Scotland,V1002466,04/08/2022,682609.68,Place & Communities 2,Supplies & Services,c00235/D200008,General Fund,Payments to Contractors External
Ashfield District Council,37UB,Kier Construction - North and Scotland,V1002804,11/08/2022,180331.79,Place & Communities 2,Supplies & Services,C00262/D200008,General Fund,Payments to Contractors External
Ashfield District Council,37UB,Kinver Business Solutions Ltd,V1002766,11/08/2022,1280,Place & Communities 2,Supplies & Services,C00255001/D201019,General Fund,Project Management Fees
Ashfield District Council,37UB,Kinver Business Solutions Ltd,V1002766,11/08/2022,1280,Place & Communities 2,Supplies & Services,C00255013/D201019,General Fund,Project Management Fees
Ashfield District Council,37UB,Kinver Business Solutions Ltd,V1002766,11/08/2022,1280,Place & Communities 2,Supplies & Services,C00255002/D201019,General Fund,Project Management Fees
Ashfield District Council,37UB,Kinver Business Solutions Ltd,V1002766,11/08/2022,1280,Place & Communities 2,Supplies & Services,C00255008/D201019,General Fund,Project Management Fees
Ashfield District Council,37UB,Kinver Business Solutions Ltd,V1002766,11/08/2022,1280,Place & Communities 2,Supplies & Services,C00255006/D201019,General Fund,Project Management Fees
Ashfield District Council,37UB,Kinver Business Solutions Ltd,V1002766,11/08/2022,1280,Place & Communities 2,Supplies & Services,C00255011/D201019,General Fund,Project Management Fees
Ashfield District Council,37UB,Kinver Business Solutions Ltd,V1002766,11/08/2022,1280,Place & Communities 2,Supplies & Services,C00255017/D201019,General Fund,Project Management Fees
Ashfield District Council,37UB,Quadrant Building Control,V1003547,18/08/2022,1100,Place & Communities 2,Supplies & Services,C00255008/D200008,General Fund,Payments to Contractors External
Ashfield District Council,37UB,Summit Creative Ltd,V1002744,11/08/2022,892.5,R & B Transformation 2,Supplies & Services,C00235/D200008,General Fund,Payments to Contractors External
Ashfield District Council,37UB,REDACTED,V1003424,18/08/2022,545,Housing & Assets 2,Supplies & Services,G00450003/D200033,HRA Decent Homes,Decoration Vouchers
Ashfield District Council,37UB,Dulux Decorator Centre,V1002843,11/08/2022,175.52,Housing & Assets 2,Supplies & Services,G00450003/D200033,HRA Decent Homes,Decoration Vouchers
Ashfield District Council,37UB,Dulux Decorator Centre,V1002844,11/08/2022,125,Housing & Assets 2,Supplies & Services,G00450003/D200033,HRA Decent Homes,Decoration Vouchers
Ashfield District Council,37UB,Dulux Decorator Centre,V1002845,11/08/2022,46.12,Housing & Assets 2,Supplies & Services,G00450003/D200033,HRA Decent Homes,Decoration Vouchers
Ashfield District Council,37UB,J Tomlinson Ltd,V1002950,18/08/2022,214.27,Housing & Assets 2,Supplies & Services,G00450001/D200008,HRA Decent Homes,Payments to Contractors External
Ashfield District Council,37UB,J Tomlinson Ltd,V1002950,18/08/2022,111838.93,Housing & Assets 2,Supplies & Services,G00450004/D200008,HRA Decent Homes,Payments to Contractors External
Ashfield District Council,37UB,J Tomlinson Ltd,V1002950,18/08/2022,98320.47,Housing & Assets 2,Supplies & Services,G00450001/D200008,HRA Decent Homes,Payments to Contractors External
Ashfield District Council,37UB,J Tomlinson Ltd,V1002950,18/08/2022,117374.01,Housing & Assets 2,Supplies & Services,G00450005/D200008,HRA Decent Homes,Payments to Contractors External
Ashfield District Council,37UB,Wilko Retail Limited,V1002725,04/08/2022,62.5,Housing & Assets 2,Supplies & Services,G00450003/D200033,HRA Decent Homes,Decoration Vouchers
Ashfield District Council,37UB,Wilko Retail Limited,V1002846,11/08/2022,175,Housing & Assets 2,Supplies & Services,G00450003/D200033,HRA Decent Homes,Decoration Vouchers
Ashfield District Council,37UB,Wilko Retail Limited,V1002847,11/08/2022,25.83,Housing & Assets 2,Supplies & Services,G00450003/D200033,HRA Decent Homes,Decoration Vouchers
Ashfield District Council,37UB,Wilko Retail Limited,V1002848,11/08/2022,60.21,Housing & Assets 2,Supplies & Services,G00450003/D200033,HRA Decent Homes,Decoration Vouchers
Ashfield District Council,37UB,Wilko Retail Limited,V1002849,11/08/2022,65.25,Housing & Assets 2,Supplies & Services,G00450003/D200033,HRA Decent Homes,Decoration Vouchers
Ashfield District Council,37UB,Wilko Retail Limited,V1002850,11/08/2022,41.67,Housing & Assets 2,Supplies & Services,G00450003/D200033,HRA Decent Homes,Decoration Vouchers
Ashfield District Council,37UB,Wilko Retail Limited,V1002851,11/08/2022,58.33,Housing & Assets 2,Supplies & Services,G00450003/D200033,HRA Decent Homes,Decoration Vouchers
Ashfield District Council,37UB,Wilko Retail Limited,V1002852,11/08/2022,63.33,Housing & Assets 2,Supplies & Services,G00450003/D200033,HRA Decent Homes,Decoration Vouchers
Ashfield District Council,37UB,Wilko Retail Limited,V1002853,11/08/2022,50,Housing & Assets 2,Supplies & Services,G00450003/D200033,HRA Decent Homes,Decoration Vouchers
Ashfield District Council,37UB,Wilko Retail Limited,V1002854,11/08/2022,125,Housing & Assets 2,Supplies & Services,G00450003/D200033,HRA Decent Homes,Decoration Vouchers
Ashfield District Council,37UB,Wilko Retail Limited,V1002855,11/08/2022,62.5,Housing & Assets 2,Supplies & Services,G00450003/D200033,HRA Decent Homes,Decoration Vouchers
Ashfield District Council,37UB,Wilko Retail Limited,V1002856,11/08/2022,182.17,Housing & Assets 2,Supplies & Services,G00450003/D200033,HRA Decent Homes,Decoration Vouchers
Ashfield District Council,37UB,Wilko Retail Limited,V1003414,18/08/2022,62.5,Housing & Assets 2,Supplies & Services,G00450003/D200033,HRA Decent Homes,Decoration Vouchers
Ashfield District Council,37UB,Wilko Retail Limited,V1003431,18/08/2022,199.92,Housing & Assets 2,Supplies & Services,G00450003/D200033,HRA Decent Homes,Decoration Vouchers
Ashfield District Council,37UB,Wilko Retail Limited,V1003432,18/08/2022,179.17,Housing & Assets 2,Supplies & Services,G00450003/D200033,HRA Decent Homes,Decoration Vouchers
Ashfield District Council,37UB,Wilko Retail Limited,V1003433,18/08/2022,125,Housing & Assets 2,Supplies & Services,G00450003/D200033,HRA Decent Homes,Decoration Vouchers
Ashfield District Council,37UB,Wilko Retail Limited,V1003434,18/08/2022,113.33,Housing & Assets 2,Supplies & Services,G00450003/D200033,HRA Decent Homes,Decoration Vouchers
Ashfield District Council,37UB,Wilko Retail Limited,V1003435,18/08/2022,70.83,Housing & Assets 2,Supplies & Services,G00450003/D200033,HRA Decent Homes,Decoration Vouchers
Ashfield District Council,37UB,Wilko Retail Limited,V1003436,18/08/2022,125,Housing & Assets 2,Supplies & Services,G00450003/D200033,HRA Decent Homes,Decoration Vouchers
Ashfield District Council,37UB,Wilko Retail Limited,V1003437,18/08/2022,69.08,Housing & Assets 2,Supplies & Services,G00450003/D200033,HRA Decent Homes,Decoration Vouchers
Ashfield District Council,37UB,Wilko Retail Limited,V1003438,18/08/2022,62.5,Housing & Assets 2,Supplies & Services,G00450003/D200033,HRA Decent Homes,Decoration Vouchers
Ashfield District Council,37UB,Wilko Retail Limited,V1003439,18/08/2022,68.33,Housing & Assets 2,Supplies & Services,G00450003/D200033,HRA Decent Homes,Decoration Vouchers
Ashfield District Council,37UB,Wilko Retail Limited,V1003439,18/08/2022,2.86,Housing & Assets 2,Supplies & Services,G00450003/D200033,HRA Decent Homes,Decoration Vouchers
Ashfield District Council,37UB,Wilko Retail Limited,V1003440,18/08/2022,121.67,Housing & Assets 2,Supplies & Services,G00450003/D200033,HRA Decent Homes,Decoration Vouchers
Ashfield District Council,37UB,Wilko Retail Limited,V1003441,18/08/2022,50,Housing & Assets 2,Supplies & Services,G00450003/D200033,HRA Decent Homes,Decoration Vouchers
Ashfield District Council,37UB,Wilko Retail Limited,V1003442,18/08/2022,113.33,Housing & Assets 2,Supplies & Services,G00450003/D200033,HRA Decent Homes,Decoration Vouchers
Ashfield District Council,37UB,Wilko Retail Limited,V1003443,18/08/2022,175,Housing & Assets 2,Supplies & Services,G00450003/D200033,HRA Decent Homes,Decoration Vouchers
Ashfield District Council,37UB,Wilko Retail Limited,V1003444,18/08/2022,62.29,Housing & Assets 2,Supplies & Services,G00450003/D200033,HRA Decent Homes,Decoration Vouchers
Ashfield District Council,37UB,Wilko Retail Limited,V1003445,18/08/2022,133.33,Housing & Assets 2,Supplies & Services,G00450003/D200033,HRA Decent Homes,Decoration Vouchers
Ashfield District Council,37UB,Wilko Retail Limited,V1003446,18/08/2022,62.5,Housing & Assets 2,Supplies & Services,G00450003/D200033,HRA Decent Homes,Decoration Vouchers
Ashfield District Council,37UB,Wilko Retail Limited,V1003447,18/08/2022,2.86,Housing & Assets 2,Supplies & Services,G00450003/D200033,HRA Decent Homes,Decoration Vouchers
Ashfield District Council,37UB,Wilko Retail Limited,V1003447,18/08/2022,184.17,Housing & Assets 2,Supplies & Services,G00450003/D200033,HRA Decent Homes,Decoration Vouchers
Ashfield District Council,37UB,Wilko Retail Limited,V1003448,18/08/2022,62.5,Housing & Assets 2,Supplies & Services,G00450003/D200033,HRA Decent Homes,Decoration Vouchers
Ashfield District Council,37UB,Wilko Retail Limited,V1003467,18/08/2022,62.5,Housing & Assets 2,Supplies & Services,G00450003/D200033,HRA Decent Homes,Decoration Vouchers
Ashfield District Council,37UB,Wilko Retail Limited,V1003495,18/08/2022,183.33,Housing & Assets 2,Supplies & Services,G00450003/D200033,HRA Decent Homes,Decoration Vouchers
Ashfield District Council,37UB,Wilko Retail Limited,V1003497,18/08/2022,296.67,Housing & Assets 2,Supplies & Services,G00450003/D200033,HRA Decent Homes,Decoration Vouchers
Ashfield District Council,37UB,Wilko Retail Limited,V1003498,18/08/2022,233.33,Housing & Assets 2,Supplies & Services,G00450003/D200033,HRA Decent Homes,Decoration Vouchers
Ashfield District Council,37UB,Wilko Retail Limited,V1003499,18/08/2022,61.46,Housing & Assets 2,Supplies & Services,G00450003/D200033,HRA Decent Homes,Decoration Vouchers
Ashfield District Council,37UB,Wilko Retail Limited,V1003500,18/08/2022,125,Housing & Assets 2,Supplies & Services,G00450003/D200033,HRA Decent Homes,Decoration Vouchers
Ashfield District Council,37UB,Wilko Retail Limited,V1003501,18/08/2022,50.83,Housing & Assets 2,Supplies & Services,G00450003/D200033,HRA Decent Homes,Decoration Vouchers
Ashfield District Council,37UB,Wilko Retail Limited,V1003502,18/08/2022,200,Housing & Assets 2,Supplies & Services,G00450003/D200033,HRA Decent Homes,Decoration Vouchers
Ashfield District Council,37UB,Wilko Retail Limited,V1003503,18/08/2022,59.58,Housing & Assets 2,Supplies & Services,G00450003/D200033,HRA Decent Homes,Decoration Vouchers
Ashfield District Council,37UB,Wilko Retail Limited,V1003503,18/08/2022,1.9,Housing & Assets 2,Supplies & Services,G00450003/D200033,HRA Decent Homes,Decoration Vouchers
Ashfield District Council,37UB,Wilko Retail Limited,V1003504,18/08/2022,41.67,Housing & Assets 2,Supplies & Services,G00450003/D200033,HRA Decent Homes,Decoration Vouchers
Ashfield District Council,37UB,Wilko Retail Limited,V1003505,18/08/2022,66.67,Housing & Assets 2,Supplies & Services,G00450003/D200033,HRA Decent Homes,Decoration Vouchers
Ashfield District Council,37UB,Wilko Retail Limited,V1003506,18/08/2022,62.5,Housing & Assets 2,Supplies & Services,G00450003/D200033,HRA Decent Homes,Decoration Vouchers
Ashfield District Council,37UB,Wilko Retail Limited,V1003507,18/08/2022,62.5,Housing & Assets 2,Supplies & Services,G00450003/D200033,HRA Decent Homes,Decoration Vouchers
Ashfield District Council,37UB,Wilko Retail Limited,V1003508,18/08/2022,61.67,Housing & Assets 2,Supplies & Services,G00450003/D200033,HRA Decent Homes,Decoration Vouchers
Ashfield District Council,37UB,Wilko Retail Limited,V1003509,18/08/2022,47.92,Housing & Assets 2,Supplies & Services,G00450003/D200033,HRA Decent Homes,Decoration Vouchers
Ashfield District Council,37UB,Wilko Retail Limited,V1003510,18/08/2022,63.33,Housing & Assets 2,Supplies & Services,G00450003/D200033,HRA Decent Homes,Decoration Vouchers
Ashfield District Council,37UB,Wilko Retail Limited,V1003511,18/08/2022,62.5,Housing & Assets 2,Supplies & Services,G00450003/D200033,HRA Decent Homes,Decoration Vouchers
Ashfield District Council,37UB,Wilko Retail Limited,V1003512,18/08/2022,25.83,Housing & Assets 2,Supplies & Services,G00450003/D200033,HRA Decent Homes,Decoration Vouchers
Ashfield District Council,37UB,Wilko Retail Limited,V1003513,18/08/2022,312.5,Housing & Assets 2,Supplies & Services,G00450003/D200033,HRA Decent Homes,Decoration Vouchers
Ashfield District Council,37UB,J Tomlinson Ltd,V1002671,08/08/2022,546,R & B Transformation 2,Supplies & Services,G00450004/D200008,HRA Decent Homes,Payments to Contractors External
Ashfield District Council,37UB,J Tomlinson Ltd,V1002671,08/08/2022,552.5,R & B Transformation 2,Supplies & Services,G00450004/D200008,HRA Decent Homes,Payments to Contractors External
Ashfield District Council,37UB,J Tomlinson Ltd,V1002671,08/08/2022,448.5,R & B Transformation 2,Supplies & Services,G00450004/D200008,HRA Decent Homes,Payments to Contractors External
Ashfield District Council,37UB,Total Hire & Sales Ltd,V1003317,15/08/2022,58.8,R & B Transformation 2,Supplies & Services,G00450008/D200008,HRA Decent Homes,Payments to Contractors External
Ashfield District Council,37UB,EKMW Summit Centre,V1002912,11/08/2022,170,Housing & Assets 2,Supplies & Services,C00272/D200008,HRA General,Payments to Contractors External
Ashfield District Council,37UB,Lindum Group Limited,V1002936,11/08/2022,225556.88,Housing & Assets 2,Supplies & Services,G00931/D200008,HRA General,Payments to Contractors External
Ashfield District Council,37UB,Lindum Group Limited,V1004133,25/08/2022,147208.49,Housing & Assets 2,Supplies & Services,G00931/D200008,HRA General,Payments to Contractors External
Ashfield District Council,37UB,Rider Levett Bucknall UK Ltd,V1002482,04/08/2022,2100,Housing & Assets 2,Supplies & Services,G00931/D200008,HRA General,Payments to Contractors External
Ashfield District Council,37UB,Industrial Contracting Services Ltd,V1002169,04/08/2022,6244.71,Place & Communities 2,Supplies & Services,C00243/D200008,Hucknall Area,Payments to Contractors External
Ashfield District Council,37UB,A B Waste Disposal,V1002173,11/08/2022,122.4,Place & Communities 2,Supplies & Services,D00251/D200008,Sutton Area,Payments to Contractors External
Ashfield District Council,37UB,A B Waste Disposal,V1002174,11/08/2022,2373.6,Place & Communities 2,Supplies & Services,D00251/D200008,Sutton Area,Payments to Contractors External
Ashfield District Council,37UB,Mansfield & Ashfield 2020 Ltd,V1002399,04/08/2022,650,Chief Executive 2,Supplies & Services,A40000/D400002,Chief Executive,Refreshments and Hospitality
Ashfield District Council,37UB,Karki & Sons Ltd,V1004568,25/08/2022,13.2,R & B Transformation 2,Supplies & Services,A40000/D101,Chief Executive,Reference books & periodicals
Ashfield District Council,37UB,Legend Chauffeur & Driver Services Ltd,V1002397,18/08/2022,550,Chief Executive 2,Transport Related Expenses,A01001/C201,Democratic Core,Hire of vehicles
Ashfield District Council,37UB,Karki & Sons Ltd,V1004568,25/08/2022,25.2,R & B Transformation 2,Supplies & Services,A01001006/D101,Democratic Core,Reference books & periodicals
Ashfield District Council,37UB,Mazars LLP,V1002161,04/08/2022,10787,R & B Transformation 2,Supplies & Services,A01003/D201008,Democratic Core,Audit Fees
Ashfield District Council,37UB,Arden Winch & Co Ltd,V1002010,01/08/2022,770,R & B Transformation 2,Supplies & Services,T35026/D200008,Housing Stock Accounts,Payments to Contractors External
Ashfield District Council,37UB,Arden Winch & Co Ltd,V1002716,08/08/2022,770,R & B Transformation 2,Supplies & Services,T35026/D200008,Housing Stock Accounts,Payments to Contractors External
Ashfield District Council,37UB,Arden Winch & Co Ltd,V1002716,08/08/2022,231.4,R & B Transformation 2,Supplies & Services,T35026/D200008,Housing Stock Accounts,Payments to Contractors External
Ashfield District Council,37UB,Burbage Iron Craft Ltd t/a Cannock Gates Ltd,V1002715,08/08/2022,496,R & B Transformation 2,Supplies & Services,T35026/D200008,Housing Stock Accounts,Payments to Contractors External
Ashfield District Council,37UB,Burbage Iron Craft Ltd t/a Cannock Gates Ltd,V1002715,08/08/2022,630,R & B Transformation 2,Supplies & Services,T35026/D200008,Housing Stock Accounts,Payments to Contractors External
Ashfield District Council,37UB,Business Supplies Direct Ltd,V1002012,01/08/2022,58.34,R & B Transformation 2,Supplies & Services,T35026/D200008,Housing Stock Accounts,Payments to Contractors External
Ashfield District Council,37UB,City Electrical Factors,V1004441,30/08/2022,11000,R & B Transformation 2,Supplies & Services,T35026/D200008,Housing Stock Accounts,Payments to Contractors External
Ashfield District Council,37UB,City Plumbing Supplies Holdings Ltd,V1002024,01/08/2022,187.31,R & B Transformation 2,Supplies & Services,T35026/D200008,Housing Stock Accounts,Payments to Contractors External
Ashfield District Council,37UB,City Plumbing Supplies Holdings Ltd,V1002025,01/08/2022,204.54,R & B Transformation 2,Supplies & Services,T35026/D200008,Housing Stock Accounts,Payments to Contractors External
Ashfield District Council,37UB,City Plumbing Supplies Holdings Ltd,V1003311,15/08/2022,68.88,R & B Transformation 2,Supplies & Services,T35026/D200008,Housing Stock Accounts,Payments to Contractors External
Ashfield District Council,37UB,City Plumbing Supplies Holdings Ltd,V1003312,15/08/2022,412.68,R & B Transformation 2,Supplies & Services,T35026/D200008,Housing Stock Accounts,Payments to Contractors External
Ashfield District Council,37UB,City Plumbing Supplies Holdings Ltd,V1004442,30/08/2022,214.95,R & B Transformation 2,Supplies & Services,T35026/D200008,Housing Stock Accounts,Payments to Contractors External
Ashfield District Council,37UB,City Plumbing Supplies Holdings Ltd,V1004443,30/08/2022,57.4,R & B Transformation 2,Supplies & Services,T35026/D200008,Housing Stock Accounts,Payments to Contractors External
Ashfield District Council,37UB,City Plumbing Supplies Holdings Ltd,V1004444,30/08/2022,135,R & B Transformation 2,Supplies & Services,T35026/D200008,Housing Stock Accounts,Payments to Contractors External
Ashfield District Council,37UB,City Plumbing Supplies Holdings Ltd,V1004444,30/08/2022,135,R & B Transformation 2,Supplies & Services,T35026/D200008,Housing Stock Accounts,Payments to Contractors External
Ashfield District Council,37UB,Crown Paints Limited,V1002013,01/08/2022,160.92,R & B Transformation 2,Supplies & Services,T35026/D200008,Housing Stock Accounts,Payments to Contractors External
Ashfield District Council,37UB,Crown Paints Limited,V1002013,01/08/2022,110.24,R & B Transformation 2,Supplies & Services,T35026/D200008,Housing Stock Accounts,Payments to Contractors External
Ashfield District Council,37UB,Crown Paints Limited,V1002013,01/08/2022,108.4,R & B Transformation 2,Supplies & Services,T35026/D200008,Housing Stock Accounts,Payments to Contractors External
Ashfield District Council,37UB,Crown Paints Limited,V1002013,01/08/2022,113.22,R & B Transformation 2,Supplies & Services,T35026/D200008,Housing Stock Accounts,Payments to Contractors External
Ashfield District Council,37UB,Crown Paints Limited,V1002013,01/08/2022,35.7,R & B Transformation 2,Supplies & Services,T35026/D200008,Housing Stock Accounts,Payments to Contractors External
Ashfield District Council,37UB,Crown Paints Limited,V1002709,08/08/2022,29.4,R & B Transformation 2,Supplies & Services,T35026/D200008,Housing Stock Accounts,Payments to Contractors External
Ashfield District Council,37UB,Crown Paints Limited,V1002709,08/08/2022,2.45,R & B Transformation 2,Supplies & Services,T35026/D200008,Housing Stock Accounts,Payments to Contractors External
Ashfield District Council,37UB,Crown Paints Limited,V1002713,08/08/2022,67.75,R & B Transformation 2,Supplies & Services,T35026/D200008,Housing Stock Accounts,Payments to Contractors External
Ashfield District Council,37UB,Crown Paints Limited,V1002713,08/08/2022,160.92,R & B Transformation 2,Supplies & Services,T35026/D200008,Housing Stock Accounts,Payments to Contractors External
Ashfield District Council,37UB,Crown Paints Limited,V1003316,15/08/2022,188.7,R & B Transformation 2,Supplies & Services,T35026/D200008,Housing Stock Accounts,Payments to Contractors External
Ashfield District Council,37UB,Crown Paints Limited,V1003316,15/08/2022,201.15,R & B Transformation 2,Supplies & Services,T35026/D200008,Housing Stock Accounts,Payments to Contractors External
Ashfield District Council,37UB,Crown Paints Limited,V1003316,15/08/2022,193.95,R & B Transformation 2,Supplies & Services,T35026/D200008,Housing Stock Accounts,Payments to Contractors External
Ashfield District Council,37UB,Crown Paints Limited,V1003316,15/08/2022,110.24,R & B Transformation 2,Supplies & Services,T35026/D200008,Housing Stock Accounts,Payments to Contractors External
Ashfield District Council,37UB,Crown Paints Limited,V1003570,19/08/2022,-193.95,R & B Transformation 2,Supplies & Services,T35026/D200008,Housing Stock Accounts,Payments to Contractors External
Ashfield District Council,37UB,Crown Paints Limited,V1003966,19/08/2022,68.9,R & B Transformation 2,Supplies & Services,T35026/D200008,Housing Stock Accounts,Payments to Contractors External
Ashfield District Council,37UB,Crown Paints Limited,V1003966,19/08/2022,278.65,R & B Transformation 2,Supplies & Services,T35026/D200008,Housing Stock Accounts,Payments to Contractors External
Ashfield District Council,37UB,Door-Stop International Ltd,V1002014,01/08/2022,11.6,R & B Transformation 2,Supplies & Services,T35026/D200008,Housing Stock Accounts,Payments to Contractors External
Ashfield District Council,37UB,Door-Stop International Ltd,V1002015,01/08/2022,461.93,R & B Transformation 2,Supplies & Services,T35026/D200008,Housing Stock Accounts,Payments to Contractors External
Ashfield District Council,37UB,Door-Stop International Ltd,V1002016,01/08/2022,394.13,R & B Transformation 2,Supplies & Services,T35026/D200008,Housing Stock Accounts,Payments to Contractors External
Ashfield District Council,37UB,Door-Stop International Ltd,V1002638,08/08/2022,394.13,R & B Transformation 2,Supplies & Services,T35026/D200008,Housing Stock Accounts,Payments to Contractors External
Ashfield District Council,37UB,Door-Stop International Ltd,V1003969,19/08/2022,447.21,R & B Transformation 2,Supplies & Services,T35026/D200008,Housing Stock Accounts,Payments to Contractors External
Ashfield District Council,37UB,Door-Stop International Ltd,V1003970,19/08/2022,447.21,R & B Transformation 2,Supplies & Services,T35026/D200008,Housing Stock Accounts,Payments to Contractors External
Ashfield District Council,37UB,Door-Stop International Ltd,V1004446,30/08/2022,440.36,R & B Transformation 2,Supplies & Services,T35026/D200008,Housing Stock Accounts,Payments to Contractors External
Ashfield District Council,37UB,Door-Stop International Ltd,V1004447,30/08/2022,414.63,R & B Transformation 2,Supplies & Services,T35026/D200008,Housing Stock Accounts,Payments to Contractors External
Ashfield District Council,37UB,Grafton Merchanting GB Ltd t/a Jackson Buildbase,V1002036,01/08/2022,530,R & B Transformation 2,Supplies & Services,T35026/D200008,Housing Stock Accounts,Payments to Contractors External
Ashfield District Council,37UB,Grafton Merchanting GB Ltd t/a Jackson Buildbase,V1002038,01/08/2022,551,R & B Transformation 2,Supplies & Services,T35026/D200008,Housing Stock Accounts,Payments to Contractors External
Ashfield District Council,37UB,Grafton Merchanting GB Ltd t/a Jackson Buildbase,V1002038,01/08/2022,61.6,R & B Transformation 2,Supplies & Services,T35026/D200008,Housing Stock Accounts,Payments to Contractors External
Ashfield District Council,37UB,Grafton Merchanting GB Ltd t/a Jackson Buildbase,V1002038,01/08/2022,39.1,R & B Transformation 2,Supplies & Services,T35026/D200008,Housing Stock Accounts,Payments to Contractors External
Ashfield District Council,37UB,Grafton Merchanting GB Ltd t/a Jackson Buildbase,V1002038,01/08/2022,104.4,R & B Transformation 2,Supplies & Services,T35026/D200008,Housing Stock Accounts,Payments to Contractors External
Ashfield District Council,37UB,Grafton Merchanting GB Ltd t/a Jackson Buildbase,V1002038,01/08/2022,188.2,R & B Transformation 2,Supplies & Services,T35026/D200008,Housing Stock Accounts,Payments to Contractors External
Ashfield District Council,37UB,Grafton Merchanting GB Ltd t/a Jackson Buildbase,V1002038,01/08/2022,149.4,R & B Transformation 2,Supplies & Services,T35026/D200008,Housing Stock Accounts,Payments to Contractors External
Ashfield District Council,37UB,Grafton Merchanting GB Ltd t/a Jackson Buildbase,V1002038,01/08/2022,175,R & B Transformation 2,Supplies & Services,T35026/D200008,Housing Stock Accounts,Payments to Contractors External
Ashfield District Council,37UB,Grafton Merchanting GB Ltd t/a Jackson Buildbase,V1002039,01/08/2022,124.69,R & B Transformation 2,Supplies & Services,T35026/D200008,Housing Stock Accounts,Payments to Contractors External
Ashfield District Council,37UB,Grafton Merchanting GB Ltd t/a Jackson Buildbase,V1002574,08/08/2022,-10,R & B Transformation 2,Supplies & Services,T35026/D200008,Housing Stock Accounts,Payments to Contractors External
Ashfield District Council,37UB,Grafton Merchanting GB Ltd t/a Jackson Buildbase,V1002621,08/08/2022,5.4,R & B Transformation 2,Supplies & Services,T35026/D200008,Housing Stock Accounts,Payments to Contractors External
Ashfield District Council,37UB,Grafton Merchanting GB Ltd t/a Jackson Buildbase,V1002622,08/08/2022,909.5,R & B Transformation 2,Supplies & Services,T35026/D200008,Housing Stock Accounts,Payments to Contractors External
Ashfield District Council,37UB,Grafton Merchanting GB Ltd t/a Jackson Buildbase,V1002623,08/08/2022,54,R & B Transformation 2,Supplies & Services,T35026/D200008,Housing Stock Accounts,Payments to Contractors External
Ashfield District Council,37UB,Grafton Merchanting GB Ltd t/a Jackson Buildbase,V1002623,08/08/2022,9,R & B Transformation 2,Supplies & Services,T35026/D200008,Housing Stock Accounts,Payments to Contractors External
Ashfield District Council,37UB,Grafton Merchanting GB Ltd t/a Jackson Buildbase,V1002623,08/08/2022,182.4,R & B Transformation 2,Supplies & Services,T35026/D200008,Housing Stock Accounts,Payments to Contractors External
Ashfield District Council,37UB,Grafton Merchanting GB Ltd t/a Jackson Buildbase,V1002623,08/08/2022,116,R & B Transformation 2,Supplies & Services,T35026/D200008,Housing Stock Accounts,Payments to Contractors External
Ashfield District Council,37UB,Grafton Merchanting GB Ltd t/a Jackson Buildbase,V1002623,08/08/2022,744.6,R & B Transformation 2,Supplies & Services,T35026/D200008,Housing Stock Accounts,Payments to Contractors External
Ashfield District Council,37UB,Grafton Merchanting GB Ltd t/a Jackson Buildbase,V1002623,08/08/2022,101.1,R & B Transformation 2,Supplies & Services,T35026/D200008,Housing Stock Accounts,Payments to Contractors External
Ashfield District Council,37UB,Grafton Merchanting GB Ltd t/a Jackson Buildbase,V1002623,08/08/2022,73.4,R & B Transformation 2,Supplies & Services,T35026/D200008,Housing Stock Accounts,Payments to Contractors External
Ashfield District Council,37UB,Grafton Merchanting GB Ltd t/a Jackson Buildbase,V1002689,08/08/2022,162,R & B Transformation 2,Supplies & Services,T35026/D200008,Housing Stock Accounts,Payments to Contractors External
Ashfield District Council,37UB,Grafton Merchanting GB Ltd t/a Jackson Buildbase,V1002690,08/08/2022,157.1,R & B Transformation 2,Supplies & Services,T35026/D200008,Housing Stock Accounts,Payments to Contractors External
Ashfield District Council,37UB,Grafton Merchanting GB Ltd t/a Jackson Buildbase,V1002691,08/08/2022,109.68,R & B Transformation 2,Supplies & Services,T35026/D200008,Housing Stock Accounts,Payments to Contractors External
Ashfield District Council,37UB,Grafton Merchanting GB Ltd t/a Jackson Buildbase,V1002693,08/08/2022,530,R & B Transformation 2,Supplies & Services,T35026/D200008,Housing Stock Accounts,Payments to Contractors External
Ashfield District Council,37UB,Grafton Merchanting GB Ltd t/a Jackson Buildbase,V1002694,08/08/2022,142.5,R & B Transformation 2,Supplies & Services,T35026/D200008,Housing Stock Accounts,Payments to Contractors External
Ashfield District Council,37UB,Grafton Merchanting GB Ltd t/a Jackson Buildbase,V1002694,08/08/2022,142.5,R & B Transformation 2,Supplies & Services,T35026/D200008,Housing Stock Accounts,Payments to Contractors External
Ashfield District Council,37UB,Grafton Merchanting GB Ltd t/a Jackson Buildbase,V1002695,08/08/2022,369,R & B Transformation 2,Supplies & Services,T35026/D200008,Housing Stock Accounts,Payments to Contractors External
Ashfield District Council,37UB,Grafton Merchanting GB Ltd t/a Jackson Buildbase,V1002696,08/08/2022,56.04,R & B Transformation 2,Supplies & Services,T35026/D200008,Housing Stock Accounts,Payments to Contractors External
Ashfield District Council,37UB,Grafton Merchanting GB Ltd t/a Jackson Buildbase,V1003971,19/08/2022,51.69,R & B Transformation 2,Supplies & Services,T35026/D200008,Housing Stock Accounts,Payments to Contractors External
Ashfield District Council,37UB,Grafton Merchanting GB Ltd t/a Jackson Buildbase,V1004260,30/08/2022,-48,R & B Transformation 2,Supplies & Services,T35026/D200008,Housing Stock Accounts,Payments to Contractors External
Ashfield District Council,37UB,Grafton Merchanting GB Ltd t/a Jackson Buildbase,V1004261,30/08/2022,-4.15,R & B Transformation 2,Supplies & Services,T35026/D200008,Housing Stock Accounts,Payments to Contractors External
Ashfield District Council,37UB,Grafton Merchanting GB Ltd t/a Jackson Buildbase,V1004262,30/08/2022,-28.59,R & B Transformation 2,Supplies & Services,T35026/D200008,Housing Stock Accounts,Payments to Contractors External
Ashfield District Council,37UB,Grafton Merchanting GB Ltd t/a Jackson Buildbase,V1004263,30/08/2022,-15.36,R & B Transformation 2,Supplies & Services,T35026/D200008,Housing Stock Accounts,Payments to Contractors External
Ashfield District Council,37UB,Grafton Merchanting GB Ltd t/a Jackson Buildbase,V1004462,30/08/2022,53.52,R & B Transformation 2,Supplies & Services,T35026/D200008,Housing Stock Accounts,Payments to Contractors External
Ashfield District Council,37UB,Grafton Merchanting GB Ltd t/a Jackson Buildbase,V1004463,30/08/2022,13.24,R & B Transformation 2,Supplies & Services,T35026/D200008,Housing Stock Accounts,Payments to Contractors External
Ashfield District Council,37UB,Grafton Merchanting GB Ltd t/a Jackson Buildbase,V1004466,30/08/2022,119.2,R & B Transformation 2,Supplies & Services,T35026/D200008,Housing Stock Accounts,Payments to Contractors External
Ashfield District Council,37UB,Grafton Merchanting GB Ltd t/a Jackson Buildbase,V1004467,30/08/2022,198.56,R & B Transformation 2,Supplies & Services,T35026/D200008,Housing Stock Accounts,Payments to Contractors External
Ashfield District Council,37UB,Grafton Merchanting GB Ltd t/a Jackson Buildbase,V1004468,30/08/2022,34.3,R & B Transformation 2,Supplies & Services,T35026/D200008,Housing Stock Accounts,Payments to Contractors External
Ashfield District Council,37UB,Grafton Merchanting GB Ltd t/a Jackson Buildbase,V1004468,30/08/2022,591.36,R & B Transformation 2,Supplies & Services,T35026/D200008,Housing Stock Accounts,Payments to Contractors External
Ashfield District Council,37UB,Grafton Merchanting GB Ltd t/a Jackson Buildbase,V1004469,30/08/2022,46,R & B Transformation 2,Supplies & Services,T35026/D200008,Housing Stock Accounts,Payments to Contractors External
Ashfield District Council,37UB,Grafton Merchanting GB Ltd t/a Jackson Buildbase,V1004470,30/08/2022,69.6,R & B Transformation 2,Supplies & Services,T35026/D200008,Housing Stock Accounts,Payments to Contractors External
Ashfield District Council,37UB,Grafton Merchanting GB Ltd t/a Jackson Buildbase,V1004471,30/08/2022,182.4,R & B Transformation 2,Supplies & Services,T35026/D200008,Housing Stock Accounts,Payments to Contractors External
Ashfield District Council,37UB,Grafton Merchanting GB Ltd t/a Jackson Buildbase,V1004472,30/08/2022,23,R & B Transformation 2,Supplies & Services,T35026/D200008,Housing Stock Accounts,Payments to Contractors External
Ashfield District Council,37UB,Grafton Merchanting GB Ltd t/a Jackson Buildbase,V1004472,30/08/2022,9.6,R & B Transformation 2,Supplies & Services,T35026/D200008,Housing Stock Accounts,Payments to Contractors External
Ashfield District Council,37UB,Grafton Merchanting GB Ltd t/a Jackson Buildbase,V1004472,30/08/2022,5.16,R & B Transformation 2,Supplies & Services,T35026/D200008,Housing Stock Accounts,Payments to Contractors External
Ashfield District Council,37UB,Grafton Merchanting GB Ltd t/a Jackson Buildbase,V1004472,30/08/2022,17.52,R & B Transformation 2,Supplies & Services,T35026/D200008,Housing Stock Accounts,Payments to Contractors External
Ashfield District Council,37UB,Grafton Merchanting GB Ltd t/a Jackson Buildbase,V1004472,30/08/2022,19.62,R & B Transformation 2,Supplies & Services,T35026/D200008,Housing Stock Accounts,Payments to Contractors External
Ashfield District Council,37UB,Grafton Merchanting GB Ltd t/a Jackson Buildbase,V1004472,30/08/2022,14,R & B Transformation 2,Supplies & Services,T35026/D200008,Housing Stock Accounts,Payments to Contractors External
Ashfield District Council,37UB,Grafton Merchanting GB Ltd t/a Jackson Buildbase,V1004472,30/08/2022,5,R & B Transformation 2,Supplies & Services,T35026/D200008,Housing Stock Accounts,Payments to Contractors External
Ashfield District Council,37UB,Grafton Merchanting GB Ltd t/a Jackson Buildbase,V1004472,30/08/2022,8.1,R & B Transformation 2,Supplies & Services,T35026/D200008,Housing Stock Accounts,Payments to Contractors External
Ashfield District Council,37UB,Grafton Merchanting GB Ltd t/a Jackson Buildbase,V1004476,30/08/2022,28.9,R & B Transformation 2,Supplies & Services,T35026/D200008,Housing Stock Accounts,Payments to Contractors External
Ashfield District Council,37UB,Grafton Merchanting GB Ltd t/a Jackson Buildbase,V1004477,30/08/2022,9.6,R & B Transformation 2,Supplies & Services,T35026/D200008,Housing Stock Accounts,Payments to Contractors External
Ashfield District Council,37UB,Grafton Merchanting GB Ltd t/a Jackson Buildbase,V1004478,30/08/2022,19.86,R & B Transformation 2,Supplies & Services,T35026/D200008,Housing Stock Accounts,Payments to Contractors External
Ashfield District Council,37UB,Grafton Merchanting GB Ltd t/a Jackson Buildbase,V1004479,30/08/2022,88,R & B Transformation 2,Supplies & Services,T35026/D200008,Housing Stock Accounts,Payments to Contractors External
Ashfield District Council,37UB,Grafton Merchanting GB Ltd t/a Jackson Buildbase,V1004483,30/08/2022,48,R & B Transformation 2,Supplies & Services,T35026/D200008,Housing Stock Accounts,Payments to Contractors External
Ashfield District Council,37UB,Grafton Merchanting GB Ltd t/a Jackson Buildbase,V1004483,30/08/2022,16.6,R & B Transformation 2,Supplies & Services,T35026/D200008,Housing Stock Accounts,Payments to Contractors External
Ashfield District Council,37UB,Grafton Merchanting GB Ltd t/a Jackson Buildbase,V1004483,30/08/2022,48,R & B Transformation 2,Supplies & Services,T35026/D200008,Housing Stock Accounts,Payments to Contractors External
Ashfield District Council,37UB,Grafton Merchanting GB Ltd t/a Jackson Buildbase,V1004486,30/08/2022,10.21,R & B Transformation 2,Supplies & Services,T35026/D200008,Housing Stock Accounts,Payments to Contractors External
Ashfield District Council,37UB,Grafton Merchanting GB Ltd t/a Jackson Buildbase,V1004486,30/08/2022,181.98,R & B Transformation 2,Supplies & Services,T35026/D200008,Housing Stock Accounts,Payments to Contractors External
Ashfield District Council,37UB,Grafton Merchanting GB Ltd t/a Jackson Buildbase,V1004486,30/08/2022,23,R & B Transformation 2,Supplies & Services,T35026/D200008,Housing Stock Accounts,Payments to Contractors External
Ashfield District Council,37UB,Grafton Merchanting GB Ltd t/a Jackson Buildbase,V1004486,30/08/2022,3.28,R & B Transformation 2,Supplies & Services,T35026/D200008,Housing Stock Accounts,Payments to Contractors External
Ashfield District Council,37UB,Grafton Merchanting GB Ltd t/a Jackson Buildbase,V1004486,30/08/2022,14.08,R & B Transformation 2,Supplies & Services,T35026/D200008,Housing Stock Accounts,Payments to Contractors External
Ashfield District Council,37UB,Grafton Merchanting GB Ltd t/a Jackson Buildbase,V1004486,30/08/2022,14,R & B Transformation 2,Supplies & Services,T35026/D200008,Housing Stock Accounts,Payments to Contractors External
Ashfield District Council,37UB,Grafton Merchanting GB Ltd t/a Jackson Buildbase,V1004486,30/08/2022,40.5,R & B Transformation 2,Supplies & Services,T35026/D200008,Housing Stock Accounts,Payments to Contractors External
Ashfield District Council,37UB,Grafton Merchanting GB Ltd t/a Jackson Buildbase,V1004487,30/08/2022,188.52,R & B Transformation 2,Supplies & Services,T35026/D200008,Housing Stock Accounts,Payments to Contractors External
Ashfield District Council,37UB,Grafton Merchanting GB Ltd t/a Jackson Buildbase,V1004488,30/08/2022,96.72,R & B Transformation 2,Supplies & Services,T35026/D200008,Housing Stock Accounts,Payments to Contractors External
Ashfield District Council,37UB,Grafton Merchanting GB Ltd t/a Jackson Buildbase,V1004492,30/08/2022,72.6,R & B Transformation 2,Supplies & Services,T35026/D200008,Housing Stock Accounts,Payments to Contractors External
Ashfield District Council,37UB,Grafton Merchanting GB Ltd t/a Jackson Buildbase,V1004492,30/08/2022,85.8,R & B Transformation 2,Supplies & Services,T35026/D200008,Housing Stock Accounts,Payments to Contractors External
Ashfield District Council,37UB,Grafton Merchanting GB Ltd t/a Jackson Buildbase,V1004492,30/08/2022,92.4,R & B Transformation 2,Supplies & Services,T35026/D200008,Housing Stock Accounts,Payments to Contractors External
Ashfield District Council,37UB,Grafton Merchanting GB Ltd t/a Jackson Buildbase,V1004493,30/08/2022,9.72,R & B Transformation 2,Supplies & Services,T35026/D200008,Housing Stock Accounts,Payments to Contractors External
Ashfield District Council,37UB,Grafton Merchanting GB Ltd t/a Jackson Buildbase,V1004493,30/08/2022,8.76,R & B Transformation 2,Supplies & Services,T35026/D200008,Housing Stock Accounts,Payments to Contractors External
Ashfield District Council,37UB,Grafton Merchanting GB Ltd t/a Jackson Buildbase,V1004493,30/08/2022,8.45,R & B Transformation 2,Supplies & Services,T35026/D200008,Housing Stock Accounts,Payments to Contractors External
Ashfield District Council,37UB,Grafton Merchanting GB Ltd t/a Jackson Buildbase,V1004493,30/08/2022,1.25,R & B Transformation 2,Supplies & Services,T35026/D200008,Housing Stock Accounts,Payments to Contractors External
Ashfield District Council,37UB,Grafton Merchanting GB Ltd t/a Jackson Buildbase,V1004494,30/08/2022,318,R & B Transformation 2,Supplies & Services,T35026/D200008,Housing Stock Accounts,Payments to Contractors External
Ashfield District Council,37UB,Grafton Merchanting GB Ltd t/a Jackson Buildbase,V1004495,30/08/2022,234,R & B Transformation 2,Supplies & Services,T35026/D200008,Housing Stock Accounts,Payments to Contractors External
Ashfield District Council,37UB,Grafton Merchanting GB Ltd t/a Jackson Buildbase,V1004496,30/08/2022,119.8,R & B Transformation 2,Supplies & Services,T35026/D200008,Housing Stock Accounts,Payments to Contractors External
Ashfield District Council,37UB,Grafton Merchanting GB Ltd t/a Jackson Buildbase,V1004497,30/08/2022,172.5,R & B Transformation 2,Supplies & Services,T35026/D200008,Housing Stock Accounts,Payments to Contractors External
Ashfield District Council,37UB,Grafton Merchanting GB Ltd t/a Jackson Buildbase,V1004498,30/08/2022,296,R & B Transformation 2,Supplies & Services,T35026/D200008,Housing Stock Accounts,Payments to Contractors External
Ashfield District Council,37UB,Grafton Merchanting GB Ltd t/a Jackson Buildbase,V1004498,30/08/2022,101.34,R & B Transformation 2,Supplies & Services,T35026/D200008,Housing Stock Accounts,Payments to Contractors External
Ashfield District Council,37UB,Grafton Merchanting GB Ltd t/a Jackson Buildbase,V1004499,30/08/2022,60.66,R & B Transformation 2,Supplies & Services,T35026/D200008,Housing Stock Accounts,Payments to Contractors External
Ashfield District Council,37UB,Grafton Merchanting GB Ltd t/a Jackson Buildbase,V1004500,30/08/2022,85.6,R & B Transformation 2,Supplies & Services,T35026/D200008,Housing Stock Accounts,Payments to Contractors External
Ashfield District Council,37UB,Grafton Merchanting GB Ltd t/a Jackson Buildbase,V1004500,30/08/2022,83.33,R & B Transformation 2,Supplies & Services,T35026/D200008,Housing Stock Accounts,Payments to Contractors External
Ashfield District Council,37UB,Grafton Merchanting GB Ltd t/a Jackson Buildbase,V1004501,30/08/2022,5.74,R & B Transformation 2,Supplies & Services,T35026/D200008,Housing Stock Accounts,Payments to Contractors External
Ashfield District Council,37UB,Grafton Merchanting GB Ltd t/a Jackson Buildbase,V1004501,30/08/2022,30.63,R & B Transformation 2,Supplies & Services,T35026/D200008,Housing Stock Accounts,Payments to Contractors External
Ashfield District Council,37UB,Grafton Merchanting GB Ltd t/a Jackson Buildbase,V1004502,30/08/2022,119.8,R & B Transformation 2,Supplies & Services,T35026/D200008,Housing Stock Accounts,Payments to Contractors External
Ashfield District Council,37UB,Grafton Merchanting GB Ltd t/a Jackson Buildbase,V1004503,30/08/2022,142.5,R & B Transformation 2,Supplies & Services,T35026/D200008,Housing Stock Accounts,Payments to Contractors External
Ashfield District Council,37UB,Grafton Merchanting GB Ltd t/a Jackson Buildbase,V1004503,30/08/2022,344,R & B Transformation 2,Supplies & Services,T35026/D200008,Housing Stock Accounts,Payments to Contractors External
Ashfield District Council,37UB,Grafton Merchanting GB Ltd t/a Jackson Buildbase,V1004503,30/08/2022,71.25,R & B Transformation 2,Supplies & Services,T35026/D200008,Housing Stock Accounts,Payments to Contractors External
Ashfield District Council,37UB,Grafton Merchanting GB Ltd t/a Jackson Buildbase,V1004504,30/08/2022,44.87,R & B Transformation 2,Supplies & Services,T35026/D200008,Housing Stock Accounts,Payments to Contractors External
Ashfield District Council,37UB,Grafton Merchanting GB Ltd t/a Jackson Buildbase,V1004504,30/08/2022,94.5,R & B Transformation 2,Supplies & Services,T35026/D200008,Housing Stock Accounts,Payments to Contractors External
Ashfield District Council,37UB,Grafton Merchanting GB Ltd t/a Jackson Buildbase,V1004505,30/08/2022,146.74,R & B Transformation 2,Supplies & Services,T35026/D200008,Housing Stock Accounts,Payments to Contractors External
Ashfield District Council,37UB,Grafton Merchanting GB Ltd t/a Jackson Buildbase,V1004506,30/08/2022,288.9,R & B Transformation 2,Supplies & Services,T35026/D200008,Housing Stock Accounts,Payments to Contractors External
Ashfield District Council,37UB,Grafton Merchanting GB Ltd t/a Jackson Buildbase,V1004507,30/08/2022,147.84,R & B Transformation 2,Supplies & Services,T35026/D200008,Housing Stock Accounts,Payments to Contractors External
Ashfield District Council,37UB,Grafton Merchanting GB Ltd t/a Jackson Buildbase,V1004508,30/08/2022,20.22,R & B Transformation 2,Supplies & Services,T35026/D200008,Housing Stock Accounts,Payments to Contractors External
Ashfield District Council,37UB,Grafton Merchanting GB Ltd t/a Jackson Buildbase,V1004509,30/08/2022,546.04,R & B Transformation 2,Supplies & Services,T35026/D200008,Housing Stock Accounts,Payments to Contractors External
Ashfield District Council,37UB,Grafton Merchanting GB Ltd t/a Jackson Buildbase,V1004510,30/08/2022,2.4,R & B Transformation 2,Supplies & Services,T35026/D200008,Housing Stock Accounts,Payments to Contractors External
Ashfield District Council,37UB,Grafton Merchanting GB Ltd t/a Jackson Buildbase,V1004511,30/08/2022,216,R & B Transformation 2,Supplies & Services,T35026/D200008,Housing Stock Accounts,Payments to Contractors External
Ashfield District Council,37UB,Grafton Merchanting GB Ltd t/a Jackson Buildbase,V1004513,30/08/2022,2.4,R & B Transformation 2,Supplies & Services,T35026/D200008,Housing Stock Accounts,Payments to Contractors External
Ashfield District Council,37UB,Grafton Merchanting GB Ltd t/a Jackson Buildbase,V1004513,30/08/2022,1.2,R & B Transformation 2,Supplies & Services,T35026/D200008,Housing Stock Accounts,Payments to Contractors External
Ashfield District Council,37UB,Grafton Merchanting GB Ltd t/a Jackson Buildbase,V1004515,30/08/2022,5.84,R & B Transformation 2,Supplies & Services,T35026/D200008,Housing Stock Accounts,Payments to Contractors External
Ashfield District Council,37UB,Grafton Merchanting GB Ltd t/a Jackson Buildbase,V1004515,30/08/2022,104.5,R & B Transformation 2,Supplies & Services,T35026/D200008,Housing Stock Accounts,Payments to Contractors External
Ashfield District Council,37UB,Grafton Merchanting GB Ltd t/a Jackson Buildbase,V1004515,30/08/2022,14.6,R & B Transformation 2,Supplies & Services,T35026/D200008,Housing Stock Accounts,Payments to Contractors External
Ashfield District Council,37UB,Grafton Merchanting GB Ltd t/a Jackson Buildbase,V1004515,30/08/2022,17.75,R & B Transformation 2,Supplies & Services,T35026/D200008,Housing Stock Accounts,Payments to Contractors External
Ashfield District Council,37UB,Grafton Merchanting GB Ltd t/a Jackson Buildbase,V1004515,30/08/2022,6.48,R & B Transformation 2,Supplies & Services,T35026/D200008,Housing Stock Accounts,Payments to Contractors External
Ashfield District Council,37UB,Grafton Merchanting GB Ltd t/a Jackson Buildbase,V1004515,30/08/2022,11.5,R & B Transformation 2,Supplies & Services,T35026/D200008,Housing Stock Accounts,Payments to Contractors External
Ashfield District Council,37UB,Grafton Merchanting GB Ltd t/a Jackson Buildbase,V1004515,30/08/2022,11.25,R & B Transformation 2,Supplies & Services,T35026/D200008,Housing Stock Accounts,Payments to Contractors External
Ashfield District Council,37UB,Grafton Merchanting GB Ltd t/a Jackson Buildbase,V1004523,30/08/2022,181.97,R & B Transformation 2,Supplies & Services,T35026/D200008,Housing Stock Accounts,Payments to Contractors External
Ashfield District Council,37UB,Grafton Merchanting GB Ltd t/a Jackson Buildbase,V1004525,30/08/2022,66.17,R & B Transformation 2,Supplies & Services,T35026/D200008,Housing Stock Accounts,Payments to Contractors External
Ashfield District Council,37UB,Grafton Merchanting GB Ltd t/a Jackson Buildbase,V1004525,30/08/2022,140.7,R & B Transformation 2,Supplies & Services,T35026/D200008,Housing Stock Accounts,Payments to Contractors External
Ashfield District Council,37UB,Grafton Merchanting GB Ltd t/a Jackson Buildbase,V1004526,30/08/2022,82.23,R & B Transformation 2,Supplies & Services,T35026/D200008,Housing Stock Accounts,Payments to Contractors External
Ashfield District Council,37UB,Grafton Merchanting GB Ltd t/a Jackson Buildbase,V1004527,30/08/2022,311.02,R & B Transformation 2,Supplies & Services,T35026/D200008,Housing Stock Accounts,Payments to Contractors External
Ashfield District Council,37UB,Grafton Merchanting GB Ltd t/a Jackson Buildbase,V1004528,30/08/2022,182.4,R & B Transformation 2,Supplies & Services,T35026/D200008,Housing Stock Accounts,Payments to Contractors External
Ashfield District Council,37UB,Grafton Merchanting GB Ltd t/a Jackson Buildbase,V1004528,30/08/2022,322.22,R & B Transformation 2,Supplies & Services,T35026/D200008,Housing Stock Accounts,Payments to Contractors External
Ashfield District Council,37UB,Grafton Merchanting GB Ltd t/a Jackson Buildbase,V1004528,30/08/2022,202.2,R & B Transformation 2,Supplies & Services,T35026/D200008,Housing Stock Accounts,Payments to Contractors External
Ashfield District Council,37UB,Grafton Merchanting GB Ltd t/a Jackson Buildbase,V1004529,30/08/2022,38.4,R & B Transformation 2,Supplies & Services,T35026/D200008,Housing Stock Accounts,Payments to Contractors External
Ashfield District Council,37UB,Grafton Merchanting GB Ltd t/a Jackson Buildbase,V1004529,30/08/2022,4.8,R & B Transformation 2,Supplies & Services,T35026/D200008,Housing Stock Accounts,Payments to Contractors External
Ashfield District Council,37UB,Grafton Merchanting GB Ltd t/a Jackson Buildbase,V1004530,30/08/2022,167.2,R & B Transformation 2,Supplies & Services,T35026/D200008,Housing Stock Accounts,Payments to Contractors External
Ashfield District Council,37UB,Grafton Merchanting GB Ltd t/a Jackson Buildbase,V1004531,30/08/2022,22.9,R & B Transformation 2,Supplies & Services,T35026/D200008,Housing Stock Accounts,Payments to Contractors External
Ashfield District Council,37UB,Greenham Trading Ltd,V1003313,15/08/2022,149.04,R & B Transformation 2,Supplies & Services,T35026/D200008,Housing Stock Accounts,Payments to Contractors External
Ashfield District Council,37UB,High Park Industries Ltd,V1002021,01/08/2022,162.51,R & B Transformation 2,Supplies & Services,T35026/D200008,Housing Stock Accounts,Payments to Contractors External
Ashfield District Council,37UB,High Park Industries Ltd,V1002021,01/08/2022,54.87,R & B Transformation 2,Supplies & Services,T35026/D200008,Housing Stock Accounts,Payments to Contractors External
Ashfield District Council,37UB,Jackson Building Centres Ltd,V0995314,25/08/2022,-15.36,R & B Transformation 2,Supplies & Services,T35026/D200008,Housing Stock Accounts,Payments to Contractors External
Ashfield District Council,37UB,JWL (Architectural Ironmongers) Ltd,V1004448,30/08/2022,223.65,R & B Transformation 2,Supplies & Services,T35026/D200008,Housing Stock Accounts,Payments to Contractors External
Ashfield District Council,37UB,Nationwide Hygiene Supplies Limited,V1004449,30/08/2022,159.36,R & B Transformation 2,Supplies & Services,T35026/D200008,Housing Stock Accounts,Payments to Contractors External
Ashfield District Council,37UB,Nationwide Windows Limited,V1002017,01/08/2022,620.4,R & B Transformation 2,Supplies & Services,T35026/D200008,Housing Stock Accounts,Payments to Contractors External
Ashfield District Council,37UB,Nuaire a division of Polypipe,V1004454,30/08/2022,286,R & B Transformation 2,Supplies & Services,T35026/D200008,Housing Stock Accounts,Payments to Contractors External
Ashfield District Council,37UB,Nuaire a division of Polypipe,V1004454,30/08/2022,275,R & B Transformation 2,Supplies & Services,T35026/D200008,Housing Stock Accounts,Payments to Contractors External
Ashfield District Council,37UB,Nuaire a division of Polypipe,V1004455,30/08/2022,220,R & B Transformation 2,Supplies & Services,T35026/D200008,Housing Stock Accounts,Payments to Contractors External
Ashfield District Council,37UB,Nuaire a division of Polypipe,V1004455,30/08/2022,220,R & B Transformation 2,Supplies & Services,T35026/D200008,Housing Stock Accounts,Payments to Contractors External
Ashfield District Council,37UB,Permadoor,V1002020,01/08/2022,37.6,R & B Transformation 2,Supplies & Services,T35026/D200008,Housing Stock Accounts,Payments to Contractors External
Ashfield District Council,37UB,Permadoor,V1004456,30/08/2022,589.45,R & B Transformation 2,Supplies & Services,T35026/D200008,Housing Stock Accounts,Payments to Contractors External
Ashfield District Council,37UB,Permadoor,V1004457,30/08/2022,691.89,R & B Transformation 2,Supplies & Services,T35026/D200008,Housing Stock Accounts,Payments to Contractors External
Ashfield District Council,37UB,Permadoor,V1004458,30/08/2022,340.04,R & B Transformation 2,Supplies & Services,T35026/D200008,Housing Stock Accounts,Payments to Contractors External
Ashfield District Council,37UB,Permadoor,V1004459,30/08/2022,357.64,R & B Transformation 2,Supplies & Services,T35026/D200008,Housing Stock Accounts,Payments to Contractors External
Ashfield District Council,37UB,Permadoor,V1004460,30/08/2022,589.45,R & B Transformation 2,Supplies & Services,T35026/D200008,Housing Stock Accounts,Payments to Contractors External
Ashfield District Council,37UB,Permadoor,V1004480,30/08/2022,715.28,R & B Transformation 2,Supplies & Services,T35026/D200008,Housing Stock Accounts,Payments to Contractors External
Ashfield District Council,37UB,Permadoor,V1004516,30/08/2022,313,R & B Transformation 2,Supplies & Services,T35026/D200008,Housing Stock Accounts,Payments to Contractors External
Ashfield District Council,37UB,Permadoor,V1004524,30/08/2022,89.25,R & B Transformation 2,Supplies & Services,T35026/D200008,Housing Stock Accounts,Payments to Contractors External
Ashfield District Council,37UB,PWS (Protective Wear Supplies) Limited,V1002027,01/08/2022,26.37,R & B Transformation 2,Supplies & Services,T35026/D200008,Housing Stock Accounts,Payments to Contractors External
Ashfield District Council,37UB,PWS (Protective Wear Supplies) Limited,V1002027,01/08/2022,31.92,R & B Transformation 2,Supplies & Services,T35026/D200008,Housing Stock Accounts,Payments to Contractors External
Ashfield District Council,37UB,PWS (Protective Wear Supplies) Limited,V1002027,01/08/2022,12.52,R & B Transformation 2,Supplies & Services,T35026/D200008,Housing Stock Accounts,Payments to Contractors External
Ashfield District Council,37UB,PWS (Protective Wear Supplies) Limited,V1002028,01/08/2022,238,R & B Transformation 2,Supplies & Services,T35026/D200008,Housing Stock Accounts,Payments to Contractors External
Ashfield District Council,37UB,PWS (Protective Wear Supplies) Limited,V1002028,01/08/2022,119,R & B Transformation 2,Supplies & Services,T35026/D200008,Housing Stock Accounts,Payments to Contractors External
Ashfield District Council,37UB,PWS (Protective Wear Supplies) Limited,V1002030,01/08/2022,77.8,R & B Transformation 2,Supplies & Services,T35026/D200008,Housing Stock Accounts,Payments to Contractors External
Ashfield District Council,37UB,PWS (Protective Wear Supplies) Limited,V1002031,01/08/2022,40.16,R & B Transformation 2,Supplies & Services,T35026/D200008,Housing Stock Accounts,Payments to Contractors External
Ashfield District Council,37UB,PWS (Protective Wear Supplies) Limited,V1002031,01/08/2022,100.4,R & B Transformation 2,Supplies & Services,T35026/D200008,Housing Stock Accounts,Payments to Contractors External
Ashfield District Council,37UB,PWS (Protective Wear Supplies) Limited,V1002572,08/08/2022,-16,R & B Transformation 2,Supplies & Services,T35026/D200008,Housing Stock Accounts,Payments to Contractors External
Ashfield District Council,37UB,PWS (Protective Wear Supplies) Limited,V1002667,08/08/2022,226.44,R & B Transformation 2,Supplies & Services,T35026/D200008,Housing Stock Accounts,Payments to Contractors External
Ashfield District Council,37UB,PWS (Protective Wear Supplies) Limited,V1002670,08/08/2022,261.12,R & B Transformation 2,Supplies & Services,T35026/D200008,Housing Stock Accounts,Payments to Contractors External
Ashfield District Council,37UB,PWS (Protective Wear Supplies) Limited,V1002670,08/08/2022,11.2,R & B Transformation 2,Supplies & Services,T35026/D200008,Housing Stock Accounts,Payments to Contractors External
Ashfield District Council,37UB,PWS (Protective Wear Supplies) Limited,V1002670,08/08/2022,321,R & B Transformation 2,Supplies & Services,T35026/D200008,Housing Stock Accounts,Payments to Contractors External
Ashfield District Council,37UB,PWS (Protective Wear Supplies) Limited,V1002670,08/08/2022,238,R & B Transformation 2,Supplies & Services,T35026/D200008,Housing Stock Accounts,Payments to Contractors External
Ashfield District Council,37UB,PWS (Protective Wear Supplies) Limited,V1002701,08/08/2022,64.8,R & B Transformation 2,Supplies & Services,T35026/D200008,Housing Stock Accounts,Payments to Contractors External
Ashfield District Council,37UB,PWS (Protective Wear Supplies) Limited,V1002702,08/08/2022,77.8,R & B Transformation 2,Supplies & Services,T35026/D200008,Housing Stock Accounts,Payments to Contractors External
Ashfield District Council,37UB,PWS (Protective Wear Supplies) Limited,V1002703,08/08/2022,64.8,R & B Transformation 2,Supplies & Services,T35026/D200008,Housing Stock Accounts,Payments to Contractors External
Ashfield District Council,37UB,PWS (Protective Wear Supplies) Limited,V1002703,08/08/2022,100.4,R & B Transformation 2,Supplies & Services,T35026/D200008,Housing Stock Accounts,Payments to Contractors External
Ashfield District Council,37UB,PWS (Protective Wear Supplies) Limited,V1002703,08/08/2022,64.8,R & B Transformation 2,Supplies & Services,T35026/D200008,Housing Stock Accounts,Payments to Contractors External
Ashfield District Council,37UB,PWS (Protective Wear Supplies) Limited,V1002703,08/08/2022,64.8,R & B Transformation 2,Supplies & Services,T35026/D200008,Housing Stock Accounts,Payments to Contractors External
Ashfield District Council,37UB,PWS (Protective Wear Supplies) Limited,V1002703,08/08/2022,46.8,R & B Transformation 2,Supplies & Services,T35026/D200008,Housing Stock Accounts,Payments to Contractors External
Ashfield District Council,37UB,PWS (Protective Wear Supplies) Limited,V1002703,08/08/2022,60.24,R & B Transformation 2,Supplies & Services,T35026/D200008,Housing Stock Accounts,Payments to Contractors External
Ashfield District Council,37UB,PWS (Protective Wear Supplies) Limited,V1002703,08/08/2022,64.8,R & B Transformation 2,Supplies & Services,T35026/D200008,Housing Stock Accounts,Payments to Contractors External
Ashfield District Council,37UB,PWS (Protective Wear Supplies) Limited,V1002703,08/08/2022,100.4,R & B Transformation 2,Supplies & Services,T35026/D200008,Housing Stock Accounts,Payments to Contractors External
Ashfield District Council,37UB,PWS (Protective Wear Supplies) Limited,V1002708,08/08/2022,17.58,R & B Transformation 2,Supplies & Services,T35026/D200008,Housing Stock Accounts,Payments to Contractors External
Ashfield District Council,37UB,PWS (Protective Wear Supplies) Limited,V1002708,08/08/2022,18.36,R & B Transformation 2,Supplies & Services,T35026/D200008,Housing Stock Accounts,Payments to Contractors External
Ashfield District Council,37UB,PWS (Protective Wear Supplies) Limited,V1002721,08/08/2022,391.68,R & B Transformation 2,Supplies & Services,T35026/D200008,Housing Stock Accounts,Payments to Contractors External
Ashfield District Council,37UB,PWS (Protective Wear Supplies) Limited,V1003315,15/08/2022,11.37,R & B Transformation 2,Supplies & Services,T35026/D200008,Housing Stock Accounts,Payments to Contractors External
Ashfield District Council,37UB,PWS (Protective Wear Supplies) Limited,V1003315,15/08/2022,9.36,R & B Transformation 2,Supplies & Services,T35026/D200008,Housing Stock Accounts,Payments to Contractors External
Ashfield District Council,37UB,PWS (Protective Wear Supplies) Limited,V1003315,15/08/2022,16,R & B Transformation 2,Supplies & Services,T35026/D200008,Housing Stock Accounts,Payments to Contractors External
Ashfield District Council,37UB,PWS (Protective Wear Supplies) Limited,V1003315,15/08/2022,9.36,R & B Transformation 2,Supplies & Services,T35026/D200008,Housing Stock Accounts,Payments to Contractors External
Ashfield District Council,37UB,PWS (Protective Wear Supplies) Limited,V1003315,15/08/2022,120,R & B Transformation 2,Supplies & Services,T35026/D200008,Housing Stock Accounts,Payments to Contractors External
Ashfield District Council,37UB,PWS (Protective Wear Supplies) Limited,V1003315,15/08/2022,163.8,R & B Transformation 2,Supplies & Services,T35026/D200008,Housing Stock Accounts,Payments to Contractors External
Ashfield District Council,37UB,PWS (Protective Wear Supplies) Limited,V1003315,15/08/2022,18.95,R & B Transformation 2,Supplies & Services,T35026/D200008,Housing Stock Accounts,Payments to Contractors External
Ashfield District Council,37UB,PWS (Protective Wear Supplies) Limited,V1003315,15/08/2022,24,R & B Transformation 2,Supplies & Services,T35026/D200008,Housing Stock Accounts,Payments to Contractors External
Ashfield District Council,37UB,PWS (Protective Wear Supplies) Limited,V1003979,19/08/2022,36.99,R & B Transformation 2,Supplies & Services,T35026/D200008,Housing Stock Accounts,Payments to Contractors External
Ashfield District Council,37UB,PWS (Protective Wear Supplies) Limited,V1003980,19/08/2022,38.94,R & B Transformation 2,Supplies & Services,T35026/D200008,Housing Stock Accounts,Payments to Contractors External
Ashfield District Council,37UB,PWS (Protective Wear Supplies) Limited,V1003980,19/08/2022,194.7,R & B Transformation 2,Supplies & Services,T35026/D200008,Housing Stock Accounts,Payments to Contractors External
Ashfield District Council,37UB,PWS (Protective Wear Supplies) Limited,V1003980,19/08/2022,38.94,R & B Transformation 2,Supplies & Services,T35026/D200008,Housing Stock Accounts,Payments to Contractors External
Ashfield District Council,37UB,PWS (Protective Wear Supplies) Limited,V1003980,19/08/2022,23.4,R & B Transformation 2,Supplies & Services,T35026/D200008,Housing Stock Accounts,Payments to Contractors External
Ashfield District Council,37UB,PWS (Protective Wear Supplies) Limited,V1003980,19/08/2022,38.94,R & B Transformation 2,Supplies & Services,T35026/D200008,Housing Stock Accounts,Payments to Contractors External
Ashfield District Council,37UB,PWS (Protective Wear Supplies) Limited,V1003980,19/08/2022,38.94,R & B Transformation 2,Supplies & Services,T35026/D200008,Housing Stock Accounts,Payments to Contractors External
Ashfield District Council,37UB,PWS (Protective Wear Supplies) Limited,V1003980,19/08/2022,38.94,R & B Transformation 2,Supplies & Services,T35026/D200008,Housing Stock Accounts,Payments to Contractors External
Ashfield District Council,37UB,PWS (Protective Wear Supplies) Limited,V1003981,19/08/2022,355.2,R & B Transformation 2,Supplies & Services,T35026/D200008,Housing Stock Accounts,Payments to Contractors External
Ashfield District Council,37UB,PWS (Protective Wear Supplies) Limited,V1003982,19/08/2022,38.94,R & B Transformation 2,Supplies & Services,T35026/D200008,Housing Stock Accounts,Payments to Contractors External
Ashfield District Council,37UB,PWS (Protective Wear Supplies) Limited,V1003983,19/08/2022,9.5,R & B Transformation 2,Supplies & Services,T35026/D200008,Housing Stock Accounts,Payments to Contractors External
Ashfield District Council,37UB,PWS (Protective Wear Supplies) Limited,V1003983,19/08/2022,97.35,R & B Transformation 2,Supplies & Services,T35026/D200008,Housing Stock Accounts,Payments to Contractors External
Ashfield District Council,37UB,PWS (Protective Wear Supplies) Limited,V1003983,19/08/2022,19,R & B Transformation 2,Supplies & Services,T35026/D200008,Housing Stock Accounts,Payments to Contractors External
Ashfield District Council,37UB,PWS (Protective Wear Supplies) Limited,V1003985,19/08/2022,8.75,R & B Transformation 2,Supplies & Services,T35026/D200008,Housing Stock Accounts,Payments to Contractors External
Ashfield District Council,37UB,PWS (Protective Wear Supplies) Limited,V1003985,19/08/2022,177.6,R & B Transformation 2,Supplies & Services,T35026/D200008,Housing Stock Accounts,Payments to Contractors External
Ashfield District Council,37UB,PWS (Protective Wear Supplies) Limited,V1004481,30/08/2022,26.5,R & B Transformation 2,Supplies & Services,T35026/D200008,Housing Stock Accounts,Payments to Contractors External
Ashfield District Council,37UB,PWS (Protective Wear Supplies) Limited,V1004481,30/08/2022,32.38,R & B Transformation 2,Supplies & Services,T35026/D200008,Housing Stock Accounts,Payments to Contractors External
Ashfield District Council,37UB,PWS (Protective Wear Supplies) Limited,V1004481,30/08/2022,110.16,R & B Transformation 2,Supplies & Services,T35026/D200008,Housing Stock Accounts,Payments to Contractors External
Ashfield District Council,37UB,PWS (Protective Wear Supplies) Limited,V1004532,30/08/2022,128.4,R & B Transformation 2,Supplies & Services,T35026/D200008,Housing Stock Accounts,Payments to Contractors External
Ashfield District Council,37UB,PWS (Protective Wear Supplies) Limited,V1004532,30/08/2022,224.7,R & B Transformation 2,Supplies & Services,T35026/D200008,Housing Stock Accounts,Payments to Contractors External
Ashfield District Council,37UB,PWS (Protective Wear Supplies) Limited,V1004533,30/08/2022,96.3,R & B Transformation 2,Supplies & Services,T35026/D200008,Housing Stock Accounts,Payments to Contractors External
Ashfield District Council,37UB,PWS (Protective Wear Supplies) Limited,V1004533,30/08/2022,192.6,R & B Transformation 2,Supplies & Services,T35026/D200008,Housing Stock Accounts,Payments to Contractors External
Ashfield District Council,37UB,PWS (Protective Wear Supplies) Limited,V1004533,30/08/2022,192.6,R & B Transformation 2,Supplies & Services,T35026/D200008,Housing Stock Accounts,Payments to Contractors External
Ashfield District Council,37UB,PWS (Protective Wear Supplies) Limited,V1004534,30/08/2022,138,R & B Transformation 2,Supplies & Services,T35026/D200008,Housing Stock Accounts,Payments to Contractors External
Ashfield District Council,37UB,PWS (Protective Wear Supplies) Limited,V1004535,30/08/2022,14.4,R & B Transformation 2,Supplies & Services,T35026/D200008,Housing Stock Accounts,Payments to Contractors External
Ashfield District Council,37UB,PWS (Protective Wear Supplies) Limited,V1004535,30/08/2022,12.36,R & B Transformation 2,Supplies & Services,T35026/D200008,Housing Stock Accounts,Payments to Contractors External
Ashfield District Council,37UB,PWS (Protective Wear Supplies) Limited,V1004535,30/08/2022,14.76,R & B Transformation 2,Supplies & Services,T35026/D200008,Housing Stock Accounts,Payments to Contractors External
Ashfield District Council,37UB,PWS (Protective Wear Supplies) Limited,V1004535,30/08/2022,21.6,R & B Transformation 2,Supplies & Services,T35026/D200008,Housing Stock Accounts,Payments to Contractors External
Ashfield District Council,37UB,PWS (Protective Wear Supplies) Limited,V1004536,30/08/2022,93.36,R & B Transformation 2,Supplies & Services,T35026/D200008,Housing Stock Accounts,Payments to Contractors External
Ashfield District Council,37UB,PWS (Protective Wear Supplies) Limited,V1004537,30/08/2022,195.84,R & B Transformation 2,Supplies & Services,T35026/D200008,Housing Stock Accounts,Payments to Contractors External
Ashfield District Council,37UB,PWS (Protective Wear Supplies) Limited,V1004537,30/08/2022,40.26,R & B Transformation 2,Supplies & Services,T35026/D200008,Housing Stock Accounts,Payments to Contractors External
Ashfield District Council,37UB,PWS (Protective Wear Supplies) Limited,V1004538,30/08/2022,128.4,R & B Transformation 2,Supplies & Services,T35026/D200008,Housing Stock Accounts,Payments to Contractors External
Ashfield District Council,37UB,PWS (Protective Wear Supplies) Limited,V1004538,30/08/2022,128.4,R & B Transformation 2,Supplies & Services,T35026/D200008,Housing Stock Accounts,Payments to Contractors External
Ashfield District Council,37UB,PWS (Protective Wear Supplies) Limited,V1004539,30/08/2022,194.7,R & B Transformation 2,Supplies & Services,T35026/D200008,Housing Stock Accounts,Payments to Contractors External
Ashfield District Council,37UB,PWS (Protective Wear Supplies) Limited,V1004539,30/08/2022,194.7,R & B Transformation 2,Supplies & Services,T35026/D200008,Housing Stock Accounts,Payments to Contractors External
Ashfield District Council,37UB,PWS (Protective Wear Supplies) Limited,V1004539,30/08/2022,35.55,R & B Transformation 2,Supplies & Services,T35026/D200008,Housing Stock Accounts,Payments to Contractors External
Ashfield District Council,37UB,PWS (Protective Wear Supplies) Limited,V1004539,30/08/2022,14.25,R & B Transformation 2,Supplies & Services,T35026/D200008,Housing Stock Accounts,Payments to Contractors External
Ashfield District Council,37UB,PWS (Protective Wear Supplies) Limited,V1004539,30/08/2022,14.25,R & B Transformation 2,Supplies & Services,T35026/D200008,Housing Stock Accounts,Payments to Contractors External
Ashfield District Council,37UB,PWS (Protective Wear Supplies) Limited,V1004539,30/08/2022,194.7,R & B Transformation 2,Supplies & Services,T35026/D200008,Housing Stock Accounts,Payments to Contractors External
Ashfield District Council,37UB,PWS (Protective Wear Supplies) Limited,V1004539,30/08/2022,194.7,R & B Transformation 2,Supplies & Services,T35026/D200008,Housing Stock Accounts,Payments to Contractors External
Ashfield District Council,37UB,PWS (Protective Wear Supplies) Limited,V1004539,30/08/2022,35.55,R & B Transformation 2,Supplies & Services,T35026/D200008,Housing Stock Accounts,Payments to Contractors External
Ashfield District Council,37UB,Rexel UK Limited,V1002071,01/08/2022,56.5,R & B Transformation 2,Supplies & Services,T35026/D200008,Housing Stock Accounts,Payments to Contractors External
Ashfield District Council,37UB,Rexel UK Limited,V1002073,01/08/2022,19.95,R & B Transformation 2,Supplies & Services,T35026/D200008,Housing Stock Accounts,Payments to Contractors External
Ashfield District Council,37UB,Rexel UK Limited,V1002677,08/08/2022,251.28,R & B Transformation 2,Supplies & Services,T35026/D200008,Housing Stock Accounts,Payments to Contractors External
Ashfield District Council,37UB,Rexel UK Limited,V1002678,08/08/2022,14.1,R & B Transformation 2,Supplies & Services,T35026/D200008,Housing Stock Accounts,Payments to Contractors External
Ashfield District Council,37UB,Rexel UK Limited,V1002678,08/08/2022,13,R & B Transformation 2,Supplies & Services,T35026/D200008,Housing Stock Accounts,Payments to Contractors External
Ashfield District Council,37UB,Rexel UK Limited,V1002678,08/08/2022,58,R & B Transformation 2,Supplies & Services,T35026/D200008,Housing Stock Accounts,Payments to Contractors External
Ashfield District Council,37UB,Rexel UK Limited,V1002679,08/08/2022,133.83,R & B Transformation 2,Supplies & Services,T35026/D200008,Housing Stock Accounts,Payments to Contractors External
Ashfield District Council,37UB,Rexel UK Limited,V1002680,08/08/2022,1761,R & B Transformation 2,Supplies & Services,T35026/D200008,Housing Stock Accounts,Payments to Contractors External
Ashfield District Council,37UB,Rexel UK Limited,V1002680,08/08/2022,24,R & B Transformation 2,Supplies & Services,T35026/D200008,Housing Stock Accounts,Payments to Contractors External
Ashfield District Council,37UB,Rexel UK Limited,V1002680,08/08/2022,9,R & B Transformation 2,Supplies & Services,T35026/D200008,Housing Stock Accounts,Payments to Contractors External
Ashfield District Council,37UB,Rexel UK Limited,V1002682,08/08/2022,2.6,R & B Transformation 2,Supplies & Services,T35026/D200008,Housing Stock Accounts,Payments to Contractors External
Ashfield District Council,37UB,Rexel UK Limited,V1002682,08/08/2022,3,R & B Transformation 2,Supplies & Services,T35026/D200008,Housing Stock Accounts,Payments to Contractors External
Ashfield District Council,37UB,Rexel UK Limited,V1002683,08/08/2022,10.4,R & B Transformation 2,Supplies & Services,T35026/D200008,Housing Stock Accounts,Payments to Contractors External
Ashfield District Council,37UB,Rexel UK Limited,V1002684,08/08/2022,14.87,R & B Transformation 2,Supplies & Services,T35026/D200008,Housing Stock Accounts,Payments to Contractors External
Ashfield District Council,37UB,Rexel UK Limited,V1002688,08/08/2022,19.8,R & B Transformation 2,Supplies & Services,T35026/D200008,Housing Stock Accounts,Payments to Contractors External
Ashfield District Council,37UB,Rexel UK Limited,V1003278,15/08/2022,46.92,R & B Transformation 2,Supplies & Services,T35026/D200008,Housing Stock Accounts,Payments to Contractors External
Ashfield District Council,37UB,Rexel UK Limited,V1003279,15/08/2022,31.28,R & B Transformation 2,Supplies & Services,T35026/D200008,Housing Stock Accounts,Payments to Contractors External
Ashfield District Council,37UB,Rexel UK Limited,V1003280,15/08/2022,31.28,R & B Transformation 2,Supplies & Services,T35026/D200008,Housing Stock Accounts,Payments to Contractors External
Ashfield District Council,37UB,Rexel UK Limited,V1003281,15/08/2022,31.28,R & B Transformation 2,Supplies & Services,T35026/D200008,Housing Stock Accounts,Payments to Contractors External
Ashfield District Council,37UB,Rexel UK Limited,V1003282,15/08/2022,46.92,R & B Transformation 2,Supplies & Services,T35026/D200008,Housing Stock Accounts,Payments to Contractors External
Ashfield District Council,37UB,Rexel UK Limited,V1003283,15/08/2022,15.64,R & B Transformation 2,Supplies & Services,T35026/D200008,Housing Stock Accounts,Payments to Contractors External
Ashfield District Council,37UB,Rexel UK Limited,V1003284,15/08/2022,39.9,R & B Transformation 2,Supplies & Services,T35026/D200008,Housing Stock Accounts,Payments to Contractors External
Ashfield District Council,37UB,Rexel UK Limited,V1003986,19/08/2022,719.44,R & B Transformation 2,Supplies & Services,T35026/D200008,Housing Stock Accounts,Payments to Contractors External
Ashfield District Council,37UB,Rexel UK Limited,V1003987,19/08/2022,31.28,R & B Transformation 2,Supplies & Services,T35026/D200008,Housing Stock Accounts,Payments to Contractors External
Ashfield District Council,37UB,Rexel UK Limited,V1003988,19/08/2022,15.64,R & B Transformation 2,Supplies & Services,T35026/D200008,Housing Stock Accounts,Payments to Contractors External
Ashfield District Council,37UB,Rexel UK Limited,V1003990,19/08/2022,16891.2,R & B Transformation 2,Supplies & Services,T35026/D200008,Housing Stock Accounts,Payments to Contractors External
Ashfield District Council,37UB,Rexel UK Limited,V1003991,19/08/2022,7225.68,R & B Transformation 2,Supplies & Services,T35026/D200008,Housing Stock Accounts,Payments to Contractors External
Ashfield District Council,37UB,Rexel UK Limited,V1004522,30/08/2022,42.81,R & B Transformation 2,Supplies & Services,T35026/D200008,Housing Stock Accounts,Payments to Contractors External
Ashfield District Council,37UB,Rexel UK Limited,V1004546,30/08/2022,2815.2,R & B Transformation 2,Supplies & Services,T35026/D200008,Housing Stock Accounts,Payments to Contractors External
Ashfield District Council,37UB,Rexel UK Limited,V1004547,30/08/2022,3972.56,R & B Transformation 2,Supplies & Services,T35026/D200008,Housing Stock Accounts,Payments to Contractors External
Ashfield District Council,37UB,Rexel UK Limited,V1004548,30/08/2022,2455.48,R & B Transformation 2,Supplies & Services,T35026/D200008,Housing Stock Accounts,Payments to Contractors External
Ashfield District Council,37UB,Rexel UK Limited,V1004549,30/08/2022,15.64,R & B Transformation 2,Supplies & Services,T35026/D200008,Housing Stock Accounts,Payments to Contractors External
Ashfield District Council,37UB,Rexel UK Limited,V1004549,30/08/2022,3487.72,R & B Transformation 2,Supplies & Services,T35026/D200008,Housing Stock Accounts,Payments to Contractors External
Ashfield District Council,37UB,Rexel UK Limited,V1004550,30/08/2022,2173.96,R & B Transformation 2,Supplies & Services,T35026/D200008,Housing Stock Accounts,Payments to Contractors External
Ashfield District Council,37UB,Rexel UK Limited,V1004552,30/08/2022,1408.8,R & B Transformation 2,Supplies & Services,T35026/D200008,Housing Stock Accounts,Payments to Contractors External
Ashfield District Council,37UB,Rexel UK Limited,V1004553,30/08/2022,2502.4,R & B Transformation 2,Supplies & Services,T35026/D200008,Housing Stock Accounts,Payments to Contractors External
Ashfield District Council,37UB,Snickers Original Ltd,V1004540,30/08/2022,189,R & B Transformation 2,Supplies & Services,T35026/D200008,Housing Stock Accounts,Payments to Contractors External
Ashfield District Council,37UB,Snickers Original Ltd,V1004541,30/08/2022,1059,R & B Transformation 2,Supplies & Services,T35026/D200008,Housing Stock Accounts,Payments to Contractors External
Ashfield District Council,37UB,Snickers Original Ltd,V1004542,30/08/2022,108.2,R & B Transformation 2,Supplies & Services,T35026/D200008,Housing Stock Accounts,Payments to Contractors External
Ashfield District Council,37UB,Snickers Original Ltd,V1004543,30/08/2022,725.92,R & B Transformation 2,Supplies & Services,T35026/D200008,Housing Stock Accounts,Payments to Contractors External
Ashfield District Council,37UB,Snickers Original Ltd,V1004543,30/08/2022,725.92,R & B Transformation 2,Supplies & Services,T35026/D200008,Housing Stock Accounts,Payments to Contractors External
Ashfield District Council,37UB,Snickers Original Ltd,V1004544,30/08/2022,324.6,R & B Transformation 2,Supplies & Services,T35026/D200008,Housing Stock Accounts,Payments to Contractors External
Ashfield District Council,37UB,Summit Creative Ltd,V1002019,01/08/2022,544,R & B Transformation 2,Supplies & Services,T35026/D200008,Housing Stock Accounts,Payments to Contractors External
Ashfield District Council,37UB,Summit Creative Ltd,V1002714,08/08/2022,225.71,R & B Transformation 2,Supplies & Services,T35026/D200008,Housing Stock Accounts,Payments to Contractors External
Ashfield District Council,37UB,Supra UK Ltd t/a The Key Safe Company,V1002698,08/08/2022,899.1,R & B Transformation 2,Supplies & Services,T35026/D200008,Housing Stock Accounts,Payments to Contractors External
Ashfield District Council,37UB,Symphony Group,V1002032,01/08/2022,191.2,R & B Transformation 2,Supplies & Services,T35026/D200008,Housing Stock Accounts,Payments to Contractors External
Ashfield District Council,37UB,Symphony Group,V1002700,08/08/2022,160,R & B Transformation 2,Supplies & Services,T35026/D200008,Housing Stock Accounts,Payments to Contractors External
Ashfield District Council,37UB,Wolseley UK Limited,V1002041,01/08/2022,163.2,R & B Transformation 2,Supplies & Services,T35026/D200008,Housing Stock Accounts,Payments to Contractors External
Ashfield District Council,37UB,Wolseley UK Limited,V1002042,01/08/2022,232.19,R & B Transformation 2,Supplies & Services,T35026/D200008,Housing Stock Accounts,Payments to Contractors External
Ashfield District Council,37UB,Wolseley UK Limited,V1002046,01/08/2022,119.2,R & B Transformation 2,Supplies & Services,T35026/D200008,Housing Stock Accounts,Payments to Contractors External
Ashfield District Council,37UB,Wolseley UK Limited,V1002046,01/08/2022,119.21,R & B Transformation 2,Supplies & Services,T35026/D200008,Housing Stock Accounts,Payments to Contractors External
Ashfield District Council,37UB,Wolseley UK Limited,V1002047,01/08/2022,13.39,R & B Transformation 2,Supplies & Services,T35026/D200008,Housing Stock Accounts,Payments to Contractors External
Ashfield District Council,37UB,Wolseley UK Limited,V1002051,01/08/2022,696.57,R & B Transformation 2,Supplies & Services,T35026/D200008,Housing Stock Accounts,Payments to Contractors External
Ashfield District Council,37UB,Wolseley UK Limited,V1002051,01/08/2022,983.9,R & B Transformation 2,Supplies & Services,T35026/D200008,Housing Stock Accounts,Payments to Contractors External
Ashfield District Council,37UB,Wolseley UK Limited,V1002053,01/08/2022,182.72,R & B Transformation 2,Supplies & Services,T35026/D200008,Housing Stock Accounts,Payments to Contractors External
Ashfield District Council,37UB,Wolseley UK Limited,V1002055,01/08/2022,177.2,R & B Transformation 2,Supplies & Services,T35026/D200008,Housing Stock Accounts,Payments to Contractors External
Ashfield District Council,37UB,Wolseley UK Limited,V1002055,01/08/2022,122,R & B Transformation 2,Supplies & Services,T35026/D200008,Housing Stock Accounts,Payments to Contractors External
Ashfield District Council,37UB,Wolseley UK Limited,V1002055,01/08/2022,209.4,R & B Transformation 2,Supplies & Services,T35026/D200008,Housing Stock Accounts,Payments to Contractors External
Ashfield District Council,37UB,Wolseley UK Limited,V1002055,01/08/2022,105.75,R & B Transformation 2,Supplies & Services,T35026/D200008,Housing Stock Accounts,Payments to Contractors External
Ashfield District Council,37UB,Wolseley UK Limited,V1002055,01/08/2022,30.72,R & B Transformation 2,Supplies & Services,T35026/D200008,Housing Stock Accounts,Payments to Contractors External
Ashfield District Council,37UB,Wolseley UK Limited,V1002055,01/08/2022,449.9,R & B Transformation 2,Supplies & Services,T35026/D200008,Housing Stock Accounts,Payments to Contractors External
Ashfield District Council,37UB,Wolseley UK Limited,V1002055,01/08/2022,92.7,R & B Transformation 2,Supplies & Services,T35026/D200008,Housing Stock Accounts,Payments to Contractors External
Ashfield District Council,37UB,Wolseley UK Limited,V1002058,01/08/2022,163.2,R & B Transformation 2,Supplies & Services,T35026/D200008,Housing Stock Accounts,Payments to Contractors External
Ashfield District Council,37UB,Wolseley UK Limited,V1002059,01/08/2022,81.6,R & B Transformation 2,Supplies & Services,T35026/D200008,Housing Stock Accounts,Payments to Contractors External
Ashfield District Council,37UB,Wolseley UK Limited,V1002059,01/08/2022,268.8,R & B Transformation 2,Supplies & Services,T35026/D200008,Housing Stock Accounts,Payments to Contractors External
Ashfield District Council,37UB,Wolseley UK Limited,V1002059,01/08/2022,11,R & B Transformation 2,Supplies & Services,T35026/D200008,Housing Stock Accounts,Payments to Contractors External
Ashfield District Council,37UB,Wolseley UK Limited,V1002060,01/08/2022,65,R & B Transformation 2,Supplies & Services,T35026/D200008,Housing Stock Accounts,Payments to Contractors External
Ashfield District Council,37UB,Wolseley UK Limited,V1002060,01/08/2022,340.5,R & B Transformation 2,Supplies & Services,T35026/D200008,Housing Stock Accounts,Payments to Contractors External
Ashfield District Council,37UB,Wolseley UK Limited,V1002061,01/08/2022,928.76,R & B Transformation 2,Supplies & Services,T35026/D200008,Housing Stock Accounts,Payments to Contractors External
Ashfield District Council,37UB,Wolseley UK Limited,V1002061,01/08/2022,590.34,R & B Transformation 2,Supplies & Services,T35026/D200008,Housing Stock Accounts,Payments to Contractors External
Ashfield District Council,37UB,Wolseley UK Limited,V1002062,01/08/2022,163.2,R & B Transformation 2,Supplies & Services,T35026/D200008,Housing Stock Accounts,Payments to Contractors External
Ashfield District Council,37UB,Wolseley UK Limited,V1002063,01/08/2022,552.42,R & B Transformation 2,Supplies & Services,T35026/D200008,Housing Stock Accounts,Payments to Contractors External
Ashfield District Council,37UB,Wolseley UK Limited,V1002063,01/08/2022,29.85,R & B Transformation 2,Supplies & Services,T35026/D200008,Housing Stock Accounts,Payments to Contractors External
Ashfield District Council,37UB,Wolseley UK Limited,V1002064,01/08/2022,114.92,R & B Transformation 2,Supplies & Services,T35026/D200008,Housing Stock Accounts,Payments to Contractors External
Ashfield District Council,37UB,Wolseley UK Limited,V1002539,08/08/2022,-54.98,R & B Transformation 2,Supplies & Services,T35026/D200008,Housing Stock Accounts,Payments to Contractors External
Ashfield District Council,37UB,Wolseley UK Limited,V1002540,08/08/2022,-2.8,R & B Transformation 2,Supplies & Services,T35026/D200008,Housing Stock Accounts,Payments to Contractors External
Ashfield District Council,37UB,Wolseley UK Limited,V1002541,08/08/2022,-244.14,R & B Transformation 2,Supplies & Services,T35026/D200008,Housing Stock Accounts,Payments to Contractors External
Ashfield District Council,37UB,Wolseley UK Limited,V1002542,08/08/2022,-26.58,R & B Transformation 2,Supplies & Services,T35026/D200008,Housing Stock Accounts,Payments to Contractors External
Ashfield District Council,37UB,Wolseley UK Limited,V1002543,08/08/2022,-1.84,R & B Transformation 2,Supplies & Services,T35026/D200008,Housing Stock Accounts,Payments to Contractors External
Ashfield District Council,37UB,Wolseley UK Limited,V1002544,08/08/2022,-210.8,R & B Transformation 2,Supplies & Services,T35026/D200008,Housing Stock Accounts,Payments to Contractors External
Ashfield District Council,37UB,Wolseley UK Limited,V1002545,08/08/2022,-351.52,R & B Transformation 2,Supplies & Services,T35026/D200008,Housing Stock Accounts,Payments to Contractors External
Ashfield District Council,37UB,Wolseley UK Limited,V1002546,08/08/2022,-352.52,R & B Transformation 2,Supplies & Services,T35026/D200008,Housing Stock Accounts,Payments to Contractors External
Ashfield District Council,37UB,Wolseley UK Limited,V1002547,08/08/2022,-4,R & B Transformation 2,Supplies & Services,T35026/D200008,Housing Stock Accounts,Payments to Contractors External
Ashfield District Council,37UB,Wolseley UK Limited,V1002548,08/08/2022,-263.11,R & B Transformation 2,Supplies & Services,T35026/D200008,Housing Stock Accounts,Payments to Contractors External
Ashfield District Council,37UB,Wolseley UK Limited,V1002550,08/08/2022,-35,R & B Transformation 2,Supplies & Services,T35026/D200008,Housing Stock Accounts,Payments to Contractors External
Ashfield District Council,37UB,Wolseley UK Limited,V1002551,08/08/2022,-2.1,R & B Transformation 2,Supplies & Services,T35026/D200008,Housing Stock Accounts,Payments to Contractors External
Ashfield District Council,37UB,Wolseley UK Limited,V1002552,08/08/2022,-1.56,R & B Transformation 2,Supplies & Services,T35026/D200008,Housing Stock Accounts,Payments to Contractors External
Ashfield District Council,37UB,Wolseley UK Limited,V1002553,08/08/2022,-15.92,R & B Transformation 2,Supplies & Services,T35026/D200008,Housing Stock Accounts,Payments to Contractors External
Ashfield District Council,37UB,Wolseley UK Limited,V1002554,08/08/2022,-7.2,R & B Transformation 2,Supplies & Services,T35026/D200008,Housing Stock Accounts,Payments to Contractors External
Ashfield District Council,37UB,Wolseley UK Limited,V1002555,08/08/2022,-331.72,R & B Transformation 2,Supplies & Services,T35026/D200008,Housing Stock Accounts,Payments to Contractors External
Ashfield District Council,37UB,Wolseley UK Limited,V1002556,08/08/2022,-17.1,R & B Transformation 2,Supplies & Services,T35026/D200008,Housing Stock Accounts,Payments to Contractors External
Ashfield District Council,37UB,Wolseley UK Limited,V1002557,08/08/2022,-4.14,R & B Transformation 2,Supplies & Services,T35026/D200008,Housing Stock Accounts,Payments to Contractors External
Ashfield District Council,37UB,Wolseley UK Limited,V1002558,08/08/2022,-15.4,R & B Transformation 2,Supplies & Services,T35026/D200008,Housing Stock Accounts,Payments to Contractors External
Ashfield District Council,37UB,Wolseley UK Limited,V1002559,08/08/2022,-283.87,R & B Transformation 2,Supplies & Services,T35026/D200008,Housing Stock Accounts,Payments to Contractors External
Ashfield District Council,37UB,Wolseley UK Limited,V1002560,08/08/2022,-294.1,R & B Transformation 2,Supplies & Services,T35026/D200008,Housing Stock Accounts,Payments to Contractors External
Ashfield District Council,37UB,Wolseley UK Limited,V1002561,08/08/2022,-26.66,R & B Transformation 2,Supplies & Services,T35026/D200008,Housing Stock Accounts,Payments to Contractors External
Ashfield District Council,37UB,Wolseley UK Limited,V1002562,08/08/2022,-133.42,R & B Transformation 2,Supplies & Services,T35026/D200008,Housing Stock Accounts,Payments to Contractors External
Ashfield District Council,37UB,Wolseley UK Limited,V1002563,08/08/2022,-33.81,R & B Transformation 2,Supplies & Services,T35026/D200008,Housing Stock Accounts,Payments to Contractors External
Ashfield District Council,37UB,Wolseley UK Limited,V1002564,08/08/2022,-17.73,R & B Transformation 2,Supplies & Services,T35026/D200008,Housing Stock Accounts,Payments to Contractors External
Ashfield District Council,37UB,Wolseley UK Limited,V1002565,08/08/2022,-167.9,R & B Transformation 2,Supplies & Services,T35026/D200008,Housing Stock Accounts,Payments to Contractors External
Ashfield District Council,37UB,Wolseley UK Limited,V1002566,08/08/2022,-19.8,R & B Transformation 2,Supplies & Services,T35026/D200008,Housing Stock Accounts,Payments to Contractors External
Ashfield District Council,37UB,Wolseley UK Limited,V1002567,08/08/2022,-9.9,R & B Transformation 2,Supplies & Services,T35026/D200008,Housing Stock Accounts,Payments to Contractors External
Ashfield District Council,37UB,Wolseley UK Limited,V1002568,08/08/2022,-142.56,R & B Transformation 2,Supplies & Services,T35026/D200008,Housing Stock Accounts,Payments to Contractors External
Ashfield District Council,37UB,Wolseley UK Limited,V1002569,08/08/2022,-305.98,R & B Transformation 2,Supplies & Services,T35026/D200008,Housing Stock Accounts,Payments to Contractors External
Ashfield District Council,37UB,Wolseley UK Limited,V1002570,08/08/2022,-54.69,R & B Transformation 2,Supplies & Services,T35026/D200008,Housing Stock Accounts,Payments to Contractors External
Ashfield District Council,37UB,Wolseley UK Limited,V1002571,08/08/2022,-49.55,R & B Transformation 2,Supplies & Services,T35026/D200008,Housing Stock Accounts,Payments to Contractors External
Ashfield District Council,37UB,Wolseley UK Limited,V1002576,08/08/2022,120.6,R & B Transformation 2,Supplies & Services,T35026/D200008,Housing Stock Accounts,Payments to Contractors External
Ashfield District Council,37UB,Wolseley UK Limited,V1002576,08/08/2022,11.88,R & B Transformation 2,Supplies & Services,T35026/D200008,Housing Stock Accounts,Payments to Contractors External
Ashfield District Council,37UB,Wolseley UK Limited,V1002576,08/08/2022,331.59,R & B Transformation 2,Supplies & Services,T35026/D200008,Housing Stock Accounts,Payments to Contractors External
Ashfield District Council,37UB,Wolseley UK Limited,V1002576,08/08/2022,64.83,R & B Transformation 2,Supplies & Services,T35026/D200008,Housing Stock Accounts,Payments to Contractors External
Ashfield District Council,37UB,Wolseley UK Limited,V1002576,08/08/2022,327.6,R & B Transformation 2,Supplies & Services,T35026/D200008,Housing Stock Accounts,Payments to Contractors External
Ashfield District Council,37UB,Wolseley UK Limited,V1002576,08/08/2022,84.9,R & B Transformation 2,Supplies & Services,T35026/D200008,Housing Stock Accounts,Payments to Contractors External
Ashfield District Council,37UB,Wolseley UK Limited,V1002576,08/08/2022,119.21,R & B Transformation 2,Supplies & Services,T35026/D200008,Housing Stock Accounts,Payments to Contractors External
Ashfield District Council,37UB,Wolseley UK Limited,V1002576,08/08/2022,51.3,R & B Transformation 2,Supplies & Services,T35026/D200008,Housing Stock Accounts,Payments to Contractors External
Ashfield District Council,37UB,Wolseley UK Limited,V1002576,08/08/2022,179.8,R & B Transformation 2,Supplies & Services,T35026/D200008,Housing Stock Accounts,Payments to Contractors External
Ashfield District Council,37UB,Wolseley UK Limited,V1002576,08/08/2022,48.72,R & B Transformation 2,Supplies & Services,T35026/D200008,Housing Stock Accounts,Payments to Contractors External
Ashfield District Council,37UB,Wolseley UK Limited,V1002576,08/08/2022,94.5,R & B Transformation 2,Supplies & Services,T35026/D200008,Housing Stock Accounts,Payments to Contractors External
Ashfield District Council,37UB,Wolseley UK Limited,V1002576,08/08/2022,40.6,R & B Transformation 2,Supplies & Services,T35026/D200008,Housing Stock Accounts,Payments to Contractors External
Ashfield District Council,37UB,Wolseley UK Limited,V1002576,08/08/2022,31.24,R & B Transformation 2,Supplies & Services,T35026/D200008,Housing Stock Accounts,Payments to Contractors External
Ashfield District Council,37UB,Wolseley UK Limited,V1002576,08/08/2022,68.4,R & B Transformation 2,Supplies & Services,T35026/D200008,Housing Stock Accounts,Payments to Contractors External
Ashfield District Council,37UB,Wolseley UK Limited,V1002576,08/08/2022,695.13,R & B Transformation 2,Supplies & Services,T35026/D200008,Housing Stock Accounts,Payments to Contractors External
Ashfield District Council,37UB,Wolseley UK Limited,V1002576,08/08/2022,194.4,R & B Transformation 2,Supplies & Services,T35026/D200008,Housing Stock Accounts,Payments to Contractors External
Ashfield District Council,37UB,Wolseley UK Limited,V1002576,08/08/2022,6.3,R & B Transformation 2,Supplies & Services,T35026/D200008,Housing Stock Accounts,Payments to Contractors External
Ashfield District Council,37UB,Wolseley UK Limited,V1002576,08/08/2022,37.5,R & B Transformation 2,Supplies & Services,T35026/D200008,Housing Stock Accounts,Payments to Contractors External
Ashfield District Council,37UB,Wolseley UK Limited,V1002576,08/08/2022,165.15,R & B Transformation 2,Supplies & Services,T35026/D200008,Housing Stock Accounts,Payments to Contractors External
Ashfield District Council,37UB,Wolseley UK Limited,V1002576,08/08/2022,49.65,R & B Transformation 2,Supplies & Services,T35026/D200008,Housing Stock Accounts,Payments to Contractors External
Ashfield District Council,37UB,Wolseley UK Limited,V1002576,08/08/2022,25.5,R & B Transformation 2,Supplies & Services,T35026/D200008,Housing Stock Accounts,Payments to Contractors External
Ashfield District Council,37UB,Wolseley UK Limited,V1002576,08/08/2022,36.6,R & B Transformation 2,Supplies & Services,T35026/D200008,Housing Stock Accounts,Payments to Contractors External
Ashfield District Council,37UB,Wolseley UK Limited,V1002576,08/08/2022,11.1,R & B Transformation 2,Supplies & Services,T35026/D200008,Housing Stock Accounts,Payments to Contractors External
Ashfield District Council,37UB,Wolseley UK Limited,V1002580,08/08/2022,202.86,R & B Transformation 2,Supplies & Services,T35026/D200008,Housing Stock Accounts,Payments to Contractors External
Ashfield District Council,37UB,Wolseley UK Limited,V1002581,08/08/2022,46.35,R & B Transformation 2,Supplies & Services,T35026/D200008,Housing Stock Accounts,Payments to Contractors External
Ashfield District Council,37UB,Wolseley UK Limited,V1002581,08/08/2022,695.13,R & B Transformation 2,Supplies & Services,T35026/D200008,Housing Stock Accounts,Payments to Contractors External
Ashfield District Council,37UB,Wolseley UK Limited,V1002581,08/08/2022,223,R & B Transformation 2,Supplies & Services,T35026/D200008,Housing Stock Accounts,Payments to Contractors External
Ashfield District Council,37UB,Wolseley UK Limited,V1002581,08/08/2022,289.57,R & B Transformation 2,Supplies & Services,T35026/D200008,Housing Stock Accounts,Payments to Contractors External
Ashfield District Council,37UB,Wolseley UK Limited,V1002581,08/08/2022,806.9,R & B Transformation 2,Supplies & Services,T35026/D200008,Housing Stock Accounts,Payments to Contractors External
Ashfield District Council,37UB,Wolseley UK Limited,V1002581,08/08/2022,90.3,R & B Transformation 2,Supplies & Services,T35026/D200008,Housing Stock Accounts,Payments to Contractors External
Ashfield District Council,37UB,Wolseley UK Limited,V1002581,08/08/2022,76.8,R & B Transformation 2,Supplies & Services,T35026/D200008,Housing Stock Accounts,Payments to Contractors External
Ashfield District Council,37UB,Wolseley UK Limited,V1002581,08/08/2022,142.77,R & B Transformation 2,Supplies & Services,T35026/D200008,Housing Stock Accounts,Payments to Contractors External
Ashfield District Council,37UB,Wolseley UK Limited,V1002581,08/08/2022,80.34,R & B Transformation 2,Supplies & Services,T35026/D200008,Housing Stock Accounts,Payments to Contractors External
Ashfield District Council,37UB,Wolseley UK Limited,V1002581,08/08/2022,111.6,R & B Transformation 2,Supplies & Services,T35026/D200008,Housing Stock Accounts,Payments to Contractors External
Ashfield District Council,37UB,Wolseley UK Limited,V1002581,08/08/2022,11.4,R & B Transformation 2,Supplies & Services,T35026/D200008,Housing Stock Accounts,Payments to Contractors External
Ashfield District Council,37UB,Wolseley UK Limited,V1002581,08/08/2022,154.98,R & B Transformation 2,Supplies & Services,T35026/D200008,Housing Stock Accounts,Payments to Contractors External
Ashfield District Council,37UB,Wolseley UK Limited,V1002581,08/08/2022,319.2,R & B Transformation 2,Supplies & Services,T35026/D200008,Housing Stock Accounts,Payments to Contractors External
Ashfield District Council,37UB,Wolseley UK Limited,V1002582,08/08/2022,86.34,R & B Transformation 2,Supplies & Services,T35026/D200008,Housing Stock Accounts,Payments to Contractors External
Ashfield District Council,37UB,Wolseley UK Limited,V1002582,08/08/2022,60.5,R & B Transformation 2,Supplies & Services,T35026/D200008,Housing Stock Accounts,Payments to Contractors External
Ashfield District Council,37UB,Wolseley UK Limited,V1002582,08/08/2022,58.4,R & B Transformation 2,Supplies & Services,T35026/D200008,Housing Stock Accounts,Payments to Contractors External
Ashfield District Council,37UB,Wolseley UK Limited,V1002582,08/08/2022,102.2,R & B Transformation 2,Supplies & Services,T35026/D200008,Housing Stock Accounts,Payments to Contractors External
Ashfield District Council,37UB,Wolseley UK Limited,V1002582,08/08/2022,121.28,R & B Transformation 2,Supplies & Services,T35026/D200008,Housing Stock Accounts,Payments to Contractors External
Ashfield District Council,37UB,Wolseley UK Limited,V1002582,08/08/2022,27.4,R & B Transformation 2,Supplies & Services,T35026/D200008,Housing Stock Accounts,Payments to Contractors External
Ashfield District Council,37UB,Wolseley UK Limited,V1002582,08/08/2022,212.8,R & B Transformation 2,Supplies & Services,T35026/D200008,Housing Stock Accounts,Payments to Contractors External
Ashfield District Council,37UB,Wolseley UK Limited,V1002582,08/08/2022,237.95,R & B Transformation 2,Supplies & Services,T35026/D200008,Housing Stock Accounts,Payments to Contractors External
Ashfield District Council,37UB,Wolseley UK Limited,V1002582,08/08/2022,38.4,R & B Transformation 2,Supplies & Services,T35026/D200008,Housing Stock Accounts,Payments to Contractors External
Ashfield District Council,37UB,Wolseley UK Limited,V1002582,08/08/2022,6.5,R & B Transformation 2,Supplies & Services,T35026/D200008,Housing Stock Accounts,Payments to Contractors External
Ashfield District Council,37UB,Wolseley UK Limited,V1002582,08/08/2022,168.2,R & B Transformation 2,Supplies & Services,T35026/D200008,Housing Stock Accounts,Payments to Contractors External
Ashfield District Council,37UB,Wolseley UK Limited,V1002584,08/08/2022,75.13,R & B Transformation 2,Supplies & Services,T35026/D200008,Housing Stock Accounts,Payments to Contractors External
Ashfield District Council,37UB,Wolseley UK Limited,V1002584,08/08/2022,58.36,R & B Transformation 2,Supplies & Services,T35026/D200008,Housing Stock Accounts,Payments to Contractors External
Ashfield District Council,37UB,Wolseley UK Limited,V1002584,08/08/2022,41.4,R & B Transformation 2,Supplies & Services,T35026/D200008,Housing Stock Accounts,Payments to Contractors External
Ashfield District Council,37UB,Wolseley UK Limited,V1002584,08/08/2022,98.51,R & B Transformation 2,Supplies & Services,T35026/D200008,Housing Stock Accounts,Payments to Contractors External
Ashfield District Council,37UB,Wolseley UK Limited,V1002584,08/08/2022,129.8,R & B Transformation 2,Supplies & Services,T35026/D200008,Housing Stock Accounts,Payments to Contractors External
Ashfield District Council,37UB,Wolseley UK Limited,V1002584,08/08/2022,28.4,R & B Transformation 2,Supplies & Services,T35026/D200008,Housing Stock Accounts,Payments to Contractors External
Ashfield District Council,37UB,Wolseley UK Limited,V1002584,08/08/2022,20.6,R & B Transformation 2,Supplies & Services,T35026/D200008,Housing Stock Accounts,Payments to Contractors External
Ashfield District Council,37UB,Wolseley UK Limited,V1002585,08/08/2022,1.84,R & B Transformation 2,Supplies & Services,T35026/D200008,Housing Stock Accounts,Payments to Contractors External
Ashfield District Council,37UB,Wolseley UK Limited,V1002586,08/08/2022,11.1,R & B Transformation 2,Supplies & Services,T35026/D200008,Housing Stock Accounts,Payments to Contractors External
Ashfield District Council,37UB,Wolseley UK Limited,V1002588,08/08/2022,65,R & B Transformation 2,Supplies & Services,T35026/D200008,Housing Stock Accounts,Payments to Contractors External
Ashfield District Council,37UB,Wolseley UK Limited,V1002588,08/08/2022,235.2,R & B Transformation 2,Supplies & Services,T35026/D200008,Housing Stock Accounts,Payments to Contractors External
Ashfield District Council,37UB,Wolseley UK Limited,V1002588,08/08/2022,340.5,R & B Transformation 2,Supplies & Services,T35026/D200008,Housing Stock Accounts,Payments to Contractors External
Ashfield District Council,37UB,Wolseley UK Limited,V1002767,08/08/2022,-316.29,R & B Transformation 2,Supplies & Services,T35026/D200008,Housing Stock Accounts,Payments to Contractors External
Ashfield District Council,37UB,Wolseley UK Limited,V1003267,15/08/2022,9.32,R & B Transformation 2,Supplies & Services,T35026/D200008,Housing Stock Accounts,Payments to Contractors External
Ashfield District Council,37UB,Wolseley UK Limited,V1003268,15/08/2022,72.94,R & B Transformation 2,Supplies & Services,T35026/D200008,Housing Stock Accounts,Payments to Contractors External
Ashfield District Council,37UB,Wolseley UK Limited,V1003269,15/08/2022,28.4,R & B Transformation 2,Supplies & Services,T35026/D200008,Housing Stock Accounts,Payments to Contractors External
Ashfield District Council,37UB,Wolseley UK Limited,V1003269,15/08/2022,21.8,R & B Transformation 2,Supplies & Services,T35026/D200008,Housing Stock Accounts,Payments to Contractors External
Ashfield District Council,37UB,Wolseley UK Limited,V1003270,15/08/2022,464.38,R & B Transformation 2,Supplies & Services,T35026/D200008,Housing Stock Accounts,Payments to Contractors External
Ashfield District Council,37UB,Wolseley UK Limited,V1003271,15/08/2022,166.2,R & B Transformation 2,Supplies & Services,T35026/D200008,Housing Stock Accounts,Payments to Contractors External
Ashfield District Council,37UB,Wolseley UK Limited,V1003271,15/08/2022,423.4,R & B Transformation 2,Supplies & Services,T35026/D200008,Housing Stock Accounts,Payments to Contractors External
Ashfield District Council,37UB,Wolseley UK Limited,V1003272,15/08/2022,128,R & B Transformation 2,Supplies & Services,T35026/D200008,Housing Stock Accounts,Payments to Contractors External
Ashfield District Council,37UB,Wolseley UK Limited,V1003272,15/08/2022,83.87,R & B Transformation 2,Supplies & Services,T35026/D200008,Housing Stock Accounts,Payments to Contractors External
Ashfield District Council,37UB,Wolseley UK Limited,V1003273,15/08/2022,320.7,R & B Transformation 2,Supplies & Services,T35026/D200008,Housing Stock Accounts,Payments to Contractors External
Ashfield District Council,37UB,Wolseley UK Limited,V1003273,15/08/2022,144.04,R & B Transformation 2,Supplies & Services,T35026/D200008,Housing Stock Accounts,Payments to Contractors External
Ashfield District Council,37UB,Wolseley UK Limited,V1003274,15/08/2022,77.56,R & B Transformation 2,Supplies & Services,T35026/D200008,Housing Stock Accounts,Payments to Contractors External
Ashfield District Council,37UB,Wolseley UK Limited,V1003275,15/08/2022,65.52,R & B Transformation 2,Supplies & Services,T35026/D200008,Housing Stock Accounts,Payments to Contractors External
Ashfield District Council,37UB,Wolseley UK Limited,V1003275,15/08/2022,317.55,R & B Transformation 2,Supplies & Services,T35026/D200008,Housing Stock Accounts,Payments to Contractors External
Ashfield District Council,37UB,Wolseley UK Limited,V1003277,15/08/2022,36.47,R & B Transformation 2,Supplies & Services,T35026/D200008,Housing Stock Accounts,Payments to Contractors External
Ashfield District Council,37UB,Wolseley UK Limited,V1003285,15/08/2022,72.94,R & B Transformation 2,Supplies & Services,T35026/D200008,Housing Stock Accounts,Payments to Contractors External
Ashfield District Council,37UB,Wolseley UK Limited,V1003286,15/08/2022,156.8,R & B Transformation 2,Supplies & Services,T35026/D200008,Housing Stock Accounts,Payments to Contractors External
Ashfield District Council,37UB,Wolseley UK Limited,V1003287,15/08/2022,188.6,R & B Transformation 2,Supplies & Services,T35026/D200008,Housing Stock Accounts,Payments to Contractors External
Ashfield District Council,37UB,Wolseley UK Limited,V1003288,15/08/2022,213.89,R & B Transformation 2,Supplies & Services,T35026/D200008,Housing Stock Accounts,Payments to Contractors External
Ashfield District Council,37UB,Wolseley UK Limited,V1003290,15/08/2022,80.34,R & B Transformation 2,Supplies & Services,T35026/D200008,Housing Stock Accounts,Payments to Contractors External
Ashfield District Council,37UB,Wolseley UK Limited,V1003290,15/08/2022,42.03,R & B Transformation 2,Supplies & Services,T35026/D200008,Housing Stock Accounts,Payments to Contractors External
Ashfield District Council,37UB,Wolseley UK Limited,V1003290,15/08/2022,105.75,R & B Transformation 2,Supplies & Services,T35026/D200008,Housing Stock Accounts,Payments to Contractors External
Ashfield District Council,37UB,Wolseley UK Limited,V1003290,15/08/2022,25.92,R & B Transformation 2,Supplies & Services,T35026/D200008,Housing Stock Accounts,Payments to Contractors External
Ashfield District Council,37UB,Wolseley UK Limited,V1003290,15/08/2022,42.2,R & B Transformation 2,Supplies & Services,T35026/D200008,Housing Stock Accounts,Payments to Contractors External
Ashfield District Council,37UB,Wolseley UK Limited,V1003290,15/08/2022,39.2,R & B Transformation 2,Supplies & Services,T35026/D200008,Housing Stock Accounts,Payments to Contractors External
Ashfield District Council,37UB,Wolseley UK Limited,V1003290,15/08/2022,331.2,R & B Transformation 2,Supplies & Services,T35026/D200008,Housing Stock Accounts,Payments to Contractors External
Ashfield District Council,37UB,Wolseley UK Limited,V1003290,15/08/2022,82,R & B Transformation 2,Supplies & Services,T35026/D200008,Housing Stock Accounts,Payments to Contractors External
Ashfield District Council,37UB,Wolseley UK Limited,V1003291,15/08/2022,33,R & B Transformation 2,Supplies & Services,T35026/D200008,Housing Stock Accounts,Payments to Contractors External
Ashfield District Council,37UB,Wolseley UK Limited,V1003291,15/08/2022,50.89,R & B Transformation 2,Supplies & Services,T35026/D200008,Housing Stock Accounts,Payments to Contractors External
Ashfield District Council,37UB,Wolseley UK Limited,V1003291,15/08/2022,73.92,R & B Transformation 2,Supplies & Services,T35026/D200008,Housing Stock Accounts,Payments to Contractors External
Ashfield District Council,37UB,Wolseley UK Limited,V1003292,15/08/2022,99.72,R & B Transformation 2,Supplies & Services,T35026/D200008,Housing Stock Accounts,Payments to Contractors External
Ashfield District Council,37UB,Wolseley UK Limited,V1003292,15/08/2022,52.35,R & B Transformation 2,Supplies & Services,T35026/D200008,Housing Stock Accounts,Payments to Contractors External
Ashfield District Council,37UB,Wolseley UK Limited,V1003292,15/08/2022,459.8,R & B Transformation 2,Supplies & Services,T35026/D200008,Housing Stock Accounts,Payments to Contractors External
Ashfield District Council,37UB,Wolseley UK Limited,V1003293,15/08/2022,66.48,R & B Transformation 2,Supplies & Services,T35026/D200008,Housing Stock Accounts,Payments to Contractors External
Ashfield District Council,37UB,Wolseley UK Limited,V1003294,15/08/2022,255.29,R & B Transformation 2,Supplies & Services,T35026/D200008,Housing Stock Accounts,Payments to Contractors External
Ashfield District Council,37UB,Wolseley UK Limited,V1003294,15/08/2022,137.04,R & B Transformation 2,Supplies & Services,T35026/D200008,Housing Stock Accounts,Payments to Contractors External
Ashfield District Council,37UB,Wolseley UK Limited,V1003294,15/08/2022,27.3,R & B Transformation 2,Supplies & Services,T35026/D200008,Housing Stock Accounts,Payments to Contractors External
Ashfield District Council,37UB,Wolseley UK Limited,V1003296,15/08/2022,983.9,R & B Transformation 2,Supplies & Services,T35026/D200008,Housing Stock Accounts,Payments to Contractors External
Ashfield District Council,37UB,Wolseley UK Limited,V1003296,15/08/2022,696.57,R & B Transformation 2,Supplies & Services,T35026/D200008,Housing Stock Accounts,Payments to Contractors External
Ashfield District Council,37UB,Wolseley UK Limited,V1003297,15/08/2022,46.2,R & B Transformation 2,Supplies & Services,T35026/D200008,Housing Stock Accounts,Payments to Contractors External
Ashfield District Council,37UB,Wolseley UK Limited,V1003297,15/08/2022,79.56,R & B Transformation 2,Supplies & Services,T35026/D200008,Housing Stock Accounts,Payments to Contractors External
Ashfield District Council,37UB,Wolseley UK Limited,V1003298,15/08/2022,25.96,R & B Transformation 2,Supplies & Services,T35026/D200008,Housing Stock Accounts,Payments to Contractors External
Ashfield District Council,37UB,Wolseley UK Limited,V1003298,15/08/2022,31.74,R & B Transformation 2,Supplies & Services,T35026/D200008,Housing Stock Accounts,Payments to Contractors External
Ashfield District Council,37UB,Wolseley UK Limited,V1003298,15/08/2022,34.7,R & B Transformation 2,Supplies & Services,T35026/D200008,Housing Stock Accounts,Payments to Contractors External
Ashfield District Council,37UB,Wolseley UK Limited,V1003298,15/08/2022,54.15,R & B Transformation 2,Supplies & Services,T35026/D200008,Housing Stock Accounts,Payments to Contractors External
Ashfield District Council,37UB,Wolseley UK Limited,V1003299,15/08/2022,119.21,R & B Transformation 2,Supplies & Services,T35026/D200008,Housing Stock Accounts,Payments to Contractors External
Ashfield District Council,37UB,Wolseley UK Limited,V1003299,15/08/2022,16.49,R & B Transformation 2,Supplies & Services,T35026/D200008,Housing Stock Accounts,Payments to Contractors External
Ashfield District Council,37UB,Wolseley UK Limited,V1003300,15/08/2022,28.27,R & B Transformation 2,Supplies & Services,T35026/D200008,Housing Stock Accounts,Payments to Contractors External
Ashfield District Council,37UB,Wolseley UK Limited,V1003302,15/08/2022,2.85,R & B Transformation 2,Supplies & Services,T35026/D200008,Housing Stock Accounts,Payments to Contractors External
Ashfield District Council,37UB,Wood Lane Timber Merchants Ltd,V1002672,08/08/2022,247,R & B Transformation 2,Supplies & Services,T35026/D200008,Housing Stock Accounts,Payments to Contractors External
Ashfield District Council,37UB,Wood Lane Timber Merchants Ltd,V1003993,19/08/2022,586,R & B Transformation 2,Supplies & Services,T35026/D200008,Housing Stock Accounts,Payments to Contractors External
Ashfield District Council,37UB,Wood Lane Timber Merchants Ltd,V1003993,19/08/2022,759,R & B Transformation 2,Supplies & Services,T35026/D200008,Housing Stock Accounts,Payments to Contractors External
Ashfield District Council,37UB,Bapp Industrial Supplies (Mansfield) Ltd,V1002919,11/08/2022,10,Place & Communities 2,Transport Related Expenses,T35002/C011,Stock Account,Parts
Ashfield District Council,37UB,Bucher Municipal Limited,V1002795,11/08/2022,1327.8,Place & Communities 2,Transport Related Expenses,T35002/C011,Stock Account,Parts
Ashfield District Council,37UB,Bucher Municipal Limited,V1002449,18/08/2022,83.7,Place & Communities 2,Transport Related Expenses,T35002/C011,Stock Account,Parts
Ashfield District Council,37UB,Buntings (Agri) Ltd,V1002522,04/08/2022,84.5,Place & Communities 2,Transport Related Expenses,T35002/C011,Stock Account,Parts
Ashfield District Council,37UB,Buntings (Agri) Ltd,V1002522,04/08/2022,89.5,Place & Communities 2,Transport Related Expenses,T35002/C011,Stock Account,Parts
Ashfield District Council,37UB,Certas Energy UK Ltd t/a Pace Fuelcare,V1002489,04/08/2022,21733.19,Place & Communities 2,Supplies & Services,T35001/D001004,Stock Account,Chemicals and Materials Purchase
Ashfield District Council,37UB,Certas Energy UK Ltd t/a Pace Fuelcare,V1002947,11/08/2022,21408.6,Place & Communities 2,Supplies & Services,T35001/D001004,Stock Account,Chemicals and Materials Purchase
Ashfield District Council,37UB,Certas Energy UK Ltd t/a Pace Fuelcare,V1004188,25/08/2022,3106.51,Place & Communities 2,Supplies & Services,T35001/D001004,Stock Account,Chemicals and Materials Purchase
Ashfield District Council,37UB,Chemodex Ltd,V1002935,11/08/2022,637.5,Place & Communities 2,Supplies & Services,T35001/D001004,Stock Account,Chemicals and Materials Purchase
Ashfield District Council,37UB,Davenport Accident Repair Centre,V1003478,18/08/2022,25,Place & Communities 2,Transport Related Expenses,T35002/C011,Stock Account,Parts
Ashfield District Council,37UB,Davmac Spares Ltd,V1002873,11/08/2022,32.08,Place & Communities 2,Transport Related Expenses,T35002/C011,Stock Account,Parts
Ashfield District Council,37UB,Dennis Eagle Limited,V1002759,11/08/2022,18.07,Place & Communities 2,Transport Related Expenses,T35002/C011,Stock Account,Parts
Ashfield District Council,37UB,Dennis Eagle Limited,V1002759,11/08/2022,43.16,Place & Communities 2,Transport Related Expenses,T35002/C011,Stock Account,Parts
Ashfield District Council,37UB,Dennis Eagle Limited,V1002759,11/08/2022,154.81,Place & Communities 2,Transport Related Expenses,T35002/C011,Stock Account,Parts
Ashfield District Council,37UB,Dennis Eagle Limited,V1002759,11/08/2022,13.46,Place & Communities 2,Transport Related Expenses,T35002/C011,Stock Account,Parts
Ashfield District Council,37UB,Dennis Eagle Limited,V1002791,11/08/2022,271.07,Place & Communities 2,Transport Related Expenses,T35002/C011,Stock Account,Parts
Ashfield District Council,37UB,Dennis Eagle Limited,V1002791,11/08/2022,67.24,Place & Communities 2,Transport Related Expenses,T35002/C011,Stock Account,Parts
Ashfield District Council,37UB,Dennis Eagle Limited,V1002792,11/08/2022,115.42,Place & Communities 2,Transport Related Expenses,T35002/C011,Stock Account,Parts
Ashfield District Council,37UB,Dennis Eagle Limited,V1002803,11/08/2022,242,Place & Communities 2,Transport Related Expenses,T35002/C011,Stock Account,Parts
Ashfield District Council,37UB,Dennis Eagle Limited,V1002841,11/08/2022,3.86,Place & Communities 2,Transport Related Expenses,T35002/C011,Stock Account,Parts
Ashfield District Council,37UB,Dennis Eagle Limited,V1002841,11/08/2022,5.43,Place & Communities 2,Transport Related Expenses,T35002/C011,Stock Account,Parts
Ashfield District Council,37UB,Dennis Eagle Limited,V1002841,11/08/2022,539.7,Place & Communities 2,Transport Related Expenses,T35002/C011,Stock Account,Parts
Ashfield District Council,37UB,Dennis Eagle Limited,V1002841,11/08/2022,5,Place & Communities 2,Transport Related Expenses,T35002/C011,Stock Account,Parts
Ashfield District Council,37UB,Dennis Eagle Limited,V1002842,11/08/2022,797.01,Place & Communities 2,Transport Related Expenses,T35002/C011,Stock Account,Parts
Ashfield District Council,37UB,Dennis Eagle Limited,V1002842,11/08/2022,150.81,Place & Communities 2,Transport Related Expenses,T35002/C011,Stock Account,Parts
Ashfield District Council,37UB,Dennis Eagle Limited,V1002916,11/08/2022,234.11,Place & Communities 2,Transport Related Expenses,T35002/C011,Stock Account,Parts
Ashfield District Council,37UB,Dennis Eagle Limited,V1002176,18/08/2022,3.86,Place & Communities 2,Transport Related Expenses,T35002/C011,Stock Account,Parts
Ashfield District Council,37UB,Dennis Eagle Limited,V1002176,18/08/2022,5,Place & Communities 2,Transport Related Expenses,T35002/C011,Stock Account,Parts
Ashfield District Council,37UB,Dennis Eagle Limited,V1002176,18/08/2022,11.69,Place & Communities 2,Transport Related Expenses,T35002/C011,Stock Account,Parts
Ashfield District Council,37UB,Dennis Eagle Limited,V1002176,18/08/2022,539.7,Place & Communities 2,Transport Related Expenses,T35002/C011,Stock Account,Parts
Ashfield District Council,37UB,Dennis Eagle Limited,V1002176,18/08/2022,5.43,Place & Communities 2,Transport Related Expenses,T35002/C011,Stock Account,Parts
Ashfield District Council,37UB,Dennis Eagle Limited,V1002176,18/08/2022,43.38,Place & Communities 2,Transport Related Expenses,T35002/C011,Stock Account,Parts
Ashfield District Council,37UB,Dennis Eagle Limited,V1002176,18/08/2022,51.54,Place & Communities 2,Transport Related Expenses,T35002/C011,Stock Account,Parts
Ashfield District Council,37UB,Dennis Eagle Limited,V1002401,18/08/2022,137.29,Place & Communities 2,Transport Related Expenses,T35002/C011,Stock Account,Parts
Ashfield District Council,37UB,Dennis Eagle Limited,V1002401,18/08/2022,8.69,Place & Communities 2,Transport Related Expenses,T35002/C011,Stock Account,Parts
Ashfield District Council,37UB,Dennis Eagle Limited,V1002401,18/08/2022,23.16,Place & Communities 2,Transport Related Expenses,T35002/C011,Stock Account,Parts
Ashfield District Council,37UB,Dennis Eagle Limited,V1002402,18/08/2022,14.53,Place & Communities 2,Transport Related Expenses,T35002/C011,Stock Account,Parts
Ashfield District Council,37UB,Dennis Eagle Limited,V1002403,18/08/2022,20.3,Place & Communities 2,Transport Related Expenses,T35002/C011,Stock Account,Parts
Ashfield District Council,37UB,Dennis Eagle Limited,V1002452,18/08/2022,120.11,Place & Communities 2,Transport Related Expenses,T35002/C011,Stock Account,Parts
Ashfield District Council,37UB,Dennis Eagle Limited,V1002455,18/08/2022,2000,Place & Communities 2,Transport Related Expenses,T35002/C011,Stock Account,Parts
Ashfield District Council,37UB,Dennis Eagle Limited,V1003327,18/08/2022,328.95,Place & Communities 2,Transport Related Expenses,T35002/C011,Stock Account,Parts
Ashfield District Council,37UB,Dennis Eagle Limited,V1003328,18/08/2022,27.1,Place & Communities 2,Transport Related Expenses,T35002/C011,Stock Account,Parts
Ashfield District Council,37UB,Express Hose & Fittings Ltd,V1002868,11/08/2022,79.2,Place & Communities 2,Transport Related Expenses,T35002/C011,Stock Account,Parts
Ashfield District Council,37UB,Hucknall Bypass Filling Station Ltd,V1002905,18/08/2022,525.28,Place & Communities 2,Supplies & Services,T35001/D001004,Stock Account,Chemicals and Materials Purchase
Ashfield District Council,37UB,Lodge Tyre Co Ltd,V1002381,25/08/2022,15,Place & Communities 2,Transport Related Expenses,T35003/C070,Stock Account,Tyres
Ashfield District Council,37UB,Lodge Tyre Co Ltd,V1002381,25/08/2022,490,Place & Communities 2,Transport Related Expenses,T35003/C070,Stock Account,Tyres
Ashfield District Council,37UB,Lodge Tyre Co Ltd,V1002381,25/08/2022,45,Place & Communities 2,Transport Related Expenses,T35003/C070,Stock Account,Tyres
Ashfield District Council,37UB,Lodge Tyre Co Ltd,V1002381,25/08/2022,30,Place & Communities 2,Transport Related Expenses,T35003/C070,Stock Account,Tyres
Ashfield District Council,37UB,Lodge Tyre Co Ltd,V1002381,25/08/2022,70,Place & Communities 2,Transport Related Expenses,T35003/C070,Stock Account,Tyres
Ashfield District Council,37UB,Lodge Tyre Co Ltd,V1002381,25/08/2022,15,Place & Communities 2,Transport Related Expenses,T35003/C070,Stock Account,Tyres
Ashfield District Council,37UB,Lodge Tyre Co Ltd,V1002381,25/08/2022,152,Place & Communities 2,Transport Related Expenses,T35003/C070,Stock Account,Tyres
Ashfield District Council,37UB,Lodge Tyre Co Ltd,V1002381,25/08/2022,35,Place & Communities 2,Transport Related Expenses,T35003/C070,Stock Account,Tyres
Ashfield District Council,37UB,Lodge Tyre Co Ltd,V1002381,25/08/2022,90,Place & Communities 2,Transport Related Expenses,T35003/C070,Stock Account,Tyres
Ashfield District Council,37UB,Lodge Tyre Co Ltd,V1002381,25/08/2022,35,Place & Communities 2,Transport Related Expenses,T35003/C070,Stock Account,Tyres
Ashfield District Council,37UB,Lodge Tyre Co Ltd,V1002381,25/08/2022,220,Place & Communities 2,Transport Related Expenses,T35003/C070,Stock Account,Tyres
Ashfield District Council,37UB,Lodge Tyre Co Ltd,V1002381,25/08/2022,45,Place & Communities 2,Transport Related Expenses,T35003/C070,Stock Account,Tyres
Ashfield District Council,37UB,Lodge Tyre Co Ltd,V1002381,25/08/2022,35,Place & Communities 2,Transport Related Expenses,T35003/C070,Stock Account,Tyres
Ashfield District Council,37UB,Lodge Tyre Co Ltd,V1002381,25/08/2022,90,Place & Communities 2,Transport Related Expenses,T35003/C070,Stock Account,Tyres
Ashfield District Council,37UB,Lodge Tyre Co Ltd,V1002381,25/08/2022,60,Place & Communities 2,Transport Related Expenses,T35003/C070,Stock Account,Tyres
Ashfield District Council,37UB,Lodge Tyre Co Ltd,V1002381,25/08/2022,30,Place & Communities 2,Transport Related Expenses,T35003/C070,Stock Account,Tyres
Ashfield District Council,37UB,Lodge Tyre Co Ltd,V1002381,25/08/2022,17.5,Place & Communities 2,Transport Related Expenses,T35003/C070,Stock Account,Tyres
Ashfield District Council,37UB,Lodge Tyre Co Ltd,V1002381,25/08/2022,140,Place & Communities 2,Transport Related Expenses,T35003/C070,Stock Account,Tyres
Ashfield District Council,37UB,Lodge Tyre Co Ltd,V1002381,25/08/2022,60,Place & Communities 2,Transport Related Expenses,T35003/C070,Stock Account,Tyres
Ashfield District Council,37UB,Lodge Tyre Co Ltd,V1002381,25/08/2022,45,Place & Communities 2,Transport Related Expenses,T35003/C070,Stock Account,Tyres
Ashfield District Council,37UB,Lodge Tyre Co Ltd,V1003384,25/08/2022,70,Place & Communities 2,Transport Related Expenses,T35003/C070,Stock Account,Tyres
Ashfield District Council,37UB,Lodge Tyre Co Ltd,V1003384,25/08/2022,497,Place & Communities 2,Transport Related Expenses,T35003/C070,Stock Account,Tyres
Ashfield District Council,37UB,Lodge Tyre Co Ltd,V1003384,25/08/2022,235,Place & Communities 2,Transport Related Expenses,T35003/C070,Stock Account,Tyres
Ashfield District Council,37UB,Lodge Tyre Co Ltd,V1003384,25/08/2022,17.5,Place & Communities 2,Transport Related Expenses,T35003/C070,Stock Account,Tyres
Ashfield District Council,37UB,Lodge Tyre Co Ltd,V1003384,25/08/2022,70,Place & Communities 2,Transport Related Expenses,T35003/C070,Stock Account,Tyres
Ashfield District Council,37UB,Lodge Tyre Co Ltd,V1003384,25/08/2022,53,Place & Communities 2,Transport Related Expenses,T35003/C070,Stock Account,Tyres
Ashfield District Council,37UB,Lodge Tyre Co Ltd,V1003389,25/08/2022,980,Place & Communities 2,Transport Related Expenses,T35003/C070,Stock Account,Tyres
Ashfield District Council,37UB,Lodge Tyre Co Ltd,V1003389,25/08/2022,30,Place & Communities 2,Transport Related Expenses,T35003/C070,Stock Account,Tyres
Ashfield District Council,37UB,Lodge Tyre Co Ltd,V1003389,25/08/2022,220,Place & Communities 2,Transport Related Expenses,T35003/C070,Stock Account,Tyres
Ashfield District Council,37UB,Lodge Tyre Co Ltd,V1004127,25/08/2022,70,Place & Communities 2,Transport Related Expenses,T35003/C070,Stock Account,Tyres
Ashfield District Council,37UB,Lodge Tyre Co Ltd,V1004127,25/08/2022,30,Place & Communities 2,Transport Related Expenses,T35003/C070,Stock Account,Tyres
Ashfield District Council,37UB,Lodge Tyre Co Ltd,V1004127,25/08/2022,270,Place & Communities 2,Transport Related Expenses,T35003/C070,Stock Account,Tyres
Ashfield District Council,37UB,Lodge Tyre Co Ltd,V1004127,25/08/2022,80,Place & Communities 2,Transport Related Expenses,T35003/C070,Stock Account,Tyres
Ashfield District Council,37UB,Lodge Tyre Co Ltd,V1004127,25/08/2022,235,Place & Communities 2,Transport Related Expenses,T35003/C070,Stock Account,Tyres
Ashfield District Council,37UB,Lodge Tyre Co Ltd,V1004127,25/08/2022,30,Place & Communities 2,Transport Related Expenses,T35003/C070,Stock Account,Tyres
Ashfield District Council,37UB,Lodge Tyre Co Ltd,V1004127,25/08/2022,497.95,Place & Communities 2,Transport Related Expenses,T35003/C070,Stock Account,Tyres
Ashfield District Council,37UB,Lodge Tyre Co Ltd,V1004127,25/08/2022,50,Place & Communities 2,Transport Related Expenses,T35003/C070,Stock Account,Tyres
Ashfield District Council,37UB,Lodge Tyre Co Ltd,V1004127,25/08/2022,180,Place & Communities 2,Transport Related Expenses,T35003/C070,Stock Account,Tyres
Ashfield District Council,37UB,Lodge Tyre Co Ltd,V1004127,25/08/2022,45,Place & Communities 2,Transport Related Expenses,T35003/C070,Stock Account,Tyres
Ashfield District Council,37UB,MOTUS Commercials,V1001900,18/08/2022,70.2,Place & Communities 2,Transport Related Expenses,T35002/C011,Stock Account,Parts
Ashfield District Council,37UB,P S Marsden (Lawnmower Services) Ltd,V1002417,04/08/2022,675.44,Place & Communities 2,Transport Related Expenses,T35002/C011,Stock Account,Parts
Ashfield District Council,37UB,P S Marsden (Lawnmower Services) Ltd,V1002807,11/08/2022,9,Place & Communities 2,Transport Related Expenses,T35002/C011,Stock Account,Parts
Ashfield District Council,37UB,P S Marsden (Lawnmower Services) Ltd,V1002807,11/08/2022,43.93,Place & Communities 2,Transport Related Expenses,T35002/C011,Stock Account,Parts
Ashfield District Council,37UB,P S Marsden (Lawnmower Services) Ltd,V1002807,11/08/2022,6.66,Place & Communities 2,Transport Related Expenses,T35002/C011,Stock Account,Parts
Ashfield District Council,37UB,P S Marsden (Lawnmower Services) Ltd,V1002807,11/08/2022,24.03,Place & Communities 2,Transport Related Expenses,T35002/C011,Stock Account,Parts
Ashfield District Council,37UB,P S Marsden (Lawnmower Services) Ltd,V1002807,11/08/2022,0.16,Place & Communities 2,Transport Related Expenses,T35002/C011,Stock Account,Parts
Ashfield District Council,37UB,P S Marsden (Lawnmower Services) Ltd,V1002827,11/08/2022,174.08,Place & Communities 2,Transport Related Expenses,T35002/C011,Stock Account,Parts
Ashfield District Council,37UB,P S Marsden (Lawnmower Services) Ltd,V1002836,11/08/2022,29.8,Place & Communities 2,Transport Related Expenses,T35002/C011,Stock Account,Parts
Ashfield District Council,37UB,P S Marsden (Lawnmower Services) Ltd,V1002838,11/08/2022,442.98,Place & Communities 2,Transport Related Expenses,T35002/C011,Stock Account,Parts
Ashfield District Council,37UB,P S Marsden (Lawnmower Services) Ltd,V1002924,11/08/2022,7.29,Place & Communities 2,Transport Related Expenses,T35002/C011,Stock Account,Parts
Ashfield District Council,37UB,PB Auto Electrics Ltd,V1002454,04/08/2022,33.1,Place & Communities 2,Transport Related Expenses,T35002/C011,Stock Account,Parts
Ashfield District Council,37UB,PB Auto Electrics Ltd,V1002454,04/08/2022,10,Place & Communities 2,Transport Related Expenses,T35002/C011,Stock Account,Parts
Ashfield District Council,37UB,PB Auto Electrics Ltd,V1002434,18/08/2022,182.5,Place & Communities 2,Transport Related Expenses,T35002/C011,Stock Account,Parts
Ashfield District Council,37UB,PB Auto Electrics Ltd,V1002435,18/08/2022,120,Place & Communities 2,Transport Related Expenses,T35002/C011,Stock Account,Parts
Ashfield District Council,37UB,PB Auto Electrics Ltd,V1003360,18/08/2022,60,Place & Communities 2,Transport Related Expenses,T35002/C011,Stock Account,Parts
Ashfield District Council,37UB,PB Auto Electrics Ltd,V1003361,18/08/2022,130,Place & Communities 2,Transport Related Expenses,T35002/C011,Stock Account,Parts
Ashfield District Council,37UB,Scarab Sweepers Ltd,V1002839,11/08/2022,533.21,Place & Communities 2,Transport Related Expenses,T35002/C011,Stock Account,Parts
Ashfield District Council,37UB,Scarab Sweepers Ltd,V1002839,11/08/2022,533.21,Place & Communities 2,Transport Related Expenses,T35002/C011,Stock Account,Parts
Ashfield District Council,37UB,Scarab Sweepers Ltd,V1001947,18/08/2022,107.22,Place & Communities 2,Transport Related Expenses,T35002/C011,Stock Account,Parts
Ashfield District Council,37UB,Scarab Sweepers Ltd,V1002443,25/08/2022,310.85,Place & Communities 2,Transport Related Expenses,T35002/C011,Stock Account,Parts
Ashfield District Council,37UB,Spaldings UK Ltd,V1002392,04/08/2022,161.5,Place & Communities 2,Transport Related Expenses,T35002/C011,Stock Account,Parts
Ashfield District Council,37UB,Spaldings UK Ltd,V1002392,04/08/2022,40.8,Place & Communities 2,Transport Related Expenses,T35002/C011,Stock Account,Parts
Ashfield District Council,37UB,Spaldings UK Ltd,V1002746,11/08/2022,114,Place & Communities 2,Transport Related Expenses,T35002/C011,Stock Account,Parts
Ashfield District Council,37UB,Terberg Matec UK,V1002537,04/08/2022,44.68,Place & Communities 2,Transport Related Expenses,T35002/C011,Stock Account,Parts
Ashfield District Council,37UB,Terberg Matec UK,V1002537,04/08/2022,173.76,Place & Communities 2,Transport Related Expenses,T35002/C011,Stock Account,Parts
Ashfield District Council,37UB,Terberg Matec UK,V1002537,04/08/2022,80.7,Place & Communities 2,Transport Related Expenses,T35002/C011,Stock Account,Parts
Ashfield District Council,37UB,Terberg Matec UK,V1002537,04/08/2022,-29.92,Place & Communities 2,Transport Related Expenses,T35002/C011,Stock Account,Parts
Ashfield District Council,37UB,Terberg Matec UK,V1002538,18/08/2022,48.82,Place & Communities 2,Transport Related Expenses,T35002/C011,Stock Account,Parts
Ashfield District Council,37UB,Scarab Sweepers Ltd,V1001946,18/08/2022,43.17,R & B Transformation 2,Transport Related Expenses,T35002/C011,Stock Account,Parts
Ashfield District Council,37UB,Scarab Sweepers Ltd,V1001946,18/08/2022,17,R & B Transformation 2,Transport Related Expenses,T35002/C011,Stock Account,Parts
Ashfield District Council,37UB,,JV284477,11/08/2022,289598,R & B Transformation 2,Supplies & Services,T07020/D600002,Sundry Debtors Total Account,Reimbursements
Ashfield District Council,37UB,,JV284477,11/08/2022,5629403.8,R & B Transformation 2,Supplies & Services,T07015/D600002,Sundry Debtors Total Account,Reimbursements
Ashfield District Council,37UB,,JV284477,11/08/2022,870592,R & B Transformation 2,Supplies & Services,T07018/D600002,Sundry Debtors Total Account,Reimbursements
Ashfield District Council,37UB,Access Doors Limited,V0997104,04/08/2022,-137,R & B Transformation 2,Income,T07019002/J106,Sundry Debtors Total Account,Deductions
Ashfield District Council,37UB,Crystal Environmental Services Ltd,V1003329,18/08/2022,-120,R & B Transformation 2,Income,T07019002/J106,Sundry Debtors Total Account,Deductions
Ashfield District Council,37UB,A B Waste Disposal,V1002788,11/08/2022,2750,Housing & Assets 2,Supplies & Services,T36006006/D200008,Work in Progress,Payments to Contractors External
Ashfield District Council,37UB,Hays,V1002157,04/08/2022,1280,Housing & Assets 2,Employee Expenses,G58000/A200,Assets & Investments (HRA),Salaries - General
Ashfield District Council,37UB,Hays,V1002408,04/08/2022,1296,Housing & Assets 2,Employee Expenses,G58000/A200,Assets & Investments (HRA),Salaries - General
Ashfield District Council,37UB,Hays,V1002409,04/08/2022,1044,Housing & Assets 2,Employee Expenses,G58000/A200,Assets & Investments (HRA),Salaries - General
Ashfield District Council,37UB,Hays,V1002730,18/08/2022,188,Housing & Assets 2,Employee Expenses,G58000/A200,Assets & Investments (HRA),Salaries - General
Ashfield District Council,37UB,Hays,V1002789,18/08/2022,1724,Housing & Assets 2,Employee Expenses,G58000/A200,Assets & Investments (HRA),Salaries - General
Ashfield District Council,37UB,Hays,V1003348,18/08/2022,1748,Housing & Assets 2,Employee Expenses,G58000/A200,Assets & Investments (HRA),Salaries - General
Ashfield District Council,37UB,Hays,V1003556,18/08/2022,1812,Housing & Assets 2,Employee Expenses,G58000/A200004,Assets & Investments (HRA),Agency Staff
Ashfield District Council,37UB,British Telecom PLC,V1002727,11/08/2022,170.7,Housing & Assets 2,Supplies & Services,G51007/D301002,Housing OP and SN,Telephones
Ashfield District Council,37UB,British Telecom PLC,V1002727,11/08/2022,40,Housing & Assets 2,Supplies & Services,G51007/D301002,Housing OP and SN,Telephones
Ashfield District Council,37UB,Castle Water Ltd,V1002860,18/08/2022,13.51,Housing & Assets 2,Premises Expenses,G51022/B401,Housing OP and SN,Water rates
Ashfield District Council,37UB,Castle Water Ltd,V1002860,18/08/2022,27.44,Housing & Assets 2,Premises Expenses,G51028/B401,Housing OP and SN,Water rates
Ashfield District Council,37UB,Castle Water Ltd,V1002860,18/08/2022,2.38,Housing & Assets 2,Premises Expenses,G51015/B401,Housing OP and SN,Water rates
Ashfield District Council,37UB,Castle Water Ltd,V1002860,18/08/2022,7.64,Housing & Assets 2,Premises Expenses,G51027/B401,Housing OP and SN,Water rates
Ashfield District Council,37UB,Castle Water Ltd,V1002860,18/08/2022,7.94,Housing & Assets 2,Premises Expenses,G51028/B401,Housing OP and SN,Water rates
Ashfield District Council,37UB,Castle Water Ltd,V1002860,18/08/2022,2.38,Housing & Assets 2,Premises Expenses,G51015/B401,Housing OP and SN,Water rates
Ashfield District Council,37UB,Castle Water Ltd,V1002860,18/08/2022,2.38,Housing & Assets 2,Premises Expenses,G51015/B401,Housing OP and SN,Water rates
Ashfield District Council,37UB,Castle Water Ltd,V1002860,18/08/2022,10.05,Housing & Assets 2,Premises Expenses,G51015/B401,Housing OP and SN,Water rates
Ashfield District Council,37UB,Castle Water Ltd,V1002860,18/08/2022,33.01,Housing & Assets 2,Premises Expenses,G51022/B401,Housing OP and SN,Water rates
Ashfield District Council,37UB,Castle Water Ltd,V1002860,18/08/2022,10.73,Housing & Assets 2,Premises Expenses,G51022/B401,Housing OP and SN,Water rates
Ashfield District Council,37UB,Castle Water Ltd,V1002860,18/08/2022,26.04,Housing & Assets 2,Premises Expenses,G51020/B401,Housing OP and SN,Water rates
Ashfield District Council,37UB,Castle Water Ltd,V1002860,18/08/2022,2.38,Housing & Assets 2,Premises Expenses,G51015/B401,Housing OP and SN,Water rates
Ashfield District Council,37UB,Castle Water Ltd,V1002860,18/08/2022,5.17,Housing & Assets 2,Premises Expenses,G51015/B401,Housing OP and SN,Water rates
Ashfield District Council,37UB,Castle Water Ltd,V1002860,18/08/2022,2.38,Housing & Assets 2,Premises Expenses,G51015/B401,Housing OP and SN,Water rates
Ashfield District Council,37UB,Castle Water Ltd,V1002860,18/08/2022,12.12,Housing & Assets 2,Premises Expenses,G51021/B401,Housing OP and SN,Water rates
Ashfield District Council,37UB,Castle Water Ltd,V1002860,18/08/2022,3.57,Housing & Assets 2,Premises Expenses,G51008/B401,Housing OP and SN,Water rates
Ashfield District Council,37UB,Castle Water Ltd,V1002860,18/08/2022,24.65,Housing & Assets 2,Premises Expenses,G51015/B401,Housing OP and SN,Water rates
Ashfield District Council,37UB,Castle Water Ltd,V1002860,18/08/2022,2.38,Housing & Assets 2,Premises Expenses,G51015/B401,Housing OP and SN,Water rates
Ashfield District Council,37UB,Castle Water Ltd,V1002860,18/08/2022,42.75,Housing & Assets 2,Premises Expenses,G51023/B401,Housing OP and SN,Water rates
Ashfield District Council,37UB,Castle Water Ltd,V1002860,18/08/2022,123.48,Housing & Assets 2,Premises Expenses,G51009/B401,Housing OP and SN,Water rates
Ashfield District Council,37UB,Castle Water Ltd,V1002860,18/08/2022,80.33,Housing & Assets 2,Premises Expenses,G51015/B401,Housing OP and SN,Water rates
Ashfield District Council,37UB,Castle Water Ltd,V1002860,18/08/2022,37.18,Housing & Assets 2,Premises Expenses,G51026/B401,Housing OP and SN,Water rates
Ashfield District Council,37UB,Castle Water Ltd,V1002860,18/08/2022,2.48,Housing & Assets 2,Premises Expenses,G51015/B401,Housing OP and SN,Water rates
Ashfield District Council,37UB,EDF Energy 1 Ltd,V1002828,11/08/2022,941.12,Housing & Assets 2,Premises Expenses,G51026/B102,Housing OP and SN,Electricity
Ashfield District Council,37UB,Hoot Fire & Security Ltd,V1002740,04/08/2022,484,Housing & Assets 2,Premises Expenses,G51013/B003011,Housing OP and SN,Fire Alarms
Ashfield District Council,37UB,Hoot Fire & Security Ltd,V1002741,04/08/2022,36,Housing & Assets 2,Premises Expenses,G51007/B003011,Housing OP and SN,Fire Alarms
Ashfield District Council,37UB,Hoot Fire & Security Ltd,V1002138,18/08/2022,465,Housing & Assets 2,Premises Expenses,G51013/B003011,Housing OP and SN,Fire Alarms
Ashfield District Council,37UB,Hoot Fire & Security Ltd,V1003377,18/08/2022,420,Housing & Assets 2,Premises Expenses,G51027/B003011,Housing OP and SN,Fire Alarms
Ashfield District Council,37UB,Hoot Fire & Security Ltd,V1003378,18/08/2022,225,Housing & Assets 2,Premises Expenses,G51007/B003011,Housing OP and SN,Fire Alarms
Ashfield District Council,37UB,Hoot Fire & Security Ltd,V1003382,18/08/2022,40,Housing & Assets 2,Premises Expenses,G51009/B003011,Housing OP and SN,Fire Alarms
Ashfield District Council,37UB,Hoot Fire & Security Ltd,V1003402,18/08/2022,395,Housing & Assets 2,Premises Expenses,G51030/B003011,Housing OP and SN,Fire Alarms
Ashfield District Council,37UB,Hoot Fire & Security Ltd,V1003403,18/08/2022,40,Housing & Assets 2,Premises Expenses,G51008/B003011,Housing OP and SN,Fire Alarms
Ashfield District Council,37UB,Hoot Fire & Security Ltd,V1003408,18/08/2022,120,Housing & Assets 2,Premises Expenses,G51007/B003011,Housing OP and SN,Fire Alarms
Ashfield District Council,37UB,Hoot Fire & Security Ltd,V0999141,25/08/2022,172,Housing & Assets 2,Premises Expenses,G51007/B003011,Housing OP and SN,Fire Alarms
Ashfield District Council,37UB,Hoot Fire & Security Ltd,V1004572,25/08/2022,462,Housing & Assets 2,Premises Expenses,g51013/B003011,Housing OP and SN,Fire Alarms
Ashfield District Council,37UB,Hoot Fire & Security Ltd,V1004573,25/08/2022,36,Housing & Assets 2,Premises Expenses,G51028/B003011,Housing OP and SN,Fire Alarms
Ashfield District Council,37UB,Morris Vermaport Ltd,V0995268,25/08/2022,66,Housing & Assets 2,Premises Expenses,G51022/B003006,Housing OP and SN,Lift
Ashfield District Council,37UB,Morris Vermaport Ltd,V0995268,25/08/2022,132,Housing & Assets 2,Premises Expenses,G51013/B003006,Housing OP and SN,Lift
Ashfield District Council,37UB,Morris Vermaport Ltd,V0995268,25/08/2022,66,Housing & Assets 2,Premises Expenses,G51023/B003006,Housing OP and SN,Lift
Ashfield District Council,37UB,Morris Vermaport Ltd,V0995268,25/08/2022,66,Housing & Assets 2,Premises Expenses,G51027/B003006,Housing OP and SN,Lift
Ashfield District Council,37UB,Morris Vermaport Ltd,V0995268,25/08/2022,66,Housing & Assets 2,Premises Expenses,G51030/B003006,Housing OP and SN,Lift
Ashfield District Council,37UB,Morris Vermaport Ltd,V0995268,25/08/2022,66,Housing & Assets 2,Premises Expenses,G51007/B003006,Housing OP and SN,Lift
Ashfield District Council,37UB,Morris Vermaport Ltd,V0995268,25/08/2022,132,Housing & Assets 2,Premises Expenses,G51015/B003006,Housing OP and SN,Lift
Ashfield District Council,37UB,Morris Vermaport Ltd,V0995268,25/08/2022,66,Housing & Assets 2,Premises Expenses,G51021/B003006,Housing OP and SN,Lift
Ashfield District Council,37UB,Morris Vermaport Ltd,V0995268,25/08/2022,66,Housing & Assets 2,Premises Expenses,G51028/B003006,Housing OP and SN,Lift
Ashfield District Council,37UB,Morris Vermaport Ltd,V0995268,25/08/2022,66,Housing & Assets 2,Premises Expenses,g51026/B003006,Housing OP and SN,Lift
Ashfield District Council,37UB,Nottingham City Homes,V1002867,11/08/2022,577.07,Housing & Assets 2,Premises Expenses,G51001/B003011,Housing OP and SN,Fire Alarms
Ashfield District Council,37UB,Nottinghamshire Fire Safety Limited,V1001816,25/08/2022,56.84,Housing & Assets 2,Premises Expenses,G51020/B003011,Housing OP and SN,Fire Alarms
Ashfield District Council,37UB,Prestige Blinds,V1003353,18/08/2022,520,Housing & Assets 2,Premises Expenses,G51001/B003001,Housing OP and SN,Internal Decoration
Ashfield District Council,37UB,Total Gas & Power,V1003387,18/08/2022,71.75,Housing & Assets 2,Premises Expenses,G51007/B101,Housing OP and SN,Gas
Ashfield District Council,37UB,Total Gas & Power,V1003387,18/08/2022,65.24,Housing & Assets 2,Premises Expenses,G51009/B101,Housing OP and SN,Gas
Ashfield District Council,37UB,Total Gas & Power,V1003387,18/08/2022,674.51,Housing & Assets 2,Premises Expenses,G51027/B101,Housing OP and SN,Gas
Ashfield District Council,37UB,Total Gas & Power,V1003387,18/08/2022,1023.39,Housing & Assets 2,Premises Expenses,G51019/B101,Housing OP and SN,Gas
Ashfield District Council,37UB,Total Gas & Power,V1003387,18/08/2022,112.12,Housing & Assets 2,Premises Expenses,G51015/B101,Housing OP and SN,Gas
Ashfield District Council,37UB,Total Gas & Power,V1003387,18/08/2022,598.08,Housing & Assets 2,Premises Expenses,G51013/B101,Housing OP and SN,Gas
Ashfield District Council,37UB,Total Gas & Power,V1003387,18/08/2022,88.37,Housing & Assets 2,Premises Expenses,G51026/B101,Housing OP and SN,Gas
Ashfield District Council,37UB,Total Gas & Power,V1003387,18/08/2022,308.78,Housing & Assets 2,Premises Expenses,G51007/B101,Housing OP and SN,Gas
Ashfield District Council,37UB,Total Gas & Power,V1003387,18/08/2022,350.9,Housing & Assets 2,Premises Expenses,G51023/B101,Housing OP and SN,Gas
Ashfield District Council,37UB,Total Gas & Power,V1003387,18/08/2022,537.37,Housing & Assets 2,Premises Expenses,G51019/B101,Housing OP and SN,Gas
Ashfield District Council,37UB,Total Gas & Power,V1003387,18/08/2022,1149.37,Housing & Assets 2,Premises Expenses,G51022/B101,Housing OP and SN,Gas
Ashfield District Council,37UB,Total Gas & Power,V1003387,18/08/2022,558.72,Housing & Assets 2,Premises Expenses,G51030/B101,Housing OP and SN,Gas
Ashfield District Council,37UB,Total Gas & Power,V1003387,18/08/2022,678.82,Housing & Assets 2,Premises Expenses,G51028/B101,Housing OP and SN,Gas
Ashfield District Council,37UB,Total Gas & Power,V1003387,18/08/2022,82.25,Housing & Assets 2,Premises Expenses,G51008/B101,Housing OP and SN,Gas
Ashfield District Council,37UB,Total Gas & Power,V1003387,18/08/2022,586.97,Housing & Assets 2,Premises Expenses,G51019/B101,Housing OP and SN,Gas
Ashfield District Council,37UB,Daisy Telecoms Ltd,V1002737,18/08/2022,29.67,R & B Transformation 2,Supplies & Services,G51028/D301002,Housing OP and SN,Telephones
Ashfield District Council,37UB,Daisy Telecoms Ltd,V1002737,18/08/2022,16.69,R & B Transformation 2,Premises Expenses,G51009/B003011,Housing OP and SN,Fire Alarms
Ashfield District Council,37UB,Daisy Telecoms Ltd,V1002737,18/08/2022,44.27,R & B Transformation 2,Supplies & Services,G51027/D301006,Housing OP and SN,Alarm Lines
Ashfield District Council,37UB,Daisy Telecoms Ltd,V1002737,18/08/2022,46.36,R & B Transformation 2,Supplies & Services,G51027/D301002,Housing OP and SN,Telephones
Ashfield District Council,37UB,Daisy Telecoms Ltd,V1002737,18/08/2022,282.22,R & B Transformation 2,Premises Expenses,G51001/B003010,Housing OP and SN,C C T V Cameras
Ashfield District Council,37UB,Daisy Telecoms Ltd,V1002737,18/08/2022,90.54,R & B Transformation 2,Supplies & Services,G51015/D301006,Housing OP and SN,Alarm Lines
Ashfield District Council,37UB,Daisy Telecoms Ltd,V1002737,18/08/2022,56.71,R & B Transformation 2,Supplies & Services,G51021/D301006,Housing OP and SN,Alarm Lines
Ashfield District Council,37UB,Daisy Telecoms Ltd,V1002737,18/08/2022,16.69,R & B Transformation 2,Premises Expenses,G51023/B003011,Housing OP and SN,Fire Alarms
Ashfield District Council,37UB,Daisy Telecoms Ltd,V1002737,18/08/2022,16.69,R & B Transformation 2,Premises Expenses,G51008/B003011,Housing OP and SN,Fire Alarms
Ashfield District Council,37UB,Daisy Telecoms Ltd,V1002737,18/08/2022,85.09,R & B Transformation 2,Supplies & Services,G51022/D301006,Housing OP and SN,Alarm Lines
Ashfield District Council,37UB,Daisy Telecoms Ltd,V1002737,18/08/2022,33.57,R & B Transformation 2,Supplies & Services,G51028/D301006,Housing OP and SN,Alarm Lines
Ashfield District Council,37UB,Daisy Telecoms Ltd,V1002737,18/08/2022,29.68,R & B Transformation 2,Supplies & Services,G51015/D301002,Housing OP and SN,Telephones
Ashfield District Council,37UB,Daisy Telecoms Ltd,V1002737,18/08/2022,72.95,R & B Transformation 2,Supplies & Services,G51026/D301006,Housing OP and SN,Alarm Lines
Ashfield District Council,37UB,Daisy Telecoms Ltd,V1002737,18/08/2022,16.89,R & B Transformation 2,Supplies & Services,G51023/D301006,Housing OP and SN,Alarm Lines
Ashfield District Council,37UB,Daisy Telecoms Ltd,V1002737,18/08/2022,17.49,R & B Transformation 2,Premises Expenses,G51028/B003011,Housing OP and SN,Fire Alarms
Ashfield District Council,37UB,Daisy Telecoms Ltd,V1002737,18/08/2022,183.71,R & B Transformation 2,Supplies & Services,G51001/D301002,Housing OP and SN,Telephones
Ashfield District Council,37UB,Daisy Telecoms Ltd,V1002737,18/08/2022,29.68,R & B Transformation 2,Supplies & Services,G51030/D301002,Housing OP and SN,Telephones
Ashfield District Council,37UB,Daisy Telecoms Ltd,V1002737,18/08/2022,52.71,R & B Transformation 2,Supplies & Services,G51030/D301006,Housing OP and SN,Alarm Lines
Ashfield District Council,37UB,Daisy Telecoms Ltd,V1002737,18/08/2022,16.69,R & B Transformation 2,Supplies & Services,G51022/D301002,Housing OP and SN,Telephones
Ashfield District Council,37UB,Daisy Telecoms Ltd,V1003485,18/08/2022,6.19,R & B Transformation 2,Supplies & Services,G51027/D301002,Housing OP and SN,Telephones
Ashfield District Council,37UB,Daisy Telecoms Ltd,V1003485,18/08/2022,14.8,R & B Transformation 2,Supplies & Services,G51015/D301002,Housing OP and SN,Telephones
Ashfield District Council,37UB,Daisy Telecoms Ltd,V1003485,18/08/2022,7.4,R & B Transformation 2,Supplies & Services,G51030/D301002,Housing OP and SN,Telephones
Ashfield District Council,37UB,Daisy Telecoms Ltd,V1003485,18/08/2022,7.4,R & B Transformation 2,Supplies & Services,G51028/D301002,Housing OP and SN,Telephones
Ashfield District Council,37UB,EDF Energy 1 Ltd,V1003551,25/08/2022,30.25,R & B Transformation 2,Premises Expenses,G51039/B102,Housing OP and SN,Electricity
Ashfield District Council,37UB,EDF Energy 1 Ltd,V1003551,25/08/2022,25.83,R & B Transformation 2,Premises Expenses,G51041/B102,Housing OP and SN,Electricity
Ashfield District Council,37UB,EDF Energy 1 Ltd,V1003551,25/08/2022,31.97,R & B Transformation 2,Premises Expenses,G51042/B102,Housing OP and SN,Electricity
Ashfield District Council,37UB,EDF Energy 1 Ltd,V1003551,25/08/2022,37.79,R & B Transformation 2,Premises Expenses,G51043/B102,Housing OP and SN,Electricity
Ashfield District Council,37UB,EDF Energy 1 Ltd,V1003551,25/08/2022,25.97,R & B Transformation 2,Premises Expenses,G51050/B102,Housing OP and SN,Electricity
Ashfield District Council,37UB,EDF Energy 1 Ltd,V1003551,25/08/2022,-38.62,R & B Transformation 2,Premises Expenses,G51013/B102,Housing OP and SN,Electricity
Ashfield District Council,37UB,EDF Energy 1 Ltd,V1003551,25/08/2022,877.38,R & B Transformation 2,Premises Expenses,G51015/B102,Housing OP and SN,Electricity
Ashfield District Council,37UB,EDF Energy 1 Ltd,V1003551,25/08/2022,719.78,R & B Transformation 2,Premises Expenses,G51021/B102,Housing OP and SN,Electricity
Ashfield District Council,37UB,EDF Energy 1 Ltd,V1003551,25/08/2022,68.95,R & B Transformation 2,Premises Expenses,G51040/B102,Housing OP and SN,Electricity
Ashfield District Council,37UB,EDF Energy 1 Ltd,V1003551,25/08/2022,30.48,R & B Transformation 2,Premises Expenses,G51043/B102,Housing OP and SN,Electricity
Ashfield District Council,37UB,EDF Energy 1 Ltd,V1003551,25/08/2022,-97.98,R & B Transformation 2,Premises Expenses,G51047/B102,Housing OP and SN,Electricity
Ashfield District Council,37UB,EDF Energy 1 Ltd,V1003551,25/08/2022,105.28,R & B Transformation 2,Premises Expenses,G51047/B102,Housing OP and SN,Electricity
Ashfield District Council,37UB,EDF Energy 1 Ltd,V1003551,25/08/2022,30.28,R & B Transformation 2,Premises Expenses,G51029/B102,Housing OP and SN,Electricity
Ashfield District Council,37UB,EDF Energy 1 Ltd,V1003551,25/08/2022,88.61,R & B Transformation 2,Premises Expenses,G51038/B102,Housing OP and SN,Electricity
Ashfield District Council,37UB,EDF Energy 1 Ltd,V1003551,25/08/2022,19.74,R & B Transformation 2,Premises Expenses,G51052/B102,Housing OP and SN,Electricity
Ashfield District Council,37UB,EDF Energy 1 Ltd,V1003551,25/08/2022,110.34,R & B Transformation 2,Premises Expenses,G51033/B102,Housing OP and SN,Electricity
Ashfield District Council,37UB,EDF Energy 1 Ltd,V1003551,25/08/2022,36.85,R & B Transformation 2,Premises Expenses,G51059/B102,Housing OP and SN,Electricity
Ashfield District Council,37UB,EDF Energy 1 Ltd,V1003551,25/08/2022,36.88,R & B Transformation 2,Premises Expenses,G51065/B102,Housing OP and SN,Electricity
Ashfield District Council,37UB,EDF Energy 1 Ltd,V1003551,25/08/2022,83.12,R & B Transformation 2,Premises Expenses,G51024/B102,Housing OP and SN,Electricity
Ashfield District Council,37UB,EDF Energy 1 Ltd,V1003551,25/08/2022,98.06,R & B Transformation 2,Premises Expenses,G51032/B102,Housing OP and SN,Electricity
Ashfield District Council,37UB,EDF Energy 1 Ltd,V1003551,25/08/2022,27.76,R & B Transformation 2,Premises Expenses,G51033/B102,Housing OP and SN,Electricity
Ashfield District Council,37UB,EDF Energy 1 Ltd,V1003551,25/08/2022,67.01,R & B Transformation 2,Premises Expenses,G51047/B102,Housing OP and SN,Electricity
Ashfield District Council,37UB,EDF Energy 1 Ltd,V1003551,25/08/2022,29.53,R & B Transformation 2,Premises Expenses,G51052/B102,Housing OP and SN,Electricity
Ashfield District Council,37UB,EDF Energy 1 Ltd,V1003551,25/08/2022,213.37,R & B Transformation 2,Premises Expenses,G51020/B102,Housing OP and SN,Electricity
Ashfield District Council,37UB,EDF Energy 1 Ltd,V1003551,25/08/2022,26.14,R & B Transformation 2,Premises Expenses,G51021/B102,Housing OP and SN,Electricity
Ashfield District Council,37UB,EDF Energy 1 Ltd,V1003551,25/08/2022,37.85,R & B Transformation 2,Premises Expenses,G51043/B102,Housing OP and SN,Electricity
Ashfield District Council,37UB,EDF Energy 1 Ltd,V1003551,25/08/2022,15.32,R & B Transformation 2,Premises Expenses,G51054/B102,Housing OP and SN,Electricity
Ashfield District Council,37UB,EDF Energy 1 Ltd,V1003551,25/08/2022,33.44,R & B Transformation 2,Premises Expenses,G51049/B102,Housing OP and SN,Electricity
Ashfield District Council,37UB,EDF Energy 1 Ltd,V1003551,25/08/2022,228.61,R & B Transformation 2,Premises Expenses,G51013/B102,Housing OP and SN,Electricity
Ashfield District Council,37UB,EDF Energy 1 Ltd,V1003551,25/08/2022,-32.91,R & B Transformation 2,Premises Expenses,G51022/B102,Housing OP and SN,Electricity
Ashfield District Council,37UB,EDF Energy 1 Ltd,V1003551,25/08/2022,25.57,R & B Transformation 2,Premises Expenses,G51022/B102,Housing OP and SN,Electricity
Ashfield District Council,37UB,EDF Energy 1 Ltd,V1003551,25/08/2022,320.58,R & B Transformation 2,Premises Expenses,G51022/B102,Housing OP and SN,Electricity
Ashfield District Council,37UB,EDF Energy 1 Ltd,V1003551,25/08/2022,34.18,R & B Transformation 2,Premises Expenses,G51042/B102,Housing OP and SN,Electricity
Ashfield District Council,37UB,EDF Energy 1 Ltd,V1003551,25/08/2022,38.35,R & B Transformation 2,Premises Expenses,G51060/B102,Housing OP and SN,Electricity
Ashfield District Council,37UB,EDF Energy 1 Ltd,V1003551,25/08/2022,26.09,R & B Transformation 2,Premises Expenses,G51013/B102,Housing OP and SN,Electricity
Ashfield District Council,37UB,EDF Energy 1 Ltd,V1003551,25/08/2022,54.35,R & B Transformation 2,Premises Expenses,G51022/B102,Housing OP and SN,Electricity
Ashfield District Council,37UB,EDF Energy 1 Ltd,V1003551,25/08/2022,33.69,R & B Transformation 2,Premises Expenses,G51048/B102,Housing OP and SN,Electricity
Ashfield District Council,37UB,EDF Energy 1 Ltd,V1003551,25/08/2022,26.57,R & B Transformation 2,Premises Expenses,G51049/B102,Housing OP and SN,Electricity
Ashfield District Council,37UB,EDF Energy 1 Ltd,V1003551,25/08/2022,32.71,R & B Transformation 2,Premises Expenses,G51062/B102,Housing OP and SN,Electricity
Ashfield District Council,37UB,EDF Energy 1 Ltd,V1003551,25/08/2022,43.02,R & B Transformation 2,Premises Expenses,G51009/B102,Housing OP and SN,Electricity
Ashfield District Council,37UB,EDF Energy 1 Ltd,V1003551,25/08/2022,-532.69,R & B Transformation 2,Premises Expenses,G51022/B102,Housing OP and SN,Electricity
Ashfield District Council,37UB,EDF Energy 1 Ltd,V1003551,25/08/2022,469.52,R & B Transformation 2,Premises Expenses,G51028/B102,Housing OP and SN,Electricity
Ashfield District Council,37UB,EDF Energy 1 Ltd,V1003551,25/08/2022,39.37,R & B Transformation 2,Premises Expenses,G51046/B102,Housing OP and SN,Electricity
Ashfield District Council,37UB,EDF Energy 1 Ltd,V1003551,25/08/2022,16.3,R & B Transformation 2,Premises Expenses,G51054/B102,Housing OP and SN,Electricity
Ashfield District Council,37UB,EDF Energy 1 Ltd,V1003551,25/08/2022,26.25,R & B Transformation 2,Premises Expenses,G51056/B102,Housing OP and SN,Electricity
Ashfield District Council,37UB,EDF Energy 1 Ltd,V1003551,25/08/2022,302.87,R & B Transformation 2,Premises Expenses,G51007/B102,Housing OP and SN,Electricity
Ashfield District Council,37UB,EDF Energy 1 Ltd,V1003551,25/08/2022,538.84,R & B Transformation 2,Premises Expenses,G51019/B102,Housing OP and SN,Electricity
Ashfield District Council,37UB,EDF Energy 1 Ltd,V1003551,25/08/2022,24.4,R & B Transformation 2,Premises Expenses,G51022/B102,Housing OP and SN,Electricity
Ashfield District Council,37UB,EDF Energy 1 Ltd,V1003551,25/08/2022,25.34,R & B Transformation 2,Premises Expenses,G51033/B102,Housing OP and SN,Electricity
Ashfield District Council,37UB,EDF Energy 1 Ltd,V1003551,25/08/2022,38.36,R & B Transformation 2,Premises Expenses,G51046/B102,Housing OP and SN,Electricity
Ashfield District Council,37UB,EDF Energy 1 Ltd,V1003551,25/08/2022,19.99,R & B Transformation 2,Premises Expenses,G51051/B102,Housing OP and SN,Electricity
Ashfield District Council,37UB,EDF Energy 1 Ltd,V1003551,25/08/2022,31.77,R & B Transformation 2,Premises Expenses,G51055/B102,Housing OP and SN,Electricity
Ashfield District Council,37UB,EDF Energy 1 Ltd,V1003551,25/08/2022,-564.97,R & B Transformation 2,Premises Expenses,G51022/B102,Housing OP and SN,Electricity
Ashfield District Council,37UB,EDF Energy 1 Ltd,V1003551,25/08/2022,26.57,R & B Transformation 2,Premises Expenses,G51013/B102,Housing OP and SN,Electricity
Ashfield District Council,37UB,EDF Energy 1 Ltd,V1003551,25/08/2022,96.7,R & B Transformation 2,Premises Expenses,G51017/B102,Housing OP and SN,Electricity
Ashfield District Council,37UB,EDF Energy 1 Ltd,V1003551,25/08/2022,56.04,R & B Transformation 2,Premises Expenses,G51017/B102,Housing OP and SN,Electricity
Ashfield District Council,37UB,EDF Energy 1 Ltd,V1003551,25/08/2022,32.46,R & B Transformation 2,Premises Expenses,G51022/B102,Housing OP and SN,Electricity
Ashfield District Council,37UB,EDF Energy 1 Ltd,V1003551,25/08/2022,30.27,R & B Transformation 2,Premises Expenses,G51036/B102,Housing OP and SN,Electricity
Ashfield District Council,37UB,EDF Energy 1 Ltd,V1003551,25/08/2022,104.16,R & B Transformation 2,Premises Expenses,G51012/B102,Housing OP and SN,Electricity
Ashfield District Council,37UB,EDF Energy 1 Ltd,V1003551,25/08/2022,26.97,R & B Transformation 2,Premises Expenses,G51022/B102,Housing OP and SN,Electricity
Ashfield District Council,37UB,EDF Energy 1 Ltd,V1003551,25/08/2022,37.86,R & B Transformation 2,Premises Expenses,G51029/B102,Housing OP and SN,Electricity
Ashfield District Council,37UB,EDF Energy 1 Ltd,V1003551,25/08/2022,172.95,R & B Transformation 2,Premises Expenses,G51009/B102,Housing OP and SN,Electricity
Ashfield District Council,37UB,EDF Energy 1 Ltd,V1003551,25/08/2022,174.73,R & B Transformation 2,Premises Expenses,G51015/B102,Housing OP and SN,Electricity
Ashfield District Council,37UB,EDF Energy 1 Ltd,V1003551,25/08/2022,34.18,R & B Transformation 2,Premises Expenses,G51042/B102,Housing OP and SN,Electricity
Ashfield District Council,37UB,EDF Energy 1 Ltd,V1003551,25/08/2022,33.56,R & B Transformation 2,Premises Expenses,G51044/B102,Housing OP and SN,Electricity
Ashfield District Council,37UB,EDF Energy 1 Ltd,V1003551,25/08/2022,39.58,R & B Transformation 2,Premises Expenses,G51058/B102,Housing OP and SN,Electricity
Ashfield District Council,37UB,EDF Energy 1 Ltd,V1003551,25/08/2022,20.68,R & B Transformation 2,Premises Expenses,G51063/B102,Housing OP and SN,Electricity
Ashfield District Council,37UB,EDF Energy 1 Ltd,V1003551,25/08/2022,48.72,R & B Transformation 2,Premises Expenses,G51021/B102,Housing OP and SN,Electricity
Ashfield District Council,37UB,EDF Energy 1 Ltd,V1003551,25/08/2022,341.51,R & B Transformation 2,Premises Expenses,G51022/B102,Housing OP and SN,Electricity
Ashfield District Council,37UB,EDF Energy 1 Ltd,V1003551,25/08/2022,62.61,R & B Transformation 2,Premises Expenses,G51057/B102,Housing OP and SN,Electricity
Ashfield District Council,37UB,EDF Energy 1 Ltd,V1003551,25/08/2022,35.9,R & B Transformation 2,Premises Expenses,G51060/B102,Housing OP and SN,Electricity
Ashfield District Council,37UB,EDF Energy 1 Ltd,V1003551,25/08/2022,32.46,R & B Transformation 2,Premises Expenses,G51061/B102,Housing OP and SN,Electricity
Ashfield District Council,37UB,EDF Energy 1 Ltd,V1003551,25/08/2022,198.3,R & B Transformation 2,Premises Expenses,G51008/B102,Housing OP and SN,Electricity
Ashfield District Council,37UB,EDF Energy 1 Ltd,V1003551,25/08/2022,25.11,R & B Transformation 2,Premises Expenses,G51012/B102,Housing OP and SN,Electricity
Ashfield District Council,37UB,EDF Energy 1 Ltd,V1003551,25/08/2022,150.58,R & B Transformation 2,Premises Expenses,G51023/B102,Housing OP and SN,Electricity
Ashfield District Council,37UB,EDF Energy 1 Ltd,V1003551,25/08/2022,30.02,R & B Transformation 2,Premises Expenses,G51036/B102,Housing OP and SN,Electricity
Ashfield District Council,37UB,EDF Energy 1 Ltd,V1003551,25/08/2022,-103.64,R & B Transformation 2,Premises Expenses,G51047/B102,Housing OP and SN,Electricity
Ashfield District Council,37UB,EDF Energy 1 Ltd,V1003551,25/08/2022,350.72,R & B Transformation 2,Premises Expenses,G51013/B102,Housing OP and SN,Electricity
Ashfield District Council,37UB,EDF Energy 1 Ltd,V1003551,25/08/2022,94.25,R & B Transformation 2,Premises Expenses,G51034/B102,Housing OP and SN,Electricity
Ashfield District Council,37UB,EDF Energy 1 Ltd,V1003551,25/08/2022,70.91,R & B Transformation 2,Premises Expenses,G51047/B102,Housing OP and SN,Electricity
Ashfield District Council,37UB,EDF Energy 1 Ltd,V1003551,25/08/2022,53.83,R & B Transformation 2,Premises Expenses,G51035/B102,Housing OP and SN,Electricity
Ashfield District Council,37UB,EDF Energy 1 Ltd,V1003551,25/08/2022,55.79,R & B Transformation 2,Premises Expenses,G51037/B102,Housing OP and SN,Electricity
Ashfield District Council,37UB,EDF Energy 1 Ltd,V1003551,25/08/2022,30,R & B Transformation 2,Premises Expenses,G51039/B102,Housing OP and SN,Electricity
Ashfield District Council,37UB,EDF Energy 1 Ltd,V1003551,25/08/2022,31.04,R & B Transformation 2,Premises Expenses,G51044/B102,Housing OP and SN,Electricity
Ashfield District Council,37UB,EDF Energy 1 Ltd,V1003551,25/08/2022,73.14,R & B Transformation 2,Premises Expenses,G51009/B102,Housing OP and SN,Electricity
Ashfield District Council,37UB,EDF Energy 1 Ltd,V1003551,25/08/2022,42.4,R & B Transformation 2,Premises Expenses,G51046/B102,Housing OP and SN,Electricity
Ashfield District Council,37UB,EDF Energy 1 Ltd,V1003551,25/08/2022,50.63,R & B Transformation 2,Premises Expenses,G51048/B102,Housing OP and SN,Electricity
Ashfield District Council,37UB,EDF Energy 1 Ltd,V1003551,25/08/2022,52.35,R & B Transformation 2,Premises Expenses,G51042/B102,Housing OP and SN,Electricity
Ashfield District Council,37UB,EDF Energy 1 Ltd,V1003551,25/08/2022,-26.97,R & B Transformation 2,Premises Expenses,G51022/B102,Housing OP and SN,Electricity
Ashfield District Council,37UB,EDF Energy 1 Ltd,V1003551,25/08/2022,45.93,R & B Transformation 2,Premises Expenses,G51029/B102,Housing OP and SN,Electricity
Ashfield District Council,37UB,EDF Energy 1 Ltd,V1003551,25/08/2022,27.56,R & B Transformation 2,Premises Expenses,G51054/B102,Housing OP and SN,Electricity
Ashfield District Council,37UB,EDF Energy 1 Ltd,V1003551,25/08/2022,425.12,R & B Transformation 2,Premises Expenses,G51022/B102,Housing OP and SN,Electricity
Ashfield District Council,37UB,EDF Energy 1 Ltd,V1003551,25/08/2022,60.95,R & B Transformation 2,Premises Expenses,G51043/B102,Housing OP and SN,Electricity
Ashfield District Council,37UB,EDF Energy 1 Ltd,V1003551,25/08/2022,33.06,R & B Transformation 2,Premises Expenses,G51046/B102,Housing OP and SN,Electricity
Ashfield District Council,37UB,EDF Energy 1 Ltd,V1003551,25/08/2022,36.59,R & B Transformation 2,Premises Expenses,G51045/B102,Housing OP and SN,Electricity
Ashfield District Council,37UB,EDF Energy 1 Ltd,V1003551,25/08/2022,26.22,R & B Transformation 2,Premises Expenses,G51050/B102,Housing OP and SN,Electricity
Ashfield District Council,37UB,British Telecom PLC,V1003340,25/08/2022,20.53,Housing & Assets 2,Supplies & Services,G23100007/D301002,Housing Revenue Account,Telephones
Ashfield District Council,37UB,Castle Water Ltd,V1002860,18/08/2022,20.47,Housing & Assets 2,Premises Expenses,G23100006/B401,Housing Revenue Account,Water rates
Ashfield District Council,37UB,Castle Water Ltd,V1002860,18/08/2022,14.91,Housing & Assets 2,Premises Expenses,G23100002/B401,Housing Revenue Account,Water rates
Ashfield District Council,37UB,Castle Water Ltd,V1002860,18/08/2022,28.83,Housing & Assets 2,Premises Expenses,G23100007/B401,Housing Revenue Account,Water rates
Ashfield District Council,37UB,Castle Water Ltd,V1002860,18/08/2022,41.34,Housing & Assets 2,Premises Expenses,G23100004/B401,Housing Revenue Account,Water rates
Ashfield District Council,37UB,Castle Water Ltd,V1002860,18/08/2022,10.73,Housing & Assets 2,Premises Expenses,G23100003/B401,Housing Revenue Account,Water rates
Ashfield District Council,37UB,D.P.Tool Hire,V1002861,11/08/2022,105,Housing & Assets 2,Supplies & Services,G23011035/D001001,Housing Revenue Account,Equipment Purchase
Ashfield District Council,37UB,e.on Next,V1002951,18/08/2022,21.58,Housing & Assets 2,Premises Expenses,G23011045/B101,Housing Revenue Account,Gas
Ashfield District Council,37UB,e.on Next,V1002951,18/08/2022,10,Housing & Assets 2,Premises Expenses,G23011045/B101,Housing Revenue Account,Gas
Ashfield District Council,37UB,e.on Next,V1003325,18/08/2022,58.52,Housing & Assets 2,Premises Expenses,G23011045/B102,Housing Revenue Account,Electricity
Ashfield District Council,37UB,e.on Next,V1000544,25/08/2022,35.01,Housing & Assets 2,Premises Expenses,G23011045/B101,Housing Revenue Account,Gas
Ashfield District Council,37UB,OVO Energy,V1003324,18/08/2022,26.69,Housing & Assets 2,Premises Expenses,G23011044/B102,Housing Revenue Account,Electricity
Ashfield District Council,37UB,OVO Energy,V1003324,18/08/2022,33.41,Housing & Assets 2,Premises Expenses,G23011044/B101,Housing Revenue Account,Gas
Ashfield District Council,37UB,PPL PRS Ltd,V1001605,04/08/2022,267.2,Housing & Assets 2,Supplies & Services,G23100/D200014,Housing Revenue Account,Licences
Ashfield District Council,37UB,Scottish Power,V1002929,18/08/2022,54.28,Housing & Assets 2,Premises Expenses,G23011020/B102,Housing Revenue Account,Electricity
Ashfield District Council,37UB,Scottish Power,V1002929,18/08/2022,10,Housing & Assets 2,Premises Expenses,G23011020/B102,Housing Revenue Account,Electricity
Ashfield District Council,37UB,Total Gas & Power,V1003387,18/08/2022,79.18,Housing & Assets 2,Premises Expenses,G23100007/B101,Housing Revenue Account,Gas
Ashfield District Council,37UB,Total Gas & Power,V1003387,18/08/2022,51.15,Housing & Assets 2,Premises Expenses,G23100004/B101,Housing Revenue Account,Gas
Ashfield District Council,37UB,Total Gas & Power,V1003387,18/08/2022,57.73,Housing & Assets 2,Premises Expenses,G23100006/B101,Housing Revenue Account,Gas
Ashfield District Council,37UB,Total Gas & Power,V1003387,18/08/2022,97.67,Housing & Assets 2,Premises Expenses,G23100002/B101,Housing Revenue Account,Gas
Ashfield District Council,37UB,Total Hire & Sales Ltd,V1002915,18/08/2022,119.67,Housing & Assets 2,Premises Expenses,G23100007/B001001,Housing Revenue Account,General Repairs Asset Maintenance
Ashfield District Council,37UB,Utilita Energy Limited,V1002864,18/08/2022,62.78,Housing & Assets 2,Premises Expenses,G23011042/B102,Housing Revenue Account,Electricity
Ashfield District Council,37UB,Utilita Energy Limited,V1002864,18/08/2022,35.14,Housing & Assets 2,Premises Expenses,G23011042/B101,Housing Revenue Account,Gas
Ashfield District Council,37UB,Utilita Energy Limited,V1002910,18/08/2022,35.97,Housing & Assets 2,Premises Expenses,G23011053/B102,Housing Revenue Account,Electricity
Ashfield District Council,37UB,British Gas Business,V1002494,04/08/2022,56.74,R & B Transformation 2,Premises Expenses,G23011033/B102,Housing Revenue Account,Electricity
Ashfield District Council,37UB,British Gas Business,V1002494,04/08/2022,17.44,R & B Transformation 2,Premises Expenses,G23011001/B102,Housing Revenue Account,Electricity
Ashfield District Council,37UB,British Gas Business,V1002494,04/08/2022,42.94,R & B Transformation 2,Premises Expenses,G23011051/B102,Housing Revenue Account,Electricity
Ashfield District Council,37UB,British Gas Business,V1002494,04/08/2022,75.29,R & B Transformation 2,Premises Expenses,G23011035/B102,Housing Revenue Account,Electricity
Ashfield District Council,37UB,British Gas Business,V1002494,04/08/2022,78.43,R & B Transformation 2,Premises Expenses,G23011005/B102,Housing Revenue Account,Electricity
Ashfield District Council,37UB,British Gas Business,V1002494,04/08/2022,125.59,R & B Transformation 2,Premises Expenses,g23011013/b102,Housing Revenue Account,Electricity
Ashfield District Council,37UB,British Gas Business,V1002494,04/08/2022,-432.24,R & B Transformation 2,Premises Expenses,G23011051/B102,Housing Revenue Account,Electricity
Ashfield District Council,37UB,British Gas Business,V1002494,04/08/2022,27.81,R & B Transformation 2,Premises Expenses,G23011029/B102,Housing Revenue Account,Electricity
Ashfield District Council,37UB,British Gas Business,V1002494,04/08/2022,15.91,R & B Transformation 2,Premises Expenses,G23011051/B102,Housing Revenue Account,Electricity
Ashfield District Council,37UB,British Gas Business,V1002494,04/08/2022,15.72,R & B Transformation 2,Premises Expenses,G23011046/B102,Housing Revenue Account,Electricity
Ashfield District Council,37UB,British Gas Business,V1002494,04/08/2022,86.39,R & B Transformation 2,Premises Expenses,G23011030/B102,Housing Revenue Account,Electricity
Ashfield District Council,37UB,British Gas Business,V1002494,04/08/2022,13.89,R & B Transformation 2,Premises Expenses,G23011046/B102,Housing Revenue Account,Electricity
Ashfield District Council,37UB,British Gas Business,V1002494,04/08/2022,55.48,R & B Transformation 2,Premises Expenses,G23011004/B102,Housing Revenue Account,Electricity
Ashfield District Council,37UB,British Gas Business,V1002494,04/08/2022,-534.45,R & B Transformation 2,Premises Expenses,G23011051/B102,Housing Revenue Account,Electricity
Ashfield District Council,37UB,British Gas Business,V1002494,04/08/2022,35.04,R & B Transformation 2,Premises Expenses,G23011002/B102,Housing Revenue Account,Electricity
Ashfield District Council,37UB,British Gas Business,V1002494,04/08/2022,85.98,R & B Transformation 2,Premises Expenses,G23011014/B102,Housing Revenue Account,Electricity
Ashfield District Council,37UB,British Gas Business,V1002494,04/08/2022,35.36,R & B Transformation 2,Premises Expenses,G23011034/B102,Housing Revenue Account,Electricity
Ashfield District Council,37UB,British Gas Business,V1002494,04/08/2022,102.32,R & B Transformation 2,Premises Expenses,G23011036/B102,Housing Revenue Account,Electricity
Ashfield District Council,37UB,British Gas Business,V1002494,04/08/2022,75.29,R & B Transformation 2,Premises Expenses,G23011040/B102,Housing Revenue Account,Electricity
Ashfield District Council,37UB,British Gas Business,V1002494,04/08/2022,38.5,R & B Transformation 2,Premises Expenses,G23011051/B102,Housing Revenue Account,Electricity
Ashfield District Council,37UB,British Gas Business,V1002494,04/08/2022,49.82,R & B Transformation 2,Premises Expenses,G23011041/B102,Housing Revenue Account,Electricity
Ashfield District Council,37UB,British Gas Business,V1002494,04/08/2022,51.85,R & B Transformation 2,Premises Expenses,G23011051/B102,Housing Revenue Account,Electricity
Ashfield District Council,37UB,British Gas Business,V1002494,04/08/2022,35.67,R & B Transformation 2,Premises Expenses,G23011055/B102,Housing Revenue Account,Electricity
Ashfield District Council,37UB,British Gas Business,V1002494,04/08/2022,103.27,R & B Transformation 2,Premises Expenses,G23011032/B102,Housing Revenue Account,Electricity
Ashfield District Council,37UB,British Gas Business,V1002494,04/08/2022,13.28,R & B Transformation 2,Premises Expenses,G23011046/B102,Housing Revenue Account,Electricity
Ashfield District Council,37UB,British Gas Business,V1002494,04/08/2022,-35.85,R & B Transformation 2,Premises Expenses,G23011046/B102,Housing Revenue Account,Electricity
Ashfield District Council,37UB,British Gas Business,V1002494,04/08/2022,107.98,R & B Transformation 2,Premises Expenses,G23011016/B102,Housing Revenue Account,Electricity
Ashfield District Council,37UB,British Gas Business,V1002494,04/08/2022,-33.24,R & B Transformation 2,Premises Expenses,G23011046/B102,Housing Revenue Account,Electricity
Ashfield District Council,37UB,British Gas Business,V1002494,04/08/2022,39.48,R & B Transformation 2,Premises Expenses,G23011051/B102,Housing Revenue Account,Electricity
Ashfield District Council,37UB,British Gas Business,V1002494,04/08/2022,139.63,R & B Transformation 2,Premises Expenses,G23011015/B102,Housing Revenue Account,Electricity
Ashfield District Council,37UB,British Gas Business,V1002494,04/08/2022,44.6,R & B Transformation 2,Premises Expenses,G23011003/B102,Housing Revenue Account,Electricity
Ashfield District Council,37UB,British Gas Business,V1002494,04/08/2022,85.63,R & B Transformation 2,Premises Expenses,G23011007/B102,Housing Revenue Account,Electricity
Ashfield District Council,37UB,British Gas Business,V1002494,04/08/2022,-396.13,R & B Transformation 2,Premises Expenses,G23011051/B102,Housing Revenue Account,Electricity
Ashfield District Council,37UB,British Gas Business,V1002494,04/08/2022,-369.09,R & B Transformation 2,Premises Expenses,G23011051/B102,Housing Revenue Account,Electricity
Ashfield District Council,37UB,British Gas Business,V1002494,04/08/2022,55.48,R & B Transformation 2,Premises Expenses,G23011038/B102,Housing Revenue Account,Electricity
Ashfield District Council,37UB,British Gas Business,V1002495,04/08/2022,72.01,R & B Transformation 2,Premises Expenses,G23011002/B101,Housing Revenue Account,Gas
Ashfield District Council,37UB,British Gas Business,V1002495,04/08/2022,46.47,R & B Transformation 2,Premises Expenses,G23011033/B101,Housing Revenue Account,Gas
Ashfield District Council,37UB,British Gas Business,V1002495,04/08/2022,77.76,R & B Transformation 2,Premises Expenses,G23011007/B101,Housing Revenue Account,Gas
Ashfield District Council,37UB,British Gas Business,V1002495,04/08/2022,26,R & B Transformation 2,Premises Expenses,G23011041/B101,Housing Revenue Account,Gas
Ashfield District Council,37UB,British Gas Business,V1002495,04/08/2022,39.42,R & B Transformation 2,Premises Expenses,G23011038/B101,Housing Revenue Account,Gas
Ashfield District Council,37UB,British Gas Business,V1002495,04/08/2022,29.83,R & B Transformation 2,Premises Expenses,G23011055/B101,Housing Revenue Account,Gas
Ashfield District Council,37UB,British Gas Business,V1002495,04/08/2022,27.92,R & B Transformation 2,Premises Expenses,G23011030/B101,Housing Revenue Account,Gas
Ashfield District Council,37UB,British Gas Business,V1002495,04/08/2022,51.88,R & B Transformation 2,Premises Expenses,G23011015/B101,Housing Revenue Account,Gas
Ashfield District Council,37UB,British Gas Business,V1002495,04/08/2022,15.73,R & B Transformation 2,Premises Expenses,G23011036/B101,Housing Revenue Account,Gas
Ashfield District Council,37UB,British Gas Business,V1002495,04/08/2022,52.84,R & B Transformation 2,Premises Expenses,G23011020/B101,Housing Revenue Account,Gas
Ashfield District Council,37UB,British Gas Business,V1002495,04/08/2022,144.03,R & B Transformation 2,Premises Expenses,G23011004/B101,Housing Revenue Account,Gas
Ashfield District Council,37UB,British Gas Business,V1002495,04/08/2022,52.84,R & B Transformation 2,Premises Expenses,G23011029/B101,Housing Revenue Account,Gas
Ashfield District Council,37UB,British Gas Business,V1002495,04/08/2022,40.38,R & B Transformation 2,Premises Expenses,G23011016/B101,Housing Revenue Account,Gas
Ashfield District Council,37UB,British Gas Business,V1002495,04/08/2022,48.05,R & B Transformation 2,Premises Expenses,G23011001/B101,Housing Revenue Account,Gas
Ashfield District Council,37UB,British Gas Business,V1002495,04/08/2022,55.71,R & B Transformation 2,Premises Expenses,G23011040/B101,Housing Revenue Account,Gas
Ashfield District Council,37UB,British Gas Business,V1002495,04/08/2022,41.68,R & B Transformation 2,Premises Expenses,G23011051/B101,Housing Revenue Account,Gas
Ashfield District Council,37UB,British Gas Business,V1002495,04/08/2022,25.04,R & B Transformation 2,Premises Expenses,G23011003/B101,Housing Revenue Account,Gas
Ashfield District Council,37UB,British Gas Business,V1002495,04/08/2022,64.34,R & B Transformation 2,Premises Expenses,G23011014/B101,Housing Revenue Account,Gas
Ashfield District Council,37UB,British Gas Business,V1002495,04/08/2022,314.66,R & B Transformation 2,Premises Expenses,G23011046/B101,Housing Revenue Account,Gas
Ashfield District Council,37UB,British Gas Business,V1002495,04/08/2022,136.24,R & B Transformation 2,Premises Expenses,G23011035/B101,Housing Revenue Account,Gas
Ashfield District Council,37UB,British Gas Business,V1002495,04/08/2022,46.13,R & B Transformation 2,Premises Expenses,G23011034/B101,Housing Revenue Account,Gas
Ashfield District Council,37UB,British Gas Business,V1002495,04/08/2022,52.84,R & B Transformation 2,Premises Expenses,G23011005/B101,Housing Revenue Account,Gas
Ashfield District Council,37UB,British Gas Trading Limited,V1001598,04/08/2022,0.35,R & B Transformation 2,Premises Expenses,G23011036/B101,Housing Revenue Account,Gas
Ashfield District Council,37UB,Capita Business Services Limited,V1002465,04/08/2022,517.5,R & B Transformation 2,Supplies & Services,G23000/D302002,Housing Revenue Account,Maintenance
Ashfield District Council,37UB,Daisy Telecoms Ltd,V1002737,18/08/2022,16.69,R & B Transformation 2,Premises Expenses,G23100006/B003026,Housing Revenue Account,Radio Controlled /Radio Equipment
Ashfield District Council,37UB,Daisy Telecoms Ltd,V1002737,18/08/2022,16.69,R & B Transformation 2,Premises Expenses,G23100005/B003026,Housing Revenue Account,Radio Controlled /Radio Equipment
Ashfield District Council,37UB,Daisy Telecoms Ltd,V1002737,18/08/2022,17.78,R & B Transformation 2,Premises Expenses,G23100007/B003026,Housing Revenue Account,Radio Controlled /Radio Equipment
Ashfield District Council,37UB,Daisy Telecoms Ltd,V1002737,18/08/2022,16.69,R & B Transformation 2,Premises Expenses,G23100004/B003026,Housing Revenue Account,Radio Controlled /Radio Equipment
Ashfield District Council,37UB,Daisy Telecoms Ltd,V1002737,18/08/2022,16.69,R & B Transformation 2,Premises Expenses,G23100001/B003026,Housing Revenue Account,Radio Controlled /Radio Equipment
Ashfield District Council,37UB,Daisy Telecoms Ltd,V1002800,18/08/2022,39.86,R & B Transformation 2,Supplies & Services,G23100002/d301002,Housing Revenue Account,Telephones
Ashfield District Council,37UB,Daisy Telecoms Ltd,V1002800,18/08/2022,93.95,R & B Transformation 2,Supplies & Services,G23100007/d301002,Housing Revenue Account,Telephones
Ashfield District Council,37UB,e.on Next,V1001602,04/08/2022,24.23,R & B Transformation 2,Premises Expenses,G23011050/B102,Housing Revenue Account,Electricity
Ashfield District Council,37UB,e.on Next,V1001603,04/08/2022,38.18,R & B Transformation 2,Premises Expenses,G23011050/B101,Housing Revenue Account,Gas
Ashfield District Council,37UB,e.on Next,V1002427,04/08/2022,77.42,R & B Transformation 2,Premises Expenses,G23011045/B102,Housing Revenue Account,Electricity
Ashfield District Council,37UB,e.on Next,V0997159,25/08/2022,282.83,R & B Transformation 2,Premises Expenses,G23011045/B101,Housing Revenue Account,Gas
Ashfield District Council,37UB,e.on Next,V1003536,25/08/2022,2.01,R & B Transformation 2,Premises Expenses,G23011050/B101,Housing Revenue Account,Gas
Ashfield District Council,37UB,EDF Energy 1 Ltd,V1003533,18/08/2022,328.05,R & B Transformation 2,Premises Expenses,G23011039/B101,Housing Revenue Account,Gas
Ashfield District Council,37UB,EDF Energy 1 Ltd,V1003534,18/08/2022,210.12,R & B Transformation 2,Premises Expenses,G23011039/B102,Housing Revenue Account,Electricity
Ashfield District Council,37UB,EDF Energy 1 Ltd,V1003551,25/08/2022,250.16,R & B Transformation 2,Premises Expenses,G23100004/B102,Housing Revenue Account,Electricity
Ashfield District Council,37UB,EDF Energy 1 Ltd,V1003551,25/08/2022,140.6,R & B Transformation 2,Premises Expenses,G23100003/B102,Housing Revenue Account,Electricity
Ashfield District Council,37UB,EDF Energy 1 Ltd,V1003551,25/08/2022,43.45,R & B Transformation 2,Premises Expenses,G23100006/B102,Housing Revenue Account,Electricity
Ashfield District Council,37UB,EDF Energy 1 Ltd,V1003551,25/08/2022,364.07,R & B Transformation 2,Premises Expenses,G23100002/B102,Housing Revenue Account,Electricity
Ashfield District Council,37UB,Mansfield District Council,V1002773,11/08/2022,1932,R & B Transformation 2,Employee Expenses,G23000/A200019,Housing Revenue Account,Divisional Training
Ashfield District Council,37UB,OVO Energy,V1003341,18/08/2022,59.18,R & B Transformation 2,Premises Expenses,G23011022/B102,Housing Revenue Account,Electricity
Ashfield District Council,37UB,OVO Energy,V1003341,18/08/2022,30.69,R & B Transformation 2,Premises Expenses,G23011022/B101,Housing Revenue Account,Gas
Ashfield District Council,37UB,Scottish Power,V1001599,04/08/2022,59.83,R & B Transformation 2,Premises Expenses,G23011020/B102,Housing Revenue Account,Electricity
Ashfield District Council,37UB,Severn Trent Water Ltd,V1003394,18/08/2022,756.89,R & B Transformation 2,Premises Expenses,G23011051/B401,Housing Revenue Account,Water rates
Ashfield District Council,37UB,Severn Trent Water Ltd,V1003394,18/08/2022,142.77,R & B Transformation 2,Premises Expenses,G23011053/B401,Housing Revenue Account,Water rates
Ashfield District Council,37UB,Severn Trent Water Ltd,V1004140,25/08/2022,790.57,R & B Transformation 2,Premises Expenses,G23011047/B401,Housing Revenue Account,Water rates
Ashfield District Council,37UB,Utilita Energy Limited,V1001600,04/08/2022,33.24,R & B Transformation 2,Premises Expenses,G23011053/B102,Housing Revenue Account,Electricity
Ashfield District Council,37UB,Utilita Energy Limited,V1001935,04/08/2022,12.7,R & B Transformation 2,Premises Expenses,G23011042/B102,Housing Revenue Account,Electricity
Ashfield District Council,37UB,Utilita Energy Limited,V1002517,11/08/2022,4.18,R & B Transformation 2,Premises Expenses,G23011042/B101,Housing Revenue Account,Gas
Ashfield District Council,37UB,Utilita Energy Limited,V1002517,11/08/2022,-0.55,R & B Transformation 2,Premises Expenses,G23011042/B102,Housing Revenue Account,Electricity
Ashfield District Council,37UB,Utilita Energy Limited,V1003419,18/08/2022,80.96,R & B Transformation 2,Premises Expenses,G23011042/B101,Housing Revenue Account,Gas
Ashfield District Council,37UB,Utilita Energy Limited,V1003419,18/08/2022,32.28,R & B Transformation 2,Premises Expenses,G23011042/B102,Housing Revenue Account,Electricity
Ashfield District Council,37UB,Utilita Energy Limited,V1003531,18/08/2022,112.76,R & B Transformation 2,Premises Expenses,G23011027/B101,Housing Revenue Account,Gas
Ashfield District Council,37UB,Utilita Energy Limited,V1003531,18/08/2022,137.4,R & B Transformation 2,Premises Expenses,G23011027/B102,Housing Revenue Account,Electricity
Ashfield District Council,37UB,Utilita Energy Limited,V1003532,18/08/2022,111.61,R & B Transformation 2,Premises Expenses,G23011027/B101,Housing Revenue Account,Gas
Ashfield District Council,37UB,Utilita Energy Limited,V1003532,18/08/2022,128.5,R & B Transformation 2,Premises Expenses,G23011027/B102,Housing Revenue Account,Electricity
Ashfield District Council,37UB,The Lock Shop (SIA) Ltd,V1002149,04/08/2022,35.85,Housing & Assets 2,Supplies & Services,G53000/D001001,Lettings and PS,Equipment Purchase
Ashfield District Council,37UB,The Lock Shop (SIA) Ltd,V1003342,18/08/2022,82.5,Housing & Assets 2,Supplies & Services,G53000/D001001,Lettings and PS,Equipment Purchase
Ashfield District Council,37UB,The Lock Shop (SIA) Ltd,V1003343,18/08/2022,35.85,Housing & Assets 2,Supplies & Services,G53000/D001001,Lettings and PS,Equipment Purchase
Ashfield District Council,37UB,TurnerFox Recruitment Limited,V1002425,04/08/2022,597.75,Housing & Assets 2,Employee Expenses,G53000/A200004,Lettings and PS,Agency Staff
Ashfield District Council,37UB,TurnerFox Recruitment Limited,V1002922,11/08/2022,597.75,Housing & Assets 2,Employee Expenses,G53000/A200004,Lettings and PS,Agency Staff
Ashfield District Council,37UB,TurnerFox Recruitment Limited,V1003472,18/08/2022,597.75,Housing & Assets 2,Employee Expenses,G53000/A200004,Lettings and PS,Agency Staff
Ashfield District Council,37UB,TurnerFox Recruitment Limited,V1004223,25/08/2022,350.68,Housing & Assets 2,Employee Expenses,G53000/A200004,Lettings and PS,Agency Staff
Ashfield District Council,37UB,Royal Mail,V1002520,11/08/2022,78.72,R & B Transformation 2,Supplies & Services,G53000/D301001,Lettings and PS,Postages
Ashfield District Council,37UB,Bransons,V1003496,18/08/2022,65,Housing & Assets 2,Supplies & Services,G56004/D200033,Tech Servs Planned Responsive,Decoration Vouchers
Ashfield District Council,37UB,Dulux Decorator Centre,V1002953,11/08/2022,44.7,Housing & Assets 2,Supplies & Services,G56004/D200033,Tech Servs Planned Responsive,Decoration Vouchers
Ashfield District Council,37UB,Dulux Decorator Centre,V1003468,18/08/2022,225.74,Housing & Assets 2,Supplies & Services,G56004/D200033,Tech Servs Planned Responsive,Decoration Vouchers
Ashfield District Council,37UB,Orbis Property Protection Ltd,V1004180,25/08/2022,27.56,Housing & Assets 2,Premises Expenses,G56005/B004010,Tech Servs Planned Responsive,PM Void Screens
Ashfield District Council,37UB,Stroma Certification Limited,V1002461,04/08/2022,155.52,Housing & Assets 2,Premises Expenses,G56005/B004042,Tech Servs Planned Responsive,Annual Prop Health & Safety Check/Serv
Ashfield District Council,37UB,Stroma Certification Limited,V1002461,04/08/2022,40.5,Housing & Assets 2,Premises Expenses,G56005/B004042,Tech Servs Planned Responsive,Annual Prop Health & Safety Check/Serv
Ashfield District Council,37UB,Wilko Retail Limited,V1002875,11/08/2022,51.67,Housing & Assets 2,Supplies & Services,G56004/D200033,Tech Servs Planned Responsive,Decoration Vouchers
Ashfield District Council,37UB,Wilko Retail Limited,V1002876,11/08/2022,83.12,Housing & Assets 2,Supplies & Services,G56004/D200033,Tech Servs Planned Responsive,Decoration Vouchers
Ashfield District Council,37UB,Wilko Retail Limited,V1002877,11/08/2022,148.33,Housing & Assets 2,Supplies & Services,G56004/D200033,Tech Servs Planned Responsive,Decoration Vouchers
Ashfield District Council,37UB,Wilko Retail Limited,V1002878,11/08/2022,50,Housing & Assets 2,Supplies & Services,G56004/D200033,Tech Servs Planned Responsive,Decoration Vouchers
Ashfield District Council,37UB,Wilko Retail Limited,V1002878,11/08/2022,1.9,Housing & Assets 2,Supplies & Services,G56004/D200033,Tech Servs Planned Responsive,Decoration Vouchers
Ashfield District Council,37UB,Wilko Retail Limited,V1002879,11/08/2022,90,Housing & Assets 2,Supplies & Services,G56004/D200033,Tech Servs Planned Responsive,Decoration Vouchers
Ashfield District Council,37UB,Wilko Retail Limited,V1002880,11/08/2022,122.5,Housing & Assets 2,Supplies & Services,G56004/D200033,Tech Servs Planned Responsive,Decoration Vouchers
Ashfield District Council,37UB,Wilko Retail Limited,V1002881,11/08/2022,100,Housing & Assets 2,Supplies & Services,G56004/D200033,Tech Servs Planned Responsive,Decoration Vouchers
Ashfield District Council,37UB,Wilko Retail Limited,V1003412,18/08/2022,50.83,Housing & Assets 2,Supplies & Services,G56004/D200033,Tech Servs Planned Responsive,Decoration Vouchers
Ashfield District Council,37UB,Wilko Retail Limited,V1003413,18/08/2022,122.5,Housing & Assets 2,Supplies & Services,G56004/D200033,Tech Servs Planned Responsive,Decoration Vouchers
Ashfield District Council,37UB,Wilko Retail Limited,V1003425,18/08/2022,174,Housing & Assets 2,Supplies & Services,G56004/D200033,Tech Servs Planned Responsive,Decoration Vouchers
Ashfield District Council,37UB,Wilko Retail Limited,V1003426,18/08/2022,117.25,Housing & Assets 2,Supplies & Services,G56004/D200033,Tech Servs Planned Responsive,Decoration Vouchers
Ashfield District Council,37UB,Wilko Retail Limited,V1003427,18/08/2022,96.67,Housing & Assets 2,Supplies & Services,G56004/D200033,Tech Servs Planned Responsive,Decoration Vouchers
Ashfield District Council,37UB,Wilko Retail Limited,V1003428,18/08/2022,155,Housing & Assets 2,Supplies & Services,G56004/D200033,Tech Servs Planned Responsive,Decoration Vouchers
Ashfield District Council,37UB,Wilko Retail Limited,V1003450,18/08/2022,51.67,Housing & Assets 2,Supplies & Services,G56004/D200033,Tech Servs Planned Responsive,Decoration Vouchers
Ashfield District Council,37UB,Wilko Retail Limited,V1003451,18/08/2022,122.5,Housing & Assets 2,Supplies & Services,G56004/D200033,Tech Servs Planned Responsive,Decoration Vouchers
Ashfield District Council,37UB,Wilko Retail Limited,V1003452,18/08/2022,87.08,Housing & Assets 2,Supplies & Services,G56004/D200033,Tech Servs Planned Responsive,Decoration Vouchers
Ashfield District Council,37UB,Wilko Retail Limited,V1003453,18/08/2022,1.9,Housing & Assets 2,Supplies & Services,G56004/D200033,Tech Servs Planned Responsive,Decoration Vouchers
Ashfield District Council,37UB,Wilko Retail Limited,V1003453,18/08/2022,198,Housing & Assets 2,Supplies & Services,G56004/D200033,Tech Servs Planned Responsive,Decoration Vouchers
Ashfield District Council,37UB,Wilko Retail Limited,V1003454,18/08/2022,53.75,Housing & Assets 2,Supplies & Services,G56004/D200033,Tech Servs Planned Responsive,Decoration Vouchers
Ashfield District Council,37UB,Wilko Retail Limited,V1003455,18/08/2022,90,Housing & Assets 2,Supplies & Services,G56004/D200033,Tech Servs Planned Responsive,Decoration Vouchers
Ashfield District Council,37UB,Wilko Retail Limited,V1003456,18/08/2022,60.71,Housing & Assets 2,Supplies & Services,G56004/D200033,Tech Servs Planned Responsive,Decoration Vouchers
Ashfield District Council,37UB,Wilko Retail Limited,V1003456,18/08/2022,1.9,Housing & Assets 2,Supplies & Services,G56004/D200033,Tech Servs Planned Responsive,Decoration Vouchers
Ashfield District Council,37UB,Wilko Retail Limited,V1003457,18/08/2022,174.17,Housing & Assets 2,Supplies & Services,G56004/D200033,Tech Servs Planned Responsive,Decoration Vouchers
Ashfield District Council,37UB,Wilko Retail Limited,V1003458,18/08/2022,143.37,Housing & Assets 2,Supplies & Services,G56004/D200033,Tech Servs Planned Responsive,Decoration Vouchers
Ashfield District Council,37UB,Wilko Retail Limited,V1003459,18/08/2022,122.5,Housing & Assets 2,Supplies & Services,G56004/D200033,Tech Servs Planned Responsive,Decoration Vouchers
Ashfield District Council,37UB,Wilko Retail Limited,V1003460,18/08/2022,99.08,Housing & Assets 2,Supplies & Services,G56004/D200033,Tech Servs Planned Responsive,Decoration Vouchers
Ashfield District Council,37UB,Wilko Retail Limited,V1003461,18/08/2022,1.43,Housing & Assets 2,Supplies & Services,G56004/D200033,Tech Servs Planned Responsive,Decoration Vouchers
Ashfield District Council,37UB,Wilko Retail Limited,V1003461,18/08/2022,147.08,Housing & Assets 2,Supplies & Services,G56004/D200033,Tech Servs Planned Responsive,Decoration Vouchers
Ashfield District Council,37UB,Wilko Retail Limited,V1003462,18/08/2022,25.62,Housing & Assets 2,Supplies & Services,G56004/D200033,Tech Servs Planned Responsive,Decoration Vouchers
Ashfield District Council,37UB,Wilko Retail Limited,V1003463,18/08/2022,77.5,Housing & Assets 2,Supplies & Services,G56004/D200033,Tech Servs Planned Responsive,Decoration Vouchers
Ashfield District Council,37UB,Wilko Retail Limited,V1003464,18/08/2022,174.17,Housing & Assets 2,Supplies & Services,G56004/D200033,Tech Servs Planned Responsive,Decoration Vouchers
Ashfield District Council,37UB,Wilko Retail Limited,V1003465,18/08/2022,82.42,Housing & Assets 2,Supplies & Services,G56004/D200033,Tech Servs Planned Responsive,Decoration Vouchers
Ashfield District Council,37UB,Wilko Retail Limited,V1003466,18/08/2022,103.33,Housing & Assets 2,Supplies & Services,G56004/D200033,Tech Servs Planned Responsive,Decoration Vouchers
Ashfield District Council,37UB,Wilko Retail Limited,V1003469,18/08/2022,66.46,Housing & Assets 2,Supplies & Services,G56004/D200033,Tech Servs Planned Responsive,Decoration Vouchers
Ashfield District Council,37UB,Wilko Retail Limited,V1003470,18/08/2022,77.5,Housing & Assets 2,Supplies & Services,G56004/D200033,Tech Servs Planned Responsive,Decoration Vouchers
Ashfield District Council,37UB,Nottingham City Homes,V1002865,11/08/2022,10750,Housing & Assets 2,Supplies & Services,G57000/D200008,Technical Services Depot,Payments to Contractors External
Ashfield District Council,37UB,AGS Tech Ltd,V1001967,01/08/2022,50,R & B Transformation 2,Supplies & Services,G57002/D200008,Technical Services Depot,Payments to Contractors External
Ashfield District Council,37UB,AGS Tech Ltd,V1001968,01/08/2022,50,R & B Transformation 2,Supplies & Services,G57002/D200008,Technical Services Depot,Payments to Contractors External
Ashfield District Council,37UB,AGS Tech Ltd,V1001969,01/08/2022,50,R & B Transformation 2,Supplies & Services,G57002/D200008,Technical Services Depot,Payments to Contractors External
Ashfield District Council,37UB,AGS Tech Ltd,V1001970,01/08/2022,50,R & B Transformation 2,Supplies & Services,G57002/D200008,Technical Services Depot,Payments to Contractors External
Ashfield District Council,37UB,AGS Tech Ltd,V1001971,01/08/2022,50,R & B Transformation 2,Supplies & Services,G57002/D200008,Technical Services Depot,Payments to Contractors External
Ashfield District Council,37UB,AGS Tech Ltd,V1001972,01/08/2022,160.13,R & B Transformation 2,Supplies & Services,G57002/D200008,Technical Services Depot,Payments to Contractors External
Ashfield District Council,37UB,AGS Tech Ltd,V1001973,01/08/2022,50,R & B Transformation 2,Supplies & Services,G57002/D200008,Technical Services Depot,Payments to Contractors External
Ashfield District Council,37UB,AGS Tech Ltd,V1001974,01/08/2022,50,R & B Transformation 2,Supplies & Services,G57002/D200008,Technical Services Depot,Payments to Contractors External
Ashfield District Council,37UB,AGS Tech Ltd,V1001975,01/08/2022,50,R & B Transformation 2,Supplies & Services,G57002/D200008,Technical Services Depot,Payments to Contractors External
Ashfield District Council,37UB,AGS Tech Ltd,V1001976,01/08/2022,50,R & B Transformation 2,Supplies & Services,G57002/D200008,Technical Services Depot,Payments to Contractors External
Ashfield District Council,37UB,AGS Tech Ltd,V1001977,01/08/2022,50,R & B Transformation 2,Supplies & Services,G57002/D200008,Technical Services Depot,Payments to Contractors External
Ashfield District Council,37UB,AGS Tech Ltd,V1001978,01/08/2022,12.5,R & B Transformation 2,Supplies & Services,G57002/D200008,Technical Services Depot,Payments to Contractors External
Ashfield District Council,37UB,AGS Tech Ltd,V1003643,19/08/2022,50,R & B Transformation 2,Supplies & Services,G57002/D200008,Technical Services Depot,Payments to Contractors External
Ashfield District Council,37UB,AGS Tech Ltd,V1003644,19/08/2022,140.74,R & B Transformation 2,Supplies & Services,G57002/D200008,Technical Services Depot,Payments to Contractors External
Ashfield District Council,37UB,AGS Tech Ltd,V1003645,19/08/2022,50,R & B Transformation 2,Supplies & Services,G57002/D200008,Technical Services Depot,Payments to Contractors External
Ashfield District Council,37UB,AGS Tech Ltd,V1003646,19/08/2022,208.34,R & B Transformation 2,Supplies & Services,G57002/D200008,Technical Services Depot,Payments to Contractors External
Ashfield District Council,37UB,AGS Tech Ltd,V1003647,19/08/2022,117.5,R & B Transformation 2,Supplies & Services,G57002/D200008,Technical Services Depot,Payments to Contractors External
Ashfield District Council,37UB,AGS Tech Ltd,V1003648,19/08/2022,50,R & B Transformation 2,Supplies & Services,G57002/D200008,Technical Services Depot,Payments to Contractors External
Ashfield District Council,37UB,AGS Tech Ltd,V1003649,19/08/2022,50,R & B Transformation 2,Supplies & Services,G57002/D200008,Technical Services Depot,Payments to Contractors External
